Workbook

Sheet BASE
A1: .
A2: .
A3: . | T3: 2.1
A4: . | E4: Кэф открытия | H4: Кэф закрытия | S4: Flag Aggio | T4: 3.7
A5: Дата | B5: Лига | C5: Хоз | D5: Гости | E5: 1 | F5: X | G5: 2 | H5: 1 | I5: X | J5: 2 | K5: aggio ini | L5: aggio fin | N5: aggio | O5: Variazioni | R5: Flag Var.1 | S5: Maggiore di | T5: Flag Segno | W5: PRONO | X5: PRONO | AB5: Toygar 0.3.1
A6: . | O6: 1 | P6: X | Q6: 2 | R6: -0.08 | S6: 0 | T6: 1 | W6: Segno | X6: DC | Y6: Ris
A7: 2019-12-06T14:30:00 | B7: ISR CL | C7: Hapoel Ironi Gedera | D7: FC Beitar Yavne | E7: 4.5 | F7: 4.2 | G7: 1.53 | H7: 4.5 | I7: 4.2 | J7: 1.57 | K7: 0.8978 | L7: 0.9112 | N7: =IF(K7="","",K7-L7) -> -0.0134 | O7: =IF(E7="","",(E7-H7)) -> 0 | P7: =IF(F7="","",(F7-I7)) -> 0 | Q7: =IF(G7="","",(G7-J7)) -> -0.04 | R7: =IF(O7="","",IF(O7<$R$6,1,0)) -> 0 | S7: =IF(N7="","",IF(N7>$S$6,1,0)) -> 0 | T7: =IF(E7="","",IF(AND(E7>=$T$3,E7<=$T$4),1,0)) -> 0 | U7: 6 | V7: =IFERROR(LARGE($O7:$Q7,1),"") -> 0 | W7: =IF(V7="","",IFERROR(HLOOKUP($V7,$O7:$Q$2000,(2000-$U7),FALSE),"")) -> 1 | X7: =IF(W7="","",IF(W7=1,"1X",IF(W7=2,"2X","XX"))) -> 1X | Y7: =IF(M7="","",IF(LEFT(M7,1)=RIGHT(M7,1),"X",IF(LEFT(M7,1)>RIGHT(M7,1),"1","2"))) ->  | Z7: =IF(O7-P7>0.2,"MS1",IF(O7-P7>0.1,"1X",IF(Q7-P7>0.2,"MS2",IF(Q7-P7>0.1,"X2","NB")))) -> NB | AA7: =IF(O7+Q7>P7,"12 ÇS","NB") -> NB | AB7: =IF(P7-O7>0.2,"MS1",IF(P7-O7>0.1,"1X",IF(P7-Q7>0.2,"MS2",IF(P7-Q7>0.1,"X2","NB")))) -> NB | AC7: =IF(O7-Q7>P7,"12 ÇS","NB") -> 12 ÇS
A8: 2019-12-06T14:45:00 | B8: ISR CL | C8: Maccabi Neve Shaanan Eldad | D8: Hapoel Bnei Musmus | E8: 2 | F8: 3.6 | G8: 3 | H8: 2.2 | I8: 3.6 | J8: 2.75 | K8: 0.9 | L8: 0.9123 | N8: =IF(K8="","",K8-L8) -> -0.0123 | O8: =IF(E8="","",(E8-H8)) -> -0.2 | P8: =IF(F8="","",(F8-I8)) -> 0 | Q8: =IF(G8="","",(G8-J8)) -> 0.25 | R8: =IF(O8="","",IF(O8<$R$6,1,0)) -> 1 | S8: =IF(N8="","",IF(N8>$S$6,1,0)) -> 0 | T8: =IF(E8="","",IF(AND(E8>=$T$3,E8<=$T$4),1,0)) -> 0 | U8: =(U7+1) -> 7 | V8: =IFERROR(LARGE($O8:$Q8,1),"") -> 0.25 | W8: =IF(V8="","",IFERROR(HLOOKUP($V8,$O8:$Q$2000,(2000-$U8),FALSE),"")) -> 2 | X8: =IF(W8="","",IF(W8=1,"1X",IF(W8=2,"2X","XX"))) -> 2X | Y8: =IF(M8="","",IF(LEFT(M8,1)=RIGHT(M8,1),"X",IF(LEFT(M8,1)>RIGHT(M8,1),"1","2"))) ->  | Z8: =IF(O8-P8>0.2,"MS1",IF(O8-P8>0.1,"1X",IF(Q8-P8>0.2,"MS2",IF(Q8-P8>0.1,"X2","NB")))) -> MS2 | AA8: =IF(O8+Q8>P8,"12 ÇS","NB") -> 12 ÇS | AB8: =IF(P8-O8>0.2,"MS1",IF(P8-O8>0.1,"1X",IF(P8-Q8>0.2,"MS2",IF(P8-Q8>0.1,"X2","NB")))) -> 1X | AC8: =IF(O8-Q8>P8,"12 ÇS","NB") -> NB
A9: 2019-12-06T15:00:00 | B9: Spain D4 | C9: Elche CF Ilicitano | D9: CF Intercity | E9: 4.5 | F9: 3.6 | G9: 1.61 | H9: 4.75 | I9: 3.5 | J9: 1.7 | K9: 0.8919 | L9: 0.922 | N9: -0.0301 | O9: -0.25 | P9: 0.1 | Q9: -0.09 | R9: 1 | S9: 0 | T9: 0 | U9: =(U8+1) -> 8 | V9: 0.1 | W9: =IF(V9="","",IFERROR(HLOOKUP($V9,$O9:$Q$2000,(2000-$U9),FALSE),"")) -> x | X9: XX | Z9: NB | AA9: NB | AB9: MS1 | AC9: NB
A10: 2019-12-06T15:00:00 | B10: ARM D2 | C10: BKMA | D10: Rail Locomotive | E10: 6.5 | F10: 4.75 | G10: 1.33 | H10: 7 | I10: 5.5 | J10: 1.3 | K10: 0.8957 | L10: 0.9142 | N10: -0.0185 | O10: -0.5 | P10: -0.75 | Q10: 0.03 | R10: 1 | S10: 0 | T10: 0 | U10: 9 | V10: 0.03 | W10: =IF(V10="","",IFERROR(HLOOKUP($V10,$O10:$Q$2000,(2000-$U10),FALSE),"")) -> 2 | X10: 2X | Z10: MS1 | AA10: 12 ÇS | AB10: NB | AC10: 12 ÇS
A11: 2019-12-06T15:00:00 | B11: ARM D2 | C11: FC West Armenia | D11: Se Wan Boy | E11: 1.5 | F11: 4.5 | G11: 4.33 | H11: 1.5 | I11: 4.75 | J11: 4.75 | K11: 0.8929 | L11: 0.9193 | N11: -0.0264 | O11: 0 | P11: -0.25 | Q11: -0.42 | R11: 0 | S11: 0 | T11: 0 | U11: 10 | V11: 0 | W11: =IF(V11="","",IFERROR(HLOOKUP($V11,$O11:$Q$2000,(2000-$U11),FALSE),"")) -> 1 | X11: 1X | Z11: MS1 | AA11: NB | AB11: X2 | AC11: 12 ÇS
A12: 2019-12-06T15:00:00 | B12: ISR CL | C12: Beitar Ramat Gan | D12: Hapoel Qalansawe | E12: 2.8 | F12: 3.6 | G12: 2.1 | H12: 3 | I12: 3.6 | J12: 2.05 | K12: 0.8999 | L12: 0.9099 | N12: -0.01 | O12: -0.2 | P12: 0 | Q12: 0.05 | R12: 1 | S12: 0 | T12: 1 | U12: 11 | V12: 0.05 | W12: =IF(V12="","",IFERROR(HLOOKUP($V12,$O12:$Q$2000,(2000-$U12),FALSE),"")) -> 2 | X12: 2X | Z12: NB | AA12: NB | AB12: 1X | AC12: NB
A13: 2019-12-06T15:00:00 | B13: ISR CL | C13: Hapoel Mahane Yehuda | D13: Otzma FC Holon | E13: 2.4 | F13: 3.4 | G13: 2.5 | H13: 2 | I13: 3.5 | J13: 3.2 | K13: 0.9002 | L13: 0.9106 | N13: -0.0104 | O13: 0.4 | P13: -0.1 | Q13: -0.7 | R13: 0 | S13: 0 | T13: 1 | U13: 12 | V13: 0.4 | W13: =IF(V13="","",IFERROR(HLOOKUP($V13,$O13:$Q$2000,(2000-$U13),FALSE),"")) -> 1 | X13: 1X | Z13: MS1 | AA13: NB | AB13: MS2 | AC13: 12 ÇS
A14: 2019-12-06T15:00:00 | B14: ISR CL | C14: Maccabi Ironi Sderot | D14: MS Hapoel Yeroham | E14: 1.8 | F14: 3.6 | G14: 3.6 | H14: 1.83 | I14: 3.6 | J14: 3.8 | K14: 0.9 | L14: 0.9196 | N14: -0.0196 | O14: -0.03 | P14: 0 | Q14: -0.2 | R14: 0 | S14: 0 | T14: 0 | U14: 13 | V14: 0 | W14: =IF(V14="","",IFERROR(HLOOKUP($V14,$O14:$Q$2000,(2000-$U14),FALSE),"")) -> x | X14: XX | Z14: NB | AA14: NB | AB14: X2 | AC14: 12 ÇS
A15: 2019-12-06T15:00:00 | B15: ALG WL | C15: CF Akbou（W） | D15: AS Surete Nationale Women | E15: 2.75 | F15: 3.75 | G15: 2.05 | H15: 3 | I15: 3.8 | J15: 1.95 | K15: 0.8943 | L15: 0.9015 | N15: -0.0072 | O15: -0.25 | P15: -0.05 | Q15: 0.1 | R15: 1 | S15: 0 | T15: 1 | U15: 14 | V15: 0.1 | W15: =IF(V15="","",IFERROR(HLOOKUP($V15,$O15:$Q$2000,(2000-$U15),FALSE),"")) -> 2 | X15: 2X | Z15: X2 | AA15: NB | AB15: 1X | AC15: NB
A16: 2019-12-06T15:30:00 | B16: ISR D3 | C16: Hapoel Ironi Baka El Garbiya | D16: Rubi Shapira | E16: 4.5 | F16: 3.75 | G16: 1.6 | H16: 5.25 | I16: 4 | J16: 1.53 | K16: 0.8978 | L16: 0.914 | N16: -0.0162 | O16: =IF(E16="","",(E16-H16)) -> -0.75 | P16: -0.25 | Q16: 0.07 | R16: 1 | S16: 0 | T16: 0 | U16: 15 | V16: 0.07 | W16: =IF(V16="","",IFERROR(HLOOKUP($V16,$O16:$Q$2000,(2000-$U16),FALSE),"")) -> 2 | X16: 2X | Z16: MS2 | AA16: NB | AB16: MS1 | AC16: NB
A17: 2019-12-06T15:30:00 | B17: ISR D3 | C17: Hakoah Amidar Ramat Gan FC | D17: Hapoel Bikat Hayarden | E17: 1.28 | F17: 5 | G17: 7.5 | H17: 1.55 | I17: 4.33 | J17: 4.5 | K17: 0.8972 | L17: 0.9105 | N17: -0.0133 | O17: -0.27 | P17: 0.67 | Q17: 3 | R17: 1 | S17: 0 | T17: 0 | U17: 16 | V17: 3 | W17: =IF(V17="","",IFERROR(HLOOKUP($V17,$O17:$Q$2000,(2000-$U17),FALSE),"")) -> 2 | X17: 2X | Z17: MS2 | AA17: 12 ÇS | AB17: MS1 | AC17: NB
A18: 2019-12-06T15:30:00 | B18: Spain D4 | C18: CF Trival Valderas | D18: ED Moratalaz | E18: 1.57 | F18: 3.75 | G18: 4.75 | H18: 1.57 | I18: 3.8 | J18: 5.25 | K18: 0.8976 | L18: 0.9169 | N18: -0.0193 | O18: 0 | P18: -0.05 | Q18: -0.5 | R18: 0 | S18: 0 | T18: 0 | U18: 17 | V18: 0 | W18: =IF(V18="","",IFERROR(HLOOKUP($V18,$O18:$Q$2000,(2000-$U18),FALSE),"")) -> 1 | X18: 1X | Z18: NB | AA18: NB | AB18: MS2 | AC18: 12 ÇS
A19: 2019-12-06T15:30:00 | B19: Spain D4 | C19: Villaverde Boetticher CF | D19: Alcorcon B | E19: 3.75 | F19: 3.4 | G19: 1.8 | H19: 3.6 | I19: 3.3 | J19: 1.9 | K19: 0.8959 | L19: 0.9032 | N19: -0.0073 | O19: 0.15 | P19: 0.1 | Q19: -0.1 | R19: 0 | S19: 0 | T19: 0 | U19: 18 | V19: 0.15 | W19: =IF(V19="","",IFERROR(HLOOKUP($V19,$O19:$Q$2000,(2000-$U19),FALSE),"")) -> 1 | X19: 1X | Z19: NB | AA19: NB | AB19: X2 | AC19: 12 ÇS
A20: 2019-12-06T15:30:00 | B20: Ken D1 | C20: Kariobangi Sharks | D20: Tusker | E20: 5.5 | F20: 4.2 | G20: 1.44 | H20: 3.5 | I20: 3.5 | J20: 1.9 | K20: 0.8976 | L20: 0.9111 | N20: -0.0135 | O20: 2 | P20: 0.7 | Q20: -0.46 | R20: 0 | S20: 0 | T20: 0 | U20: 19 | V20: 2 | W20: =IF(V20="","",IFERROR(HLOOKUP($V20,$O20:$Q$2000,(2000-$U20),FALSE),"")) -> 1 | X20: 1X | Z20: MS1 | AA20: 12 ÇS | AB20: MS2 | AC20: 12 ÇS
A21: 2019-12-06T15:30:00 | B21: ISR CL | C21: Maccabi Lroni Kiryat Malakhi | D21: Maccabi Ironi Netivot | E21: 1.44 | F21: 4.5 | G21: 5 | H21: 1.3 | I21: 5 | J21: 8 | K21: 0.8955 | L21: 0.9139 | N21: -0.0184 | O21: 0.14 | P21: -0.5 | Q21: -3 | R21: 0 | S21: 0 | T21: 0 | U21: 20 | V21: 0.14 | W21: =IF(V21="","",IFERROR(HLOOKUP($V21,$O21:$Q$2000,(2000-$U21),FALSE),"")) -> 1 | X21: 1X | Z21: MS1 | AA21: NB | AB21: MS2 | AC21: 12 ÇS
A22: 2019-12-06T15:30:00 | B22: ISR CL | C22: SC Beer Sheva | D22: Beitar Ironi Kiryat Gat | E22: 2.1 | F22: 3.6 | G22: 2.8 | H22: 1.55 | I22: 4 | J22: 5 | K22: 0.9001 | L22: 0.9131 | N22: -0.013 | O22: 0.55 | P22: -0.4 | Q22: -2.2 | R22: 0 | S22: 0 | T22: 1 | U22: 21 | V22: 0.55 | W22: =IF(V22="","",IFERROR(HLOOKUP($V22,$O22:$Q$2000,(2000-$U22),FALSE),"")) -> 1 | X22: 1X | Z22: MS1 | AA22: NB | AB22: MS2 | AC22: 12 ÇS
A23: 2019-12-06T15:45:00 | B23: ISR D3 | C23: Hapoel Holon Yaniv | D23: Hapoel Marmorek lrony Rehovot | E23: 3 | F23: 3.1 | G23: 2.2 | H23: 3.4 | I23: 3.2 | J23: 2.05 | K23: 0.9006 | L23: 0.9136 | N23: -0.013 | O23: -0.4 | P23: -0.1 | Q23: 0.15 | R23: 1 | S23: 0 | T23: 1 | U23: 22 | V23: 0.15 | W23: =IF(V23="","",IFERROR(HLOOKUP($V23,$O23:$Q$2000,(2000-$U23),FALSE),"")) -> 2 | X23: 2X | Z23: MS2 | AA23: NB | AB23: MS1 | AC23: NB
A24: 2019-12-06T15:45:00 | B24: ISR D3 | C24: Hapoel Iksal | D24: Hapoel Bnei Zalfa | E24: 1.5 | F24: 4.2 | G24: 4.75 | H24: 1.53 | I24: 4.2 | J24: 5.25 | K24: 0.8967 | L24: 0.9241 | N24: -0.0274 | O24: =IF(E24="","",(E24-H24)) -> -0.03 | P24: 0 | Q24: =IF(G24="","",(G24-J24)) -> -0.5 | R24: 0 | S24: 0 | T24: 0 | U24: 23 | V24: 0 | W24: =IF(V24="","",IFERROR(HLOOKUP($V24,$O24:$Q$2000,(2000-$U24),FALSE),"")) -> x | X24: XX | Z24: NB | AA24: NB | AB24: MS2 | AC24: 12 ÇS
A25: 2019-12-06T15:45:00 | B25: ISR D3 | C25: Maccabi Tzur Shalom | D25: Hapoel Kaukab | E25: 3.4 | F25: 3.4 | G25: 1.9 | H25: 3.4 | I25: 3.4 | J25: 2 | K25: 0.8973 | L25: 0.919 | N25: -0.0217 | O25: 0 | P25: 0 | Q25: -0.1 | R25: 0 | S25: 0 | T25: 1 | U25: 24 | V25: 0 | W25: =IF(V25="","",IFERROR(HLOOKUP($V25,$O25:$Q$2000,(2000-$U25),FALSE),"")) -> 1 | X25: 1X | Z25: NB | AA25: NB | AB25: NB | AC25: 12 ÇS
A26: 2019-12-06T15:45:00 | B26: ISR D3 | C26: Shimshon Kafr Qasim | D26: Maccabi Yavne | E26: 1.6 | F26: 3.75 | G26: 4.5 | H26: 1.95 | I26: 3.4 | J26: 3.5 | K26: 0.8978 | L26: 0.9151 | N26: -0.0173 | O26: -0.35 | P26: 0.35 | Q26: 1 | R26: 1 | S26: 0 | T26: 0 | U26: 25 | V26: 1 | W26: =IF(V26="","",IFERROR(HLOOKUP($V26,$O26:$Q$2000,(2000-$U26),FALSE),"")) -> 2 | X26: 2X | Z26: MS2 | AA26: 12 ÇS | AB26: MS1 | AC26: NB
A27: 2019-12-06T16:00:00 | B27: SPA D2 | C27: Albacete | D27: Extremadura | E27: 2 | F27: 3.1 | G27: 4.2 | H27: 2.05 | I27: 3.1 | J27: 4 | K27: 0.9428 | L27: 0.943 | N27: -0.0002 | O27: -0.05 | P27: 0 | Q27: 0.2 | R27: 0 | S27: 0 | T27: 0 | U27: 26 | V27: 0.2 | W27: =IF(V27="","",IFERROR(HLOOKUP($V27,$O27:$Q$2000,(2000-$U27),FALSE),"")) -> 2 | X27: 2X | Z27: X2 | AA27: 12 ÇS | AB27: NB | AC27: NB
A28: 2019-12-06T16:00:00 | B28: SPA D3 | C28: CD Izarra | D28: UD Logrones | E28: 3.4 | F28: 3.4 | G28: 1.9 | H28: 3.2 | I28: 3.3 | J28: 2.1 | K28: 0.8973 | L28: 0.9158 | N28: -0.0185 | O28: 0.2 | P28: 0.1 | Q28: -0.2 | R28: 0 | S28: 0 | T28: 1 | U28: 27 | V28: 0.2 | W28: =IF(V28="","",IFERROR(HLOOKUP($V28,$O28:$Q$2000,(2000-$U28),FALSE),"")) -> 1 | X28: 1X | Z28: NB | AA28: NB | AB28: MS2 | AC28: 12 ÇS
A29: 2019-12-06T16:00:00 | B29: ISR D3 | C29: Maccabi Tamra | D29: Maccabi Ironi Kiryat Ata | E29: 1.53 | F29: 3.75 | G29: 5 | H29: 1.65 | I29: 3.6 | J29: 4.75 | K29: 0.8926 | L29: 0.9138 | N29: -0.0212 | O29: -0.12 | P29: 0.15 | Q29: 0.25 | R29: 1 | S29: 0 | T29: 0 | U29: 28 | V29: 0.25 | W29: =IF(V29="","",IFERROR(HLOOKUP($V29,$O29:$Q$2000,(2000-$U29),FALSE),"")) -> 2 | X29: 2X | Z29: NB | AA29: NB | AB29: MS1 | AC29: NB
A30: 2019-12-06T16:00:00 | B30: ISR D3 | C30: Ironi Tiberias | D30: Hapoel Asi Gilboa | E30: 2 | F30: 3.25 | G30: 3.25 | H30: 1.83 | I30: 3.5 | J30: 3.75 | K30: 0.8966 | L30: 0.9101 | N30: -0.0135 | O30: 0.17 | P30: -0.25 | Q30: -0.5 | R30: 0 | S30: 0 | T30: 0 | U30: 29 | V30: 0.17 | W30: =IF(V30="","",IFERROR(HLOOKUP($V30,$O30:$Q$2000,(2000-$U30),FALSE),"")) -> 1 | X30: 1X | Z30: MS1 | AA30: NB | AB30: MS2 | AC30: 12 ÇS
A31: 2019-12-06T16:00:00 | B31: ISR D3 | C31: Maccabi Shaarayim | D31: AS Ashdod | E31: 4.2 | F31: 3.6 | G31: 1.66 | H31: 4.2 | I31: 3.6 | J31: 1.72 | K31: 0.8942 | L31: 0.9114 | N31: -0.0172 | O31: 0 | P31: 0 | Q31: -0.06 | R31: 0 | S31: 0 | T31: 0 | U31: 30 | V31: 0 | W31: =IF(V31="","",IFERROR(HLOOKUP($V31,$O31:$Q$2000,(2000-$U31),FALSE),"")) -> 1 | X31: 1X | Z31: NB | AA31: NB | AB31: NB | AC31: 12 ÇS
A32: 2019-12-06T16:00:00 | B32: ISR D3 | C32: Maccabi Herzliya | D32: Maccabi Kiryat Gat | E32: 1.16 | F32: 7.5 | G32: 8 | H32: 1.04 | I32: 15 | J32: 29 | K32: 0.8925 | L32: 0.941 | N32: -0.0485 | O32: 0.12 | P32: -7.5 | Q32: -21 | R32: 0 | S32: 0 | T32: 0 | U32: 31 | V32: 0.12 | W32: =IF(V32="","",IFERROR(HLOOKUP($V32,$O32:$Q$2000,(2000-$U32),FALSE),"")) -> 1 | X32: 1X | Z32: MS1 | AA32: NB | AB32: MS2 | AC32: 12 ÇS
A33: 2019-12-06T16:00:00 | B33: RUS YthC | C33: FC Terek Groznyi Youth | D33: Ufa Youth | E33: 1.66 | F33: 4.2 | G33: 3.6 | H33: 1.9 | I33: 4 | J33: 3.1 | K33: 0.8942 | L33: 0.9099 | N33: -0.0157 | O33: -0.24 | P33: 0.2 | Q33: 0.5 | R33: 1 | S33: 0 | T33: 0 | U33: 32 | V33: 0.5 | W33: =IF(V33="","",IFERROR(HLOOKUP($V33,$O33:$Q$2000,(2000-$U33),FALSE),"")) -> 2 | X33: 2X | Z33: MS2 | AA33: 12 ÇS | AB33: MS1 | AC33: NB
A34: 2019-12-06T16:00:00 | B34: UKR U21 | C34: Kolos Kovalivka U21 | D34: Dnipro-1 U21 | E34: 2 | F34: 3.75 | G34: 2.9 | H34: 2 | I34: 3.8 | J34: 3 | K34: 0.8996 | L34: 0.912 | N34: -0.0124 | O34: 0 | P34: -0.05 | Q34: -0.1 | R34: 0 | S34: 0 | T34: 0 | U34: 33 | V34: 0 | W34: =IF(V34="","",IFERROR(HLOOKUP($V34,$O34:$Q$2000,(2000-$U34),FALSE),"")) -> 1 | X34: 1X | Z34: NB | AA34: NB | AB34: NB | AC34: 12 ÇS
A35: 2019-12-06T16:00:00 | B35: Spain D4 | C35: EDMF Churra | D35: Huercal | E35: 1.75 | F35: 3.6 | G35: 3.75 | H35: 1.72 | I35: 3.75 | J35: 4 | K35: 0.8962 | L35: 0.9107 | N35: -0.0145 | O35: 0.03 | P35: -0.15 | Q35: -0.25 | R35: 0 | S35: 0 | T35: 0 | U35: 34 | V35: 0.03 | W35: =IF(V35="","",IFERROR(HLOOKUP($V35,$O35:$Q$2000,(2000-$U35),FALSE),"")) -> 1 | X35: 1X | Z35: 1X | AA35: NB | AB35: NB | AC35: 12 ÇS
A36: 2019-12-06T16:00:00 | B36: Spain D4 | C36: CD Berceo | D36: Vianes | E36: 1.8 | F36: 3.6 | G36: 3.6 | H36: 1.75 | I36: 3.6 | J36: 4 | K36: 0.9 | L36: 0.9098 | N36: -0.0098 | O36: 0.05 | P36: 0 | Q36: -0.4 | R36: 0 | S36: 0 | T36: 0 | U36: 35 | V36: 0.05 | W36: =IF(V36="","",IFERROR(HLOOKUP($V36,$O36:$Q$2000,(2000-$U36),FALSE),"")) -> 1 | X36: 1X | Z36: NB | AA36: NB | AB36: MS2 | AC36: 12 ÇS
A37: 2019-12-06T16:00:00 | B37: ISR CL | C37: Sport Club Dimona | D37: Moadon Zeirey Rahat | E37: 1.14 | F37: 6.5 | G37: 12 | H37: 1.03 | I37: 17 | J37: 29 | K37: 0.8974 | L37: 0.9397 | N37: -0.0423 | O37: 0.11 | P37: -10.5 | Q37: -17 | R37: 0 | S37: 0 | T37: 0 | U37: 36 | V37: 0.11 | W37: =IF(V37="","",IFERROR(HLOOKUP($V37,$O37:$Q$2000,(2000-$U37),FALSE),"")) -> 1 | X37: 1X | Z37: MS1 | AA37: NB | AB37: MS2 | AC37: 12 ÇS
A38: 2019-12-06T16:00:00 | B38: ISR CL | C38: Beitar Kfar Saba Shlomi | D38: Shimshon Tel Aviv | E38: 2.4 | F38: 3.6 | G38: 2.4 | H38: 3 | I38: 3.75 | J38: 2.05 | K38: 0.9 | L38: 0.9192 | N38: -0.0192 | O38: -0.6 | P38: -0.15 | Q38: 0.35 | R38: 1 | S38: 0 | T38: 1 | U38: 37 | V38: 0.35 | W38: =IF(V38="","",IFERROR(HLOOKUP($V38,$O38:$Q$2000,(2000-$U38),FALSE),"")) -> 2 | X38: 2X | Z38: MS2 | AA38: NB | AB38: MS1 | AC38: NB
A39: 2019-12-06T16:15:00 | B39: ISR CL | C39: Ironi Beit Dagan | D39: Hapoel Kfar Qasm Shuaa | E39: 1.66 | F39: 4 | G39: 3.75 | H39: 1.66 | I39: 4 | J39: 4 | K39: 0.8936 | L39: 0.907 | N39: -0.0134 | O39: 0 | P39: 0 | Q39: -0.25 | R39: 0 | S39: 0 | T39: 0 | U39: 38 | V39: 0 | W39: =IF(V39="","",IFERROR(HLOOKUP($V39,$O39:$Q$2000,(2000-$U39),FALSE),"")) -> 1 | X39: 1X | Z39: NB | AA39: NB | AB39: MS2 | AC39: 12 ÇS
A40: 2019-12-06T16:30:00 | B40: ISR D3 | C40: Hapoel Kfar Shalem | D40: Hapoel Azor | E40: 1.57 | F40: 3.75 | G40: 4.75 | H40: 1.5 | I40: 3.8 | J40: 5.75 | K40: 0.8976 | L40: 0.906 | N40: -0.0084 | O40: 0.07 | P40: -0.05 | Q40: -1 | R40: 0 | S40: 0 | T40: 0 | U40: 39 | V40: 0.07 | W40: =IF(V40="","",IFERROR(HLOOKUP($V40,$O40:$Q$2000,(2000-$U40),FALSE),"")) -> 1 | X40: 1X | Z40: 1X | AA40: NB | AB40: MS2 | AC40: 12 ÇS
A41: 2019-12-06T16:30:00 | B41: IDN ISL | C41: Barito Putera | D41: Semen Padang | E41: 1.44 | F41: 4 | G41: 5.75 | H41: 1.57 | I41: 4.2 | J41: 5.25 | K41: 0.8942 | L41: 0.9385 | N41: -0.0443 | O41: -0.13 | P41: -0.2 | Q41: 0.5 | R41: 1 | S41: 0 | T41: 0 | U41: 40 | V41: 0.5 | W41: =IF(V41="","",IFERROR(HLOOKUP($V41,$O41:$Q$2000,(2000-$U41),FALSE),"")) -> 2 | X41: 2X | Z41: MS2 | AA41: 12 ÇS | AB41: NB | AC41: NB
A42: 2019-12-06T16:30:00 | B42: IDN ISL | C42: Kalteng Putra FC | D42: Madura United | E42: 2.1 | F42: 3.6 | G42: 2.75 | H42: 2.2 | I42: 3.6 | J42: 2.75 | K42: 0.8948 | L42: 0.9123 | N42: -0.0175 | O42: -0.1 | P42: 0 | Q42: 0 | R42: 1 | S42: 0 | T42: 1 | U42: 41 | V42: 0 | W42: =IF(V42="","",IFERROR(HLOOKUP($V42,$O42:$Q$2000,(2000-$U42),FALSE),"")) -> x | X42: XX | Z42: NB | AA42: NB | AB42: NB | AC42: NB
A43: 2019-12-06T16:35:00 | B43: CFC | C43: Shanghai Shenhua | D43: Shandong Luneng | E43: 2.9 | F43: 3.4 | G43: 2.37 | H43: 3.5 | I43: 3.4 | J43: 2.05 | K43: 0.9425 | L43: 0.9366 | N43: 0.0059 | O43: -0.6 | P43: 0 | Q43: 0.32 | R43: 1 | S43: 1 | T43: 1 | U43: 42 | V43: 0.32 | W43: =IF(V43="","",IFERROR(HLOOKUP($V43,$O43:$Q$2000,(2000-$U43),FALSE),"")) -> 2 | X43: 2X | Z43: MS2 | AA43: NB | AB43: MS1 | AC43: NB
A44: 2019-12-06T16:45:00 | B44: Spain D4 | C44: CD Mirandes B | D44: Tuoer De Cilliers | E44: 2.3 | F44: 3.4 | G44: 2.6 | H44: 2.25 | I44: 3.4 | J44: 2.8 | K44: 0.8981 | L44: 0.9126 | N44: -0.0145 | O44: 0.05 | P44: 0 | Q44: -0.2 | R44: 0 | S44: 0 | T44: 1 | U44: 43 | V44: 0.05 | W44: =IF(V44="","",IFERROR(HLOOKUP($V44,$O44:$Q$2000,(2000-$U44),FALSE),"")) -> 1 | X44: 1X | Z44: NB | AA44: NB | AB44: X2 | AC44: 12 ÇS
A45: 2019-12-06T17:00:00 | B45: ENG PU23 | C45: Tottenham Hotspur U23 | D45: Liverpool U23 | E45: 2 | F45: 3.6 | G45: 3 | H45: 2.15 | I45: 3.6 | J45: 2.8 | K45: 0.9 | L45: 0.909 | N45: -0.009 | O45: -0.15 | P45: 0 | Q45: 0.2 | R45: 1 | S45: 0 | T45: 0 | U45: 44 | V45: 0.2 | W45: =IF(V45="","",IFERROR(HLOOKUP($V45,$O45:$Q$2000,(2000-$U45),FALSE),"")) -> 2 | X45: 2X | Z45: X2 | AA45: 12 ÇS | AB45: 1X | AC45: NB
A46: 2019-12-06T17:00:00 | B46: ARG RESL | C46: Argentinos Jrs Reserves | D46: Estudiantes LP Reserves | E46: 2.87 | F46: 3.25 | G46: 2.2 | H46: 3.4 | I46: 3.5 | J46: 1.95 | K46: 0.9003 | L46: 0.9153 | N46: -0.015 | O46: -0.53 | P46: -0.25 | Q46: 0.25 | R46: 1 | S46: 0 | T46: 1 | U46: 45 | V46: 0.25 | W46: =IF(V46="","",IFERROR(HLOOKUP($V46,$O46:$Q$2000,(2000-$U46),FALSE),"")) -> 2 | X46: 2X | Z46: MS2 | AA46: NB | AB46: MS1 | AC46: NB
A47: 2019-12-06T17:00:00 | B47: ARG RESL | C47: CA Independiente Reserves | D47: Banfield Reserves | E47: 1.9 | F47: 3.3 | G47: 3.5 | H47: 2 | I47: 3.3 | J47: 3.5 | K47: 0.8968 | L47: 0.9184 | N47: -0.0216 | O47: -0.1 | P47: 0 | Q47: 0 | R47: 1 | S47: 0 | T47: 0 | U47: 46 | V47: 0 | W47: =IF(V47="","",IFERROR(HLOOKUP($V47,$O47:$Q$2000,(2000-$U47),FALSE),"")) -> x | X47: XX | Z47: NB | AA47: NB | AB47: NB | AC47: NB
A48: 2019-12-06T17:00:00 | B48: ARG RESL | C48: CA Talleres de Córdoba Reserves | D48: Union Santa Fe Reserves | E48: 2.2 | F48: 3.4 | G48: 2.75 | H48: 2.3 | I48: 3.4 | J48: 2.6 | K48: 0.8991 | L48: 0.8981 | N48: 0.001 | O48: -0.1 | P48: 0 | Q48: 0.15 | R48: 1 | S48: 1 | T48: 1 | U48: 47 | V48: 0.15 | W48: =IF(V48="","",IFERROR(HLOOKUP($V48,$O48:$Q$2000,(2000-$U48),FALSE),"")) -> 2 | X48: 2X | Z48: X2 | AA48: 12 ÇS | AB48: NB | AC48: NB
A49: 2019-12-06T17:00:00 | B49: ARG RESL | C49: Colon Reserves | D49: CA Aldosivi Reserves | E49: 1.75 | F49: 3.4 | G49: 4 | H49: 1.66 | I49: 3.5 | J49: 4.5 | K49: 0.8964 | L49: 0.9006 | N49: -0.0042 | O49: 0.09 | P49: -0.1 | Q49: -0.5 | R49: 0 | S49: 0 | T49: 0 | U49: 48 | V49: 0.09 | W49: =IF(V49="","",IFERROR(HLOOKUP($V49,$O49:$Q$2000,(2000-$U49),FALSE),"")) -> 1 | X49: 1X | Z49: 1X | AA49: NB | AB49: MS2 | AC49: 12 ÇS
A50: 2019-12-06T17:00:00 | B50: ARG RESL | C50: Defensa y Justicia Reserves | D50: Godoy Cruz Reserves | E50: 2.4 | F50: 3.2 | G50: 2.6 | H50: 2.5 | I50: 3.2 | J50: 2.6 | K50: 0.8978 | L50: 0.9115 | N50: -0.0137 | O50: -0.1 | P50: 0 | Q50: 0 | R50: 1 | S50: 0 | T50: 1 | U50: 49 | V50: 0 | W50: =IF(V50="","",IFERROR(HLOOKUP($V50,$O50:$Q$2000,(2000-$U50),FALSE),"")) -> x | X50: XX | Z50: NB | AA50: NB | AB50: NB | AC50: NB
A51: 2019-12-06T17:00:00 | B51: ARG RESL | C51: Huracan Reserves | D51: Arsenal de Sarandi Reserves | E51: 2.37 | F51: 3.25 | G51: 2.62 | H51: 2.4 | I51: 3.5 | J51: 2.55 | K51: 0.8999 | L51: 0.9137 | N51: -0.0138 | O51: -0.03 | P51: -0.25 | Q51: 0.07 | R51: 0 | S51: 0 | T51: 1 | U51: 50 | V51: 0.07 | W51: =IF(V51="","",IFERROR(HLOOKUP($V51,$O51:$Q$2000,(2000-$U51),FALSE),"")) -> 2 | X51: 2X | Z51: MS1 | AA51: 12 ÇS | AB51: NB | AC51: 12 ÇS
A52: 2019-12-06T17:00:00 | B52: ARG RESL | C52: Lanus Reserves | D52: Racing Club Reserves | E52: 2.15 | F52: 3.3 | G52: 2.9 | H52: 2 | I52: 3.4 | J52: 3.4 | K52: 0.8985 | L52: 0.919 | N52: -0.0205 | O52: 0.15 | P52: -0.1 | Q52: -0.5 | R52: 0 | S52: 0 | T52: 1 | U52: 51 | V52: 0.15 | W52: =IF(V52="","",IFERROR(HLOOKUP($V52,$O52:$Q$2000,(2000-$U52),FALSE),"")) -> 1 | X52: 1X | Z52: MS1 | AA52: NB | AB52: MS2 | AC52: 12 ÇS
A53: 2019-12-06T17:00:00 | B53: ARG RESL | C53: CA Patronato Reserves | D53: Velez Sarsfield Reserves | E53: 2.75 | F53: 3.3 | G53: 2.25 | H53: 2.75 | I53: 3.3 | J53: 2.3 | K53: 0.9001 | L53: 0.9078 | N53: -0.0077 | O53: 0 | P53: 0 | Q53: -0.05 | R53: 0 | S53: 0 | T53: 1 | U53: 52 | V53: 0 | W53: =IF(V53="","",IFERROR(HLOOKUP($V53,$O53:$Q$2000,(2000-$U53),FALSE),"")) -> 1 | X53: 1X | Z53: NB | AA53: NB | AB53: NB | AC53: 12 ÇS
A54: 2019-12-06T17:00:00 | B54: ARG RESL | C54: River Plate R | D54: San Lorenzo Reserves | E54: 2.37 | F54: 3.25 | G54: 2.62 | H54: 2.87 | I54: 3.25 | J54: 2.25 | K54: 0.8999 | L54: 0.9086 | N54: -0.0087 | O54: -0.5 | P54: 0 | Q54: 0.37 | R54: 1 | S54: 0 | T54: 1 | U54: 53 | V54: 0.37 | W54: =IF(V54="","",IFERROR(HLOOKUP($V54,$O54:$Q$2000,(2000-$U54),FALSE),"")) -> 2 | X54: 2X | Z54: MS2 | AA54: NB | AB54: MS1 | AC54: NB
A55: 2019-12-06T17:00:00 | B55: ARG RESL | C55: Rosario Central Reserves | D55: Boca Juniors Reserve | E55: 3.3 | F55: 3.5 | G55: 1.9 | H55: 3 | I55: 3.4 | J55: 2.1 | K55: 0.8969 | L55: 0.906 | N55: -0.0091 | O55: 0.3 | P55: 0.1 | Q55: -0.2 | R55: 0 | S55: 0 | T55: 1 | U55: 54 | V55: 0.3 | W55: =IF(V55="","",IFERROR(HLOOKUP($V55,$O55:$Q$2000,(2000-$U55),FALSE),"")) -> 1 | X55: 1X | Z55: 1X | AA55: NB | AB55: MS2 | AC55: 12 ÇS
A56: 2019-12-06T17:00:00 | B56: HKEC | C56: Southern District | D56: Yuen Long FC | E56: 1.33 | F56: 5 | G56: 6 | H56: 1.4 | I56: 4.75 | J56: 5.75 | K56: 0.894 | L56: 0.9101 | N56: -0.0161 | O56: -0.07 | P56: 0.25 | Q56: 0.25 | R56: 0 | S56: 0 | T56: 0 | U56: 55 | V56: 0.25 | W56: =IF(V56="","",IFERROR(HLOOKUP($V56,$O56:$Q$2000,(2000-$U56),FALSE),"")) -> x | X56: XX | Z56: NB | AA56: NB | AB56: MS1 | AC56: NB
A57: 2019-12-06T17:00:00 | B57: Croatia U19 L | C57: NK Orijent U19 | D57: Dinamo ZagrebU19 | E57: 11 | F57: 8 | G57: 1.14 | H57: 12 | I57: 8.5 | J57: 1.12 | K57: 0.9152 | L57: 0.9144 | N57: 0.0008 | O57: -1 | P57: -0.5 | Q57: 0.02 | R57: 1 | S57: 1 | T57: 0 | U57: 56 | V57: 0.02 | W57: =IF(V57="","",IFERROR(HLOOKUP($V57,$O57:$Q$2000,(2000-$U57),FALSE),"")) -> 2 | X57: 2X | Z57: MS2 | AA57: NB | AB57: MS1 | AC57: NB
A58: 2019-12-06T17:30:00 | B58: ISR CL | C58: Ahi Acre | D58: Hapoel Bueine | E58: 5.25 | F58: 4.2 | G58: 1.5 | H58: 8 | I58: 4.75 | J58: 1.3 | K58: 0.913 | L58: 0.9048 | N58: 0.0082 | O58: -2.75 | P58: -0.55 | Q58: 0.2 | R58: 1 | S58: 1 | T58: 0 | U58: 57 | V58: 0.2 | W58: =IF(V58="","",IFERROR(HLOOKUP($V58,$O58:$Q$2000,(2000-$U58),FALSE),"")) -> 2 | X58: 2X | Z58: MS2 | AA58: NB | AB58: MS1 | AC58: NB
A59: 2019-12-06T17:30:00 | B59: ISR CL | C59: Tzeirei Sakhnin | D59: FC Achva Kfar Manda | E59: 2.3 | F59: 3.6 | G59: 2.6 | H59: 2.7 | I59: 3.6 | J59: 2.25 | K59: 0.9115 | L59: 0.9153 | N59: -0.0038 | O59: -0.4 | P59: 0 | Q59: 0.35 | R59: 1 | S59: 0 | T59: 1 | U59: 58 | V59: 0.35 | W59: =IF(V59="","",IFERROR(HLOOKUP($V59,$O59:$Q$2000,(2000-$U59),FALSE),"")) -> 2 | X59: 2X | Z59: MS2 | AA59: NB | AB59: MS1 | AC59: NB
A60: 2019-12-06T20:00:00 | B60: SPA D2 | C60: Racing Santander | D60: Fuenlabrada | E60: 2.5 | F60: 2.87 | G60: 3.2 | H60: 2.7 | I60: 2.87 | J60: 2.87 | K60: 0.9425 | L60: 0.9369 | N60: 0.0056 | O60: -0.2 | P60: 0 | Q60: 0.33 | R60: 1 | S60: 1 | T60: 1 | U60: 59 | V60: 0.33 | W60: =IF(V60="","",IFERROR(HLOOKUP($V60,$O60:$Q$2000,(2000-$U60),FALSE),"")) -> 2 | X60: 2X | Z60: MS2 | AA60: 12 ÇS | AB60: 1X | AC60: NB
A61: 2019-12-06T20:00:00 | B61: SPA D3 | C61: Unionistas de Salamanca | D61: Real Valladol B | E61: 3.2 | F61: 3.3 | G61: 2.1 | H61: 3 | I61: 3.25 | J61: 2.2 | K61: 0.9158 | L61: 0.9129 | N61: 0.0029 | O61: 0.2 | P61: 0.05 | Q61: -0.1 | R61: 0 | S61: 1 | T61: 1 | U61: 60 | V61: 0.2 | W61: =IF(V61="","",IFERROR(HLOOKUP($V61,$O61:$Q$2000,(2000-$U61),FALSE),"")) -> 1 | X61: 1X | Z61: 1X | AA61: 12 ÇS | AB61: X2 | AC61: 12 ÇS
A62: 2019-12-06T20:59:00 | B62: TUR D2 | C62: Eskisehirspor | D62: Umraniyespor | E62: 2.55 | F62: 3.4 | G62: 2.37 | H62: 2.45 | I62: 3.4 | J62: 2.55 | K62: 0.9024 | L62: 0.9136 | N62: -0.0112 | O62: 0.1 | P62: 0 | Q62: -0.18 | R62: 0 | S62: 0 | T62: 1 | U62: 61 | V62: 0.1 | W62: =IF(V62="","",IFERROR(HLOOKUP($V62,$O62:$Q$2000,(2000-$U62),FALSE),"")) -> 1 | X62: 1X | Z62: NB | AA62: NB | AB62: X2 | AC62: 12 ÇS
A63: 2019-12-06T21:30:00 | B63: RUS PR | C63: Arsenal Tula | D63: Lokomotiv Moscow | E63: 3.8 | F63: 3.3 | G63: 2 | H63: 3.2 | I63: 3.3 | J63: 2.25 | K63: 0.9378 | L63: 0.9434 | N63: -0.0056 | O63: 0.6 | P63: 0 | Q63: -0.25 | R63: 0 | S63: 0 | T63: 0 | U63: 62 | V63: 0.6 | W63: =IF(V63="","",IFERROR(HLOOKUP($V63,$O63:$Q$2000,(2000-$U63),FALSE),"")) -> 1 | X63: 1X | Z63: MS1 | AA63: 12 ÇS | AB63: MS2 | AC63: 12 ÇS
A64: 2019-12-06T21:30:00 | B64: RUS PR | C64: Zenit St. Petersburg | D64: Dynamo Moscow | E64: 1.44 | F64: 4 | G64: 8 | H64: 1.55 | I64: 4 | J64: 6 | K64: 0.9351 | L64: 0.9418 | N64: -0.0067 | O64: -0.11 | P64: 0 | Q64: 2 | R64: 1 | S64: 0 | T64: 0 | U64: 63 | V64: 2 | W64: =IF(V64="","",IFERROR(HLOOKUP($V64,$O64:$Q$2000,(2000-$U64),FALSE),"")) -> 2 | X64: 2X | Z64: MS2 | AA64: 12 ÇS | AB64: 1X | AC64: NB
A65: 2019-12-06T21:30:00 | B65: SPA D3 | C65: Leioa | D65: Athletic Bilbao B | E65: 2.7 | F65: 3.4 | G65: 2.3 | H65: 2.6 | I65: 3.4 | J65: 2.37 | K65: 0.9096 | L65: 0.9084 | N65: 0.0012 | O65: 0.1 | P65: 0 | Q65: -0.07 | R65: 0 | S65: 1 | T65: 1 | U65: 64 | V65: 0.1 | W65: =IF(V65="","",IFERROR(HLOOKUP($V65,$O65:$Q$2000,(2000-$U65),FALSE),"")) -> 1 | X65: 1X | Z65: NB | AA65: 12 ÇS | AB65: NB | AC65: 12 ÇS
A66: 2019-12-06T21:30:00 | B66: SPA D3 | C66: Cultural Leonesa | D66: CF Salmantino | E66: 1.57 | F66: 3.6 | G66: 5.5 | H66: 1.55 | I66: 3.6 | J66: 5.75 | K66: 0.912 | L66: 0.9117 | N66: 0.0003 | O66: 0.02 | P66: 0 | Q66: -0.25 | R66: 0 | S66: 1 | T66: 0 | U66: 65 | V66: 0.02 | W66: =IF(V66="","",IFERROR(HLOOKUP($V66,$O66:$Q$2000,(2000-$U66),FALSE),"")) -> 1 | X66: 1X | Z66: NB | AA66: NB | AB66: MS2 | AC66: 12 ÇS
A67: 2019-12-06T22:00:00 | B67: GER Reg | C67: Hertha BSC Berlin Youth | D67: FC Lokomotive Leipzig | E67: 1.95 | F67: 3.6 | G67: 3 | H67: 2.55 | I67: 3.4 | J67: 2.45 | K67: 0.8898 | L67: 0.9137 | N67: -0.0239 | O67: -0.6 | P67: 0.2 | Q67: 0.55 | R67: 1 | S67: 0 | T67: 0 | U67: 66 | V67: 0.55 | W67: =IF(V67="","",IFERROR(HLOOKUP($V67,$O67:$Q$2000,(2000-$U67),FALSE),"")) -> 2 | X67: 2X | Z67: MS2 | AA67: NB | AB67: MS1 | AC67: NB
A68: 2019-12-06T22:00:00 | B68: POL PR | C68: Korona Kielce | D68: Arka Gdynia | E68: 2.05 | F68: 3.3 | G68: 3.6 | H68: 1.95 | I68: 3.3 | J68: 4 | K68: 0.9358 | L68: 0.9381 | N68: -0.0023 | O68: 0.1 | P68: 0 | Q68: -0.4 | R68: 0 | S68: 0 | T68: 0 | U68: 67 | V68: 0.1 | W68: =IF(V68="","",IFERROR(HLOOKUP($V68,$O68:$Q$2000,(2000-$U68),FALSE),"")) -> 1 | X68: 1X | Z68: NB | AA68: NB | AB68: MS2 | AC68: 12 ÇS
A69: 2019-12-06T22:00:00 | B69: CRO D1 | C69: Dinamo Zagreb | D69: NK Varteks Varazdin | E69: 1.1 | F69: 9 | G69: 21 | H69: 1.12 | I69: 8.5 | J69: 17 | K69: 0.9365 | L69: 0.9352 | N69: 0.0013 | O69: -0.02 | P69: 0.5 | Q69: 4 | R69: 0 | S69: 1 | T69: 0 | U69: 68 | V69: 4 | W69: =IF(V69="","",IFERROR(HLOOKUP($V69,$O69:$Q$2000,(2000-$U69),FALSE),"")) -> 2 | X69: 2X | Z69: MS2 | AA69: 12 ÇS | AB69: MS1 | AC69: NB
A70: 2019-12-06T22:30:00 | B70: GER D2 | C70: Hamburger SV | D70: Heidenheimer | E70: 1.65 | F70: 3.8 | G70: 5 | H70: 1.55 | I70: 4 | J70: 5.75 | K70: 0.9352 | L70: 0.9354 | N70: -0.0002 | O70: 0.1 | P70: -0.2 | Q70: -0.75 | R70: 0 | S70: 0 | T70: 0 | U70: 69 | V70: 0.1 | W70: =IF(V70="","",IFERROR(HLOOKUP($V70,$O70:$Q$2000,(2000-$U70),FALSE),"")) -> 1 | X70: 1X | Z70: MS1 | AA70: NB | AB70: MS2 | AC70: 12 ÇS
A71: 2019-12-06T22:30:00 | B71: GER D2 | C71: Arminia Bielefeld | D71: Karlsruher SC | E71: 1.61 | F71: 4.2 | G71: 4.75 | H71: 1.66 | I71: 4.2 | J71: 4.5 | K71: 0.9348 | L71: 0.9411 | N71: -0.0063 | O71: -0.05 | P71: 0 | Q71: 0.25 | R71: 0 | S71: 0 | T71: 0 | U71: 70 | V71: 0.25 | W71: =IF(V71="","",IFERROR(HLOOKUP($V71,$O71:$Q$2000,(2000-$U71),FALSE),"")) -> 2 | X71: 2X | Z71: MS2 | AA71: 12 ÇS | AB71: NB | AC71: NB
A72: 2019-12-06T22:30:00 | B72: SPA D2 | C72: AD Alcorcon | D72: Real Oviedo | E72: 2.1 | F72: 2.9 | G72: 4.2 | H72: 2.2 | I72: 2.87 | J72: 3.8 | K72: 0.9442 | L72: 0.9379 | N72: =IF(K72="","",K72-L72) -> 0.0063 | O72: =IF(E72="","",(E72-H72)) -> -0.1 | P72: =IF(F72="","",(F72-I72)) -> 0.03 | Q72: =IF(G72="","",(G72-J72)) -> 0.4 | R72: =IF(O72="","",IF(O72<$R$6,1,0)) -> 1 | S72: =IF(N72="","",IF(N72>$S$6,1,0)) -> 1 | T72: =IF(E72="","",IF(AND(E72>=$T$3,E72<=$T$4),1,0)) -> 1 | U72: 71 | V72: =IFERROR(LARGE($O72:$Q72,1),"") -> 0.4 | W72: =IF(V72="","",IFERROR(HLOOKUP($V72,$O72:$Q$2000,(2000-$U72),FALSE),"")) -> 2 | X72: =IF(W72="","",IF(W72=1,"1X",IF(W72=2,"2X","XX"))) -> 2X | Y72: =IF(M72="","",IF(LEFT(M72,1)=RIGHT(M72,1),"X",IF(LEFT(M72,1)>RIGHT(M72,1),"1","2"))) ->  | Z72: =IF(O72-P72>0.2,"MS1",IF(O72-P72>0.1,"1X",IF(Q72-P72>0.2,"MS2",IF(Q72-P72>0.1,"X2","NB")))) -> MS2 | AA72: =IF(O72+Q72>P72,"12 ÇS","NB") -> 12 ÇS | AB72: =IF(P72-O72>0.2,"MS1",IF(P72-O72>0.1,"1X",IF(P72-Q72>0.2,"MS2",IF(P72-Q72>0.1,"X2","NB")))) -> 1X | AC72: =IF(O72-Q72>P72,"12 ÇS","NB") -> NB
A73: 2019-12-06T23:00:00 | B73: FRA D1 | C73: Lille | D73: Stade Brestois | E73: 1.44 | F73: 4.33 | G73: 7 | H73: 1.36 | I73: 4.75 | J73: 9.5 | K73: 0.9361 | L73: 0.9515 | N73: -0.0154 | O73: 0.08 | P73: -0.42 | Q73: -2.5 | R73: 0 | S73: 0 | T73: 0 | U73: =(U72+1) -> 72 | V73: 0.08 | W73: =IF(V73="","",IFERROR(HLOOKUP($V73,$O73:$Q$2000,(2000-$U73),FALSE),"")) -> 1 | X73: 1X | Z73: MS1 | AA73: NB | AB73: MS2 | AC73: 12 ÇS
A74: 2019-12-06T23:00:00 | B74: GER D3 | C74: Chemnitzer | D74: Zwickau | E74: 2.3 | F74: 3.6 | G74: 2.8 | H74: 2.2 | I74: 3.6 | J74: 3 | K74: 0.935 | L74: 0.9383 | N74: -0.0033 | O74: 0.1 | P74: 0 | Q74: -0.2 | R74: 0 | S74: 0 | T74: 1 | U74: 73 | V74: 0.1 | W74: =IF(V74="","",IFERROR(HLOOKUP($V74,$O74:$Q$2000,(2000-$U74),FALSE),"")) -> 1 | X74: 1X | Z74: NB | AA74: NB | AB74: X2 | AC74: 12 ÇS
A75: 2019-12-06T23:00:00 | B75: GER Reg | C75: BSV Rehden | D75: Havelse | E75: 2.1 | F75: 3.6 | G75: 2.8 | H75: 2.05 | I75: 3.6 | J75: 2.87 | K75: 0.9001 | L75: 0.8977 | N75: 0.0024 | O75: 0.05 | P75: 0 | Q75: -0.07 | R75: 0 | S75: 1 | T75: 1 | U75: 74 | V75: 0.05 | W75: =IF(V75="","",IFERROR(HLOOKUP($V75,$O75:$Q$2000,(2000-$U75),FALSE),"")) -> 1 | X75: 1X | Z75: NB | AA75: NB | AB75: NB | AC75: 12 ÇS
A76: 2019-12-06T23:00:00 | B76: DEN SASL | C76: Hobro | D76: AC Horsens | E76: 2.75 | F76: 3.3 | G76: 2.5 | H76: 2.62 | I76: 3.3 | J76: 2.6 | K76: 0.9375 | L76: 0.9351 | N76: 0.0024 | O76: 0.13 | P76: 0 | Q76: -0.1 | R76: 0 | S76: 1 | T76: 1 | U76: 75 | V76: 0.13 | W76: =IF(V76="","",IFERROR(HLOOKUP($V76,$O76:$Q$2000,(2000-$U76),FALSE),"")) -> 1 | X76: 1X | Z76: 1X | AA76: 12 ÇS | AB76: NB | AC76: 12 ÇS
A77: 2019-12-06T23:30:00 | B77: CZE D1 | C77: Slovan Liberec | D77: Slavia Praha | E77: 6.5 | F77: 4 | G77: 1.5 | H77: 5.5 | I77: 4 | J77: 1.57 | K77: 0.934 | L77: 0.9356 | N77: -0.0016 | O77: 1 | P77: 0 | Q77: -0.07 | R77: 0 | S77: 0 | T77: 0 | U77: 76 | V77: 1 | W77: =IF(V77="","",IFERROR(HLOOKUP($V77,$O77:$Q$2000,(2000-$U77),FALSE),"")) -> 1 | X77: 1X | Z77: MS1 | AA77: 12 ÇS | AB77: NB | AC77: 12 ÇS
A78: 2019-12-06T23:30:00 | B78: ROM D1 | C78: Steaua Bucuresti | D78: Gaz Metan Medias | E78: 1.61 | F78: 3.4 | G78: 5.5 | H78: 1.5 | I78: 3.6 | J78: 6.5 | K78: 0.9116 | L78: 0.9105 | N78: 0.0011 | O78: 0.11 | P78: -0.2 | Q78: -1 | R78: 0 | S78: 1 | T78: 0 | U78: 77 | V78: 0.11 | W78: =IF(V78="","",IFERROR(HLOOKUP($V78,$O78:$Q$2000,(2000-$U78),FALSE),"")) -> 1 | X78: 1X | Z78: MS1 | AA78: NB | AB78: MS2 | AC78: 12 ÇS
A79: 2019-12-07 | B79: FRA D3 | C79: Toulon | D79: Boulogne | E79: 2.7 | F79: 3 | G79: 2.45 | H79: 2.9 | I79: 3 | J79: 2.37 | K79: 0.8994 | L79: 0.9092 | N79: -0.0098 | O79: -0.2 | P79: 0 | Q79: 0.08 | R79: 1 | S79: 0 | T79: 1 | U79: 78 | V79: 0.08 | W79: =IF(V79="","",IFERROR(HLOOKUP($V79,$O79:$Q$2000,(2000-$U79),FALSE),"")) -> 2 | X79: 2X | Z79: NB | AA79: NB | AB79: 1X | AC79: NB
A80: 2019-12-07 | B80: HOL D2 | C80: Almere City FC | D80: FC Oss | E80: 1.72 | F80: 4 | G80: 4.2 | H80: 1.5 | I80: 4.5 | J80: 5.5 | K80: 0.935 | L80: 0.9339 | N80: 0.0011 | O80: 0.22 | P80: -0.5 | Q80: -1.3 | R80: 0 | S80: 1 | T80: 0 | U80: 79 | V80: 0.22 | W80: =IF(V80="","",IFERROR(HLOOKUP($V80,$O80:$Q$2000,(2000-$U80),FALSE),"")) -> 1 | X80: 1X | Z80: MS1 | AA80: NB | AB80: MS2 | AC80: 12 ÇS
A81: 2019-12-07 | B81: HOL D2 | C81: Den Bosch | D81: De Graafschap | E81: 3.6 | F81: 3.8 | G81: 1.9 | H81: 3.5 | I81: 3.9 | J81: 1.9 | K81: 0.9371 | L81: 0.9359 | N81: 0.0012 | O81: 0.1 | P81: -0.1 | Q81: 0 | R81: 0 | S81: 1 | T81: 1 | U81: 80 | V81: 0.1 | W81: =IF(V81="","",IFERROR(HLOOKUP($V81,$O81:$Q$2000,(2000-$U81),FALSE),"")) -> 1 | X81: 1X | Z81: 1X | AA81: 12 ÇS | AB81: NB | AC81: 12 ÇS
A82: 2019-12-07 | B82: HOL D2 | C82: Dordrecht | D82: SC Cambuur | E82: 6.5 | F82: 5 | G82: 1.4 | H82: 8.5 | I82: 5.5 | J82: 1.28 | K82: 0.936 | L82: 0.9257 | N82: 0.0103 | O82: -2 | P82: -0.5 | Q82: 0.12 | R82: 1 | S82: 1 | T82: 0 | U82: 81 | V82: 0.12 | W82: =IF(V82="","",IFERROR(HLOOKUP($V82,$O82:$Q$2000,(2000-$U82),FALSE),"")) -> 2 | X82: 2X | Z82: MS2 | AA82: NB | AB82: MS1 | AC82: NB
A83: 2019-12-07 | B83: HOL D2 | C83: FC Eindhoven | D83: Volendam | E83: 2.8 | F83: 3.75 | G83: 2.25 | H83: 3.8 | I83: 3.6 | J83: 1.9 | K83: 0.936 | L83: 0.9371 | N83: -0.0011 | O83: -1 | P83: 0.15 | Q83: 0.35 | R83: 1 | S83: 0 | T83: 1 | U83: 82 | V83: 0.35 | W83: =IF(V83="","",IFERROR(HLOOKUP($V83,$O83:$Q$2000,(2000-$U83),FALSE),"")) -> 2 | X83: 2X | Z83: X2 | AA83: NB | AB83: MS1 | AC83: NB
A84: 2019-12-07 | B84: HOL D2 | C84: Excelsior SBV | D84: NEC Nijmegen | E84: 2.05 | F84: 3.75 | G84: 3.2 | H84: 2.15 | I84: 3.8 | J84: 2.9 | K84: 0.9373 | L84: 0.9318 | N84: 0.0055 | O84: -0.1 | P84: -0.05 | Q84: 0.3 | R84: 1 | S84: 1 | T84: 0 | U84: 83 | V84: 0.3 | W84: =IF(V84="","",IFERROR(HLOOKUP($V84,$O84:$Q$2000,(2000-$U84),FALSE),"")) -> 2 | X84: 2X | Z84: MS2 | AA84: 12 ÇS | AB84: NB | AC84: NB
A85: 2019-12-07 | B85: HOL D2 | C85: Go Ahead Eagles | D85: Jong PSV Eindhoven (Youth) | E85: 1.45 | F85: 4.75 | G85: 6 | H85: 1.28 | I85: 5.5 | J85: 9.5 | K85: 0.9373 | L85: 0.9361 | N85: 0.0012 | O85: 0.17 | P85: -0.75 | Q85: -3.5 | R85: 0 | S85: 1 | T85: 0 | U85: 84 | V85: 0.17 | W85: =IF(V85="","",IFERROR(HLOOKUP($V85,$O85:$Q$2000,(2000-$U85),FALSE),"")) -> 1 | X85: 1X | Z85: MS1 | AA85: NB | AB85: MS2 | AC85: 12 ÇS
A86: 2019-12-07 | B86: HOL D2 | C86: MVV Maastricht | D86: FC Utrecht (Youth) | E86: 1.83 | F86: 4 | G86: 3.75 | H86: 1.85 | I86: 4 | J86: 3.6 | K86: 0.9406 | L86: 0.9361 | N86: 0.0045 | O86: -0.02 | P86: 0 | Q86: 0.15 | R86: 0 | S86: 1 | T86: 0 | U86: 85 | V86: 0.15 | W86: =IF(V86="","",IFERROR(HLOOKUP($V86,$O86:$Q$2000,(2000-$U86),FALSE),"")) -> 2 | X86: 2X | Z86: X2 | AA86: 12 ÇS | AB86: NB | AC86: NB
A87: 2019-12-07 | B87: SUI D1 | C87: Schaffhausen | D87: Aarau | E87: 2.87 | F87: 3.4 | G87: 2.2 | H87: 3.3 | I87: 3.5 | J87: 2 | K87: 0.9115 | L87: 0.9184 | N87: -0.0069 | O87: -0.43 | P87: -0.1 | Q87: 0.2 | R87: 1 | S87: 0 | T87: 1 | U87: 86 | V87: 0.2 | W87: =IF(V87="","",IFERROR(HLOOKUP($V87,$O87:$Q$2000,(2000-$U87),FALSE),"")) -> 2 | X87: 2X | Z87: MS2 | AA87: NB | AB87: MS1 | AC87: NB
A88: 2019-12-07T00:15:00 | B88: HOL D1 | C88: AFC Ajax | D88: Willem II | E88: 1.1 | F88: 9.5 | G88: 21 | H88: 1.08 | I88: 10 | J88: 23 | K88: 0.9416 | L88: 0.9351 | N88: 0.0065 | O88: 0.02 | P88: -0.5 | Q88: -2 | R88: 0 | S88: 1 | T88: 0 | U88: 87 | V88: 0.02 | W88: =IF(V88="","",IFERROR(HLOOKUP($V88,$O88:$Q$2000,(2000-$U88),FALSE),"")) -> 1 | X88: 1X | Z88: MS1 | AA88: NB | AB88: MS2 | AC88: 12 ÇS
A89: 2019-12-07T00:30:00 | B89: GER D1 | C89: Eintracht Frankfurt | D89: Hertha Berlin | E89: 1.83 | F89: 3.75 | G89: 4 | H89: 1.8 | I89: 3.9 | J89: 4.2 | K89: 0.9406 | L89: 0.9524 | N89: -0.0118 | O89: 0.03 | P89: -0.15 | Q89: -0.2 | R89: 0 | S89: 0 | T89: 0 | U89: 88 | V89: 0.03 | W89: =IF(V89="","",IFERROR(HLOOKUP($V89,$O89:$Q$2000,(2000-$U89),FALSE),"")) -> 1 | X89: 1X | Z89: 1X | AA89: NB | AB89: NB | AC89: 12 ÇS
A90: 2019-12-07T00:30:00 | B90: BEL D1 | C90: Red Star Waasland | D90: Royal Antwerp | E90: 5 | F90: 3.8 | G90: 1.66 | H90: 6 | I90: 4 | J90: 1.53 | K90: 0.9385 | L90: 0.9342 | N90: 0.0043 | O90: -1 | P90: -0.2 | Q90: 0.13 | R90: 1 | S90: 1 | T90: 0 | U90: 89 | V90: 0.13 | W90: =IF(V90="","",IFERROR(HLOOKUP($V90,$O90:$Q$2000,(2000-$U90),FALSE),"")) -> 2 | X90: 2X | Z90: MS2 | AA90: NB | AB90: MS1 | AC90: NB
A91: 2019-12-07T00:30:00 | B91: BEL D2 | C91: KVSK Lommel | D91: Oud Heverlee | E91: 2.75 | F91: 3.5 | G91: 2.15 | H91: 3.1 | I91: 3.4 | J91: 2.1 | K91: 0.8973 | L91: 0.9151 | N91: -0.0178 | O91: -0.35 | P91: 0.1 | Q91: 0.05 | R91: 1 | S91: 0 | T91: 1 | U91: 90 | V91: 0.1 | W91: =IF(V91="","",IFERROR(HLOOKUP($V91,$O91:$Q$2000,(2000-$U91),FALSE),"")) -> x | X91: XX | Z91: NB | AA91: NB | AB91: MS1 | AC91: NB
A92: 2019-12-07T00:30:00 | B92: POL PR | C92: Gornik Zabrze | D92: Wisla Krakow | E92: 1.85 | F92: 3.6 | G92: 4 | H92: 1.9 | I92: 3.6 | J92: 3.75 | K92: 0.9361 | L92: 0.9339 | N92: 0.0022 | O92: -0.05 | P92: 0 | Q92: 0.25 | R92: 0 | S92: 1 | T92: 0 | U92: 91 | V92: 0.25 | W92: =IF(V92="","",IFERROR(HLOOKUP($V92,$O92:$Q$2000,(2000-$U92),FALSE),"")) -> 2 | X92: 2X | Z92: MS2 | AA92: 12 ÇS | AB92: NB | AC92: NB
A93: 2019-12-07T00:45:00 | B93: ITA D1 | C93: Inter Milan | D93: AS Roma | E93: 1.83 | F93: 3.6 | G93: 4.33 | H93: 1.9 | I93: 3.8 | J93: 3.8 | K93: 0.9478 | L93: 0.95 | N93: -0.0022 | O93: -0.07 | P93: -0.2 | Q93: 0.53 | R93: 0 | S93: 0 | T93: 0 | U93: 92 | V93: 0.53 | W93: =IF(V93="","",IFERROR(HLOOKUP($V93,$O93:$Q$2000,(2000-$U93),FALSE),"")) -> 2 | X93: 2X | Z93: 1X | AA93: 12 ÇS | AB93: NB | AC93: NB
A94: 2019-12-07T00:45:00 | B94: FRA D1 | C94: Nimes | D94: Lyon | E94: 3.6 | F94: 3.75 | G94: 1.9 | H94: 4.33 | I94: 3.75 | J94: 1.8 | K94: 0.9338 | L94: 0.9496 | N94: -0.0158 | O94: -0.73 | P94: 0 | Q94: 0.1 | R94: 1 | S94: 0 | T94: 1 | U94: 93 | V94: 0.1 | W94: =IF(V94="","",IFERROR(HLOOKUP($V94,$O94:$Q$2000,(2000-$U94),FALSE),"")) -> 2 | X94: 2X | Z94: NB | AA94: NB | AB94: MS1 | AC94: NB
A95: 2019-12-07T00:45:00 | B95: ENG LCH | C95: Millwall | D95: Nottingham Forest | E95: 2.55 | F95: 3.3 | G95: 2.7 | H95: 2.5 | I95: 3.2 | J95: 3 | K95: 0.9384 | L95: 0.9562 | N95: -0.0178 | O95: 0.05 | P95: 0.1 | Q95: -0.3 | R95: 0 | S95: 0 | T95: 1 | U95: 94 | V95: 0.1 | W95: =IF(V95="","",IFERROR(HLOOKUP($V95,$O95:$Q$2000,(2000-$U95),FALSE),"")) -> x | X95: XX | Z95: NB | AA95: NB | AB95: MS2 | AC95: 12 ÇS
A96: 2019-12-07T01:00:00 | B96: SPA D1 | C96: Villarreal | D96: Atletico Madrid | E96: 2.87 | F96: 3 | G96: 2.6 | H96: 3.6 | I96: 3.3 | J96: 2.15 | K96: 0.9376 | L96: 0.9562 | N96: -0.0186 | O96: -0.73 | P96: -0.3 | Q96: 0.45 | R96: 1 | S96: 0 | T96: 1 | U96: 95 | V96: 0.45 | W96: =IF(V96="","",IFERROR(HLOOKUP($V96,$O96:$Q$2000,(2000-$U96),FALSE),"")) -> 2 | X96: 2X | Z96: MS2 | AA96: 12 ÇS | AB96: MS1 | AC96: NB
A97: 2019-12-07T01:00:00 | B97: SPA D2 | C97: Malaga | D97: Tenerife | E97: 2.05 | F97: 3.1 | G97: 4 | H97: 1.9 | I97: 3.2 | J97: 4.33 | K97: 0.943 | L97: 0.9348 | N97: 0.0082 | O97: 0.15 | P97: -0.1 | Q97: -0.33 | R97: 0 | S97: 1 | T97: 0 | U97: 96 | V97: 0.15 | W97: =IF(V97="","",IFERROR(HLOOKUP($V97,$O97:$Q$2000,(2000-$U97),FALSE),"")) -> 1 | X97: 1X | Z97: MS1 | AA97: NB | AB97: MS2 | AC97: 12 ÇS
A98: 2019-12-07T01:30:00 | B98: POR D1 | C98: Boavista FC | D98: Benfica | E98: 7 | F98: 4 | G98: 1.5 | H98: 7 | I98: 3.6 | J98: 1.55 | K98: 0.9436 | L98: 0.938 | N98: 0.0056 | O98: 0 | P98: 0.4 | Q98: -0.05 | R98: 0 | S98: 1 | T98: 0 | U98: 97 | V98: 0.4 | W98: =IF(V98="","",IFERROR(HLOOKUP($V98,$O98:$Q$2000,(2000-$U98),FALSE),"")) -> x | X98: XX | Z98: NB | AA98: NB | AB98: MS1 | AC98: NB
A99: 2019-12-07T03:00:00 | B99: ARG D1 | C99: Colon de Santa Fe | D99: Aldosivi Mar del Plata | E99: 1.7 | F99: 3.5 | G99: 5.25 | H99: 1.75 | I99: 3.4 | J99: 5 | K99: 0.9394 | L99: 0.9385 | N99: 0.0009 | O99: -0.05 | P99: 0.1 | Q99: 0.25 | R99: 0 | S99: 1 | T99: 0 | U99: 98 | V99: 0.25 | W99: =IF(V99="","",IFERROR(HLOOKUP($V99,$O99:$Q$2000,(2000-$U99),FALSE),"")) -> 2 | X99: 2X | Z99: X2 | AA99: 12 ÇS | AB99: 1X | AC99: NB
A100: 2019-12-07T05:10:00 | B100: ARG D1 | C100: Independiente | D100: Banfield | E100: 1.85 | F100: 3.2 | G100: 4.75 | H100: 2 | I100: 3.1 | J100: 4.2 | K100: 0.9402 | L100: 0.9428 | N100: -0.0026 | O100: -0.15 | P100: 0.1 | Q100: 0.55 | R100: 1 | S100: 0 | T100: 0 | U100: 99 | V100: 0.55 | W100: =IF(V100="","",IFERROR(HLOOKUP($V100,$O100:$Q$2000,(2000-$U100),FALSE),"")) -> 2 | X100: 2X | Z100: MS2 | AA100: 12 ÇS | AB100: MS1 | AC100: NB
A101: 2019-12-07T10:00:00 | B101: JPN D1 | C101: Vissel Kobe | D101: Jubilo Iwata | E101: 2 | F101: 3.5 | G101: 3.6 | H101: 1.66 | I101: 3.8 | J101: 5 | K101: 0.9402 | L101: 0.9384 | N101: 0.0018 | O101: 0.34 | P101: -0.3 | Q101: -1.4 | R101: 0 | S101: 1 | T101: 0 | U101: 100 | V101: 0.34 | W101: =IF(V101="","",IFERROR(HLOOKUP($V101,$O101:$Q$2000,(2000-$U101),FALSE),"")) -> 1 | X101: 1X | Z101: MS1 | AA101: NB | AB101: MS2 | AC101: 12 ÇS
A102: 2019-12-07T10:00:00 | B102: JPN D1 | C102: Urawa Red Diamonds | D102: Gamba Osaka | E102: 2.15 | F102: 3.4 | G102: 3.25 | H102: 2.25 | I102: 3.4 | J102: 3.1 | K102: 0.9372 | L102: 0.9423 | N102: -0.0051 | O102: -0.1 | P102: 0 | Q102: 0.15 | R102: 1 | S102: 0 | T102: 1 | U102: 101 | V102: 0.15 | W102: =IF(V102="","",IFERROR(HLOOKUP($V102,$O102:$Q$2000,(2000-$U102),FALSE),"")) -> 2 | X102: 2X | Z102: X2 | AA102: 12 ÇS | AB102: NB | AC102: NB
A103: 2019-12-07T10:00:00 | B103: JPN D1 | C103: Nagoya Grampus | D103: Kashima Antlers | E103: 3.2 | F103: 3.4 | G103: 2.2 | H103: 3 | I103: 3.4 | J103: 2.3 | K103: 0.9424 | L103: 0.9414 | N103: 0.001 | O103: 0.2 | P103: 0 | Q103: -0.1 | R103: 0 | S103: 1 | T103: 1 | U103: 102 | V103: 0.2 | W103: =IF(V103="","",IFERROR(HLOOKUP($V103,$O103:$Q$2000,(2000-$U103),FALSE),"")) -> 1 | X103: 1X | Z103: 1X | AA103: 12 ÇS | AB103: NB | AC103: 12 ÇS
A104: 2019-12-07T10:00:00 | B104: JPN D1 | C104: Oita Trinita | D104: Cerezo Osaka | E104: 2.7 | F104: 3.1 | G104: 2.7 | H104: 3.4 | I104: 3.1 | J104: 2.2 | K104: 0.9404 | L104: 0.9336 | N104: 0.0068 | O104: -0.7 | P104: 0 | Q104: 0.5 | R104: 1 | S104: 1 | T104: 1 | U104: 103 | V104: 0.5 | W104: =IF(V104="","",IFERROR(HLOOKUP($V104,$O104:$Q$2000,(2000-$U104),FALSE),"")) -> 2 | X104: 2X | Z104: MS2 | AA104: NB | AB104: MS1 | AC104: NB
A105: 2019-12-07T10:00:00 | B105: JPN D1 | C105: Shimizu S-Pulse | D105: Sagan Tosu | E105: 2.25 | F105: 3.3 | G105: 3.2 | H105: 2.2 | I105: 3.3 | J105: 3.25 | K105: 0.9434 | L105: 0.9387 | N105: 0.0047 | O105: 0.05 | P105: 0 | Q105: -0.05 | R105: 0 | S105: 1 | T105: 1 | U105: 104 | V105: 0.05 | W105: =IF(V105="","",IFERROR(HLOOKUP($V105,$O105:$Q$2000,(2000-$U105),FALSE),"")) -> 1 | X105: 1X | Z105: NB | AA105: NB | AB105: NB | AC105: 12 ÇS
A106: 2019-12-07T10:00:00 | B106: JPN D1 | C106: Hiroshima Sanfrecce | D106: Vegalta Sendai | E106: 2 | F106: 3.4 | G106: 3.75 | H106: 1.75 | I106: 3.75 | J106: 4.33 | K106: 0.9426 | L106: 0.9354 | N106: 0.0072 | O106: 0.25 | P106: -0.35 | Q106: -0.58 | R106: 0 | S106: 1 | T106: 0 | U106: 105 | V106: 0.25 | W106: =IF(V106="","",IFERROR(HLOOKUP($V106,$O106:$Q$2000,(2000-$U106),FALSE),"")) -> 1 | X106: 1X | Z106: MS1 | AA106: 12 ÇS | AB106: MS2 | AC106: 12 ÇS
A107: 2019-12-07T10:00:00 | B107: JPN D1 | C107: Consadole Sapporo | D107: Kawasaki Frontale | E107: 3.75 | F107: 3.6 | G107: 1.9 | H107: 3.8 | I107: 3.8 | J107: 1.85 | K107: 0.9338 | L107: 0.9375 | N107: -0.0037 | O107: -0.05 | P107: -0.2 | Q107: 0.05 | R107: 0 | S107: 0 | T107: 0 | U107: 106 | V107: 0.05 | W107: =IF(V107="","",IFERROR(HLOOKUP($V107,$O107:$Q$2000,(2000-$U107),FALSE),"")) -> 2 | X107: 2X | Z107: 1X | AA107: 12 ÇS | AB107: NB | AC107: 12 ÇS
A108: 2019-12-07T10:00:00 | B108: JPN D1 | C108: Yokohama Marinos | D108: FC Tokyo | E108: 2.15 | F108: 3.4 | G108: 3.25 | H108: 2.05 | I108: 3.5 | J108: 3.4 | K108: 0.9372 | L108: 0.9366 | N108: 0.0006 | O108: 0.1 | P108: -0.1 | Q108: -0.15 | R108: 0 | S108: 1 | T108: 1 | U108: 107 | V108: 0.1 | W108: =IF(V108="","",IFERROR(HLOOKUP($V108,$O108:$Q$2000,(2000-$U108),FALSE),"")) -> 1 | X108: 1X | Z108: 1X | AA108: 12 ÇS | AB108: NB | AC108: 12 ÇS
A109: 2019-12-07T11:00:00 | B109: AUS D1 | C109: Wellington Phoenix | D109: Western Sydney | E109: 2.45 | F109: 3.5 | G109: 2.7 | H109: 2.25 | I109: 3.75 | J109: 2.9 | K109: 0.9396 | L109: 0.947 | N109: -0.0074 | O109: 0.2 | P109: -0.25 | Q109: -0.2 | R109: 0 | S109: 0 | T109: 1 | U109: 108 | V109: 0.2 | W109: =IF(V109="","",IFERROR(HLOOKUP($V109,$O109:$Q$2000,(2000-$U109),FALSE),"")) -> 1 | X109: 1X | Z109: MS1 | AA109: 12 ÇS | AB109: NB | AC109: 12 ÇS
A110: 2019-12-07T13:30:00 | B110: AUS D1 | C110: Sydney FC | D110: Brisbane Roar | E110: 1.4 | F110: 4.75 | G110: 7 | H110: 1.57 | I110: 4.33 | J110: 5.5 | K110: 0.9366 | L110: 0.9527 | N110: -0.0161 | O110: -0.17 | P110: 0.42 | Q110: 1.5 | R110: 1 | S110: 0 | T110: 0 | U110: 109 | V110: 1.5 | W110: =IF(V110="","",IFERROR(HLOOKUP($V110,$O110:$Q$2000,(2000-$U110),FALSE),"")) -> 2 | X110: 2X | Z110: MS2 | AA110: 12 ÇS | AB110: MS1 | AC110: NB
A111: 2019-12-07T16:00:00 | B111: RUS PR | C111: Spartak Tambov | D111: Gazovik Orenburg | E111: 2.7 | F111: 3.1 | G111: 2.7 | H111: 2.87 | I111: 3.1 | J111: 2.55 | K111: 0.9404 | L111: 0.9405 | N111: -0.0001 | O111: -0.17 | P111: 0 | Q111: 0.15 | R111: 1 | S111: 0 | T111: 1 | U111: 110 | V111: 0.15 | W111: =IF(V111="","",IFERROR(HLOOKUP($V111,$O111:$Q$2000,(2000-$U111),FALSE),"")) -> 2 | X111: 2X | Z111: X2 | AA111: NB | AB111: 1X | AC111: NB
A112: 2019-12-07T16:00:00 | B112: POR D2 | C112: Penafiel | D112: Porto B | E112: 1.95 | F112: 3.2 | G112: 3.4 | H112: 2 | I112: 3.5 | J112: 3.6 | K112: 0.8933 | L112: 0.9402 | N112: -0.0469 | O112: -0.05 | P112: -0.3 | Q112: -0.2 | R112: 0 | S112: 0 | T112: 0 | U112: 111 | V112: -0.05 | W112: =IF(V112="","",IFERROR(HLOOKUP($V112,$O112:$Q$2000,(2000-$U112),FALSE),"")) -> 1 | X112: 1X | Z112: MS1 | AA112: 12 ÇS | AB112: NB | AC112: 12 ÇS
A113: 2019-12-07T17:00:00 | B113: SPA D1 | C113: Real Madrid | D113: RCD Espanyol | E113: 1.16 | F113: 7.5 | G113: 13 | H113: 1.2 | I113: 7 | J113: 13 | K113: 0.9325 | L113: 0.9496 | N113: -0.0171 | O113: -0.04 | P113: 0.5 | Q113: 0 | R113: 0 | S113: 0 | T113: 0 | U113: 112 | V113: 0.5 | W113: =IF(V113="","",IFERROR(HLOOKUP($V113,$O113:$Q$2000,(2000-$U113),FALSE),"")) -> x | X113: XX | Z113: NB | AA113: NB | AB113: MS1 | AC113: NB
A114: 2019-12-07T17:00:00 | B114: GER D2 | C114: Greuther Furth | D114: VfL Bochum | E114: 2.4 | F114: 3.4 | G114: 2.87 | H114: 2.5 | I114: 3.4 | J114: 2.7 | K114: 0.9442 | L114: 0.9395 | N114: 0.0047 | O114: -0.1 | P114: 0 | Q114: 0.17 | R114: 1 | S114: 1 | T114: 1 | U114: 113 | V114: 0.17 | W114: =IF(V114="","",IFERROR(HLOOKUP($V114,$O114:$Q$2000,(2000-$U114),FALSE),"")) -> 2 | X114: 2X | Z114: X2 | AA114: 12 ÇS | AB114: NB | AC114: NB
A115: 2019-12-07T17:00:00 | B115: GER D2 | C115: Hannover 96 | D115: Erzgebirge Aue | E115: 1.75 | F115: 3.75 | G115: 4.33 | H115: 1.72 | I115: 3.75 | J115: 4.5 | K115: 0.9354 | L115: 0.9343 | N115: 0.0011 | O115: 0.03 | P115: 0 | Q115: -0.17 | R115: 0 | S115: 1 | T115: 0 | U115: 114 | V115: 0.03 | W115: =IF(V115="","",IFERROR(HLOOKUP($V115,$O115:$Q$2000,(2000-$U115),FALSE),"")) -> 1 | X115: 1X | Z115: NB | AA115: NB | AB115: X2 | AC115: 12 ÇS
A116: 2019-12-07T17:00:00 | B116: GER D2 | C116: Holstein Kiel | D116: VfL Osnabruck | E116: 1.75 | F116: 3.75 | G116: 4.33 | H116: 1.75 | I116: 3.8 | J116: 4.33 | K116: 0.9354 | L116: 0.9385 | N116: -0.0031 | O116: 0 | P116: -0.05 | Q116: 0 | R116: 0 | S116: 0 | T116: 0 | U116: 115 | V116: 0 | W116: =IF(V116="","",IFERROR(HLOOKUP($V116,$O116:$Q$2000,(2000-$U116),FALSE),"")) -> 1 | X116: 1X | Z116: NB | AA116: 12 ÇS | AB116: NB | AC116: 12 ÇS
A117: 2019-12-07T17:00:00 | B117: GER Reg | C117: Hannover 96 Am | D117: Heider SV | E117: 1.53 | F117: 4.2 | G117: 4.5 | H117: 1.44 | I117: 4.33 | J117: 6 | K117: 0.8978 | L117: 0.9157 | N117: -0.0179 | O117: 0.09 | P117: -0.13 | Q117: -1.5 | R117: 0 | S117: 0 | T117: 0 | U117: 116 | V117: 0.09 | W117: =IF(V117="","",IFERROR(HLOOKUP($V117,$O117:$Q$2000,(2000-$U117),FALSE),"")) -> 1 | X117: 1X | Z117: MS1 | AA117: NB | AB117: MS2 | AC117: 12 ÇS
A118: 2019-12-07T17:00:00 | B118: GER Reg | C118: Holstein Kiel II | D118: Eintracht Norderstedt | E118: 2.4 | F118: 3.6 | G118: 2.4 | H118: 2.25 | I118: 3.6 | J118: 2.55 | K118: 0.9 | L118: 0.8973 | N118: 0.0027 | O118: 0.15 | P118: 0 | Q118: -0.15 | R118: 0 | S118: 1 | T118: 1 | U118: 117 | V118: 0.15 | W118: =IF(V118="","",IFERROR(HLOOKUP($V118,$O118:$Q$2000,(2000-$U118),FALSE),"")) -> 1 | X118: 1X | Z118: 1X | AA118: NB | AB118: X2 | AC118: 12 ÇS
A119: 2019-12-07T17:00:00 | B119: TUR D1 | C119: Yeni Malatyaspor | D119: Sivasspor | E119: 2.25 | F119: 3.6 | G119: 2.9 | H119: 2.2 | I119: 3.6 | J119: 3 | K119: 0.9371 | L119: 0.9383 | N119: -0.0012 | O119: 0.05 | P119: 0 | Q119: -0.1 | R119: 0 | S119: 0 | T119: 1 | U119: 118 | V119: 0.05 | W119: =IF(V119="","",IFERROR(HLOOKUP($V119,$O119:$Q$2000,(2000-$U119),FALSE),"")) -> 1 | X119: 1X | Z119: NB | AA119: NB | AB119: NB | AC119: 12 ÇS
A120: 2019-12-07T17:30:00 | B120: ENG PR | C120: Everton | D120: Chelsea | E120: 3.4 | F120: 3.75 | G120: 2 | H120: 3.5 | I120: 3.75 | J120: 2 | K120: 0.9428 | L120: 0.9503 | N120: -0.0075 | O120: -0.1 | P120: 0 | Q120: 0 | R120: 1 | S120: 0 | T120: 1 | U120: 119 | V120: 0 | W120: =IF(V120="","",IFERROR(HLOOKUP($V120,$O120:$Q$2000,(2000-$U120),FALSE),"")) -> x | X120: XX | Z120: NB | AA120: NB | AB120: NB | AC120: NB
A121: 2019-12-07T17:30:00 | B121: ENG LCH | C121: Huddersfield Town | D121: Leeds United | E121: 4.5 | F121: 3.5 | G121: 1.8 | H121: 7 | I121: 4 | J121: 1.53 | K121: 0.9405 | L121: 0.9555 | N121: -0.015 | O121: -2.5 | P121: -0.5 | Q121: 0.27 | R121: 1 | S121: 0 | T121: 0 | U121: 120 | V121: 0.27 | W121: =IF(V121="","",IFERROR(HLOOKUP($V121,$O121:$Q$2000,(2000-$U121),FALSE),"")) -> 2 | X121: 2X | Z121: MS2 | AA121: NB | AB121: MS1 | AC121: NB
A122: 2019-12-07T17:30:00 | B122: GER Reg | C122: ETSV Weiche Flensburg | D122: Oldenburg | E122: 1.6 | F122: 4.2 | G122: 4.2 | H122: 1.61 | I122: 4.2 | J122: 4.2 | K122: 0.9082 | L122: 0.9113 | N122: -0.0031 | O122: -0.01 | P122: 0 | Q122: 0 | R122: 0 | S122: 0 | T122: 0 | U122: 121 | V122: 0 | W122: =IF(V122="","",IFERROR(HLOOKUP($V122,$O122:$Q$2000,(2000-$U122),FALSE),"")) -> x | X122: XX | Z122: NB | AA122: NB | AB122: NB | AC122: NB
A123: 2019-12-07T17:30:00 | B123: GER Reg | C123: VSG Altglienicke | D123: Energie Cottbus | E123: 2.15 | F123: 3.75 | G123: 2.62 | H123: 2.6 | I123: 3.4 | J123: 2.4 | K123: 0.8981 | L123: 0.9129 | N123: -0.0148 | O123: -0.45 | P123: 0.35 | Q123: 0.22 | R123: 1 | S123: 0 | T123: 1 | U123: 122 | V123: 0.35 | W123: =IF(V123="","",IFERROR(HLOOKUP($V123,$O123:$Q$2000,(2000-$U123),FALSE),"")) -> x | X123: XX | Z123: NB | AA123: NB | AB123: MS1 | AC123: NB
A124: 2019-12-07T17:30:00 | B124: GER Reg | C124: Bischofswerdaer FV | D124: Berliner AK 07 | E124: 5 | F124: 4.75 | G124: 1.44 | H124: 5.25 | I124: 4.75 | J124: 1.44 | K124: 0.905 | L124: 0.913 | N124: -0.008 | O124: -0.25 | P124: 0 | Q124: 0 | R124: 1 | S124: 0 | T124: 0 | U124: 123 | V124: 0 | W124: =IF(V124="","",IFERROR(HLOOKUP($V124,$O124:$Q$2000,(2000-$U124),FALSE),"")) -> x | X124: XX | Z124: NB | AA124: NB | AB124: MS1 | AC124: NB
A125: 2019-12-07T18:00:00 | B125: GER D3 | C125: TSV 1860 Munchen | D125: SG Sonnenhof Grossaspach | E125: 1.75 | F125: 3.75 | G125: 4.5 | H125: 1.66 | I125: 3.8 | J125: 5 | K125: 0.9431 | L125: 0.9384 | N125: 0.0047 | O125: 0.09 | P125: -0.05 | Q125: -0.5 | R125: 0 | S125: 1 | T125: 0 | U125: 124 | V125: 0.09 | W125: =IF(V125="","",IFERROR(HLOOKUP($V125,$O125:$Q$2000,(2000-$U125),FALSE),"")) -> 1 | X125: 1X | Z125: 1X | AA125: NB | AB125: MS2 | AC125: 12 ÇS
A126: 2019-12-07T18:00:00 | B126: GER D3 | C126: Uerdingen KFC 05 | D126: Hansa Rostock | E126: 2.7 | F126: 3.5 | G126: 2.45 | H126: 3 | I126: 3.5 | J126: 2.25 | K126: 0.9396 | L126: 0.9402 | N126: -0.0006 | O126: -0.3 | P126: 0 | Q126: 0.2 | R126: 1 | S126: 0 | T126: 1 | U126: 125 | V126: 0.2 | W126: =IF(V126="","",IFERROR(HLOOKUP($V126,$O126:$Q$2000,(2000-$U126),FALSE),"")) -> 2 | X126: 2X | Z126: X2 | AA126: NB | AB126: MS1 | AC126: NB
A127: 2019-12-07T18:00:00 | B127: GER D3 | C127: Wurzburger Kickers | D127: Viktoria koln | E127: 1.75 | F127: 3.8 | G127: 4.33 | H127: 1.7 | I127: 3.8 | J127: 4.5 | K127: 0.9385 | L127: 0.9314 | N127: 0.0071 | O127: 0.05 | P127: 0 | Q127: -0.17 | R127: 0 | S127: 1 | T127: 0 | U127: 126 | V127: 0.05 | W127: =IF(V127="","",IFERROR(HLOOKUP($V127,$O127:$Q$2000,(2000-$U127),FALSE),"")) -> 1 | X127: 1X | Z127: NB | AA127: NB | AB127: X2 | AC127: 12 ÇS
A128: 2019-12-07T18:00:00 | B128: GER D3 | C128: Carl Zeiss Jena | D128: Unterhaching | E128: 3.25 | F128: 3.5 | G128: 2.1 | H128: 2.9 | I128: 3.5 | J128: 2.3 | K128: 0.935 | L128: 0.9387 | N128: -0.0037 | O128: 0.35 | P128: 0 | Q128: -0.2 | R128: 0 | S128: 0 | T128: 1 | U128: 127 | V128: 0.35 | W128: =IF(V128="","",IFERROR(HLOOKUP($V128,$O128:$Q$2000,(2000-$U128),FALSE),"")) -> 1 | X128: 1X | Z128: MS1 | AA128: 12 ÇS | AB128: X2 | AC128: 12 ÇS
A129: 2019-12-07T18:00:00 | B129: GER D3 | C129: Kaiserslautern | D129: Hallescher FC | E129: 2.6 | F129: 3.25 | G129: 2.7 | H129: 2.45 | I129: 3.25 | J129: 2.87 | K129: 0.9409 | L129: 0.9396 | N129: 0.0013 | O129: 0.15 | P129: 0 | Q129: -0.17 | R129: 0 | S129: 1 | T129: 1 | U129: 128 | V129: 0.15 | W129: =IF(V129="","",IFERROR(HLOOKUP($V129,$O129:$Q$2000,(2000-$U129),FALSE),"")) -> 1 | X129: 1X | Z129: 1X | AA129: NB | AB129: X2 | AC129: 12 ÇS
A130: 2019-12-07T18:00:00 | B130: GER D3 | C130: Magdeburg | D130: Ingolstadt | E130: 2.37 | F130: 3.5 | G130: 2.8 | H130: 2.2 | I130: 3.5 | J130: 3.1 | K130: 0.9392 | L130: 0.9409 | N130: -0.0017 | O130: 0.17 | P130: 0 | Q130: -0.3 | R130: 0 | S130: 0 | T130: 1 | U130: 129 | V130: 0.17 | W130: =IF(V130="","",IFERROR(HLOOKUP($V130,$O130:$Q$2000,(2000-$U130),FALSE),"")) -> 1 | X130: 1X | Z130: 1X | AA130: NB | AB130: MS2 | AC130: 12 ÇS
A131: 2019-12-07T18:00:00 | B131: GER Reg | C131: FC Hansa Luneburg | D131: SV Drochtersen/Assel | E131: 2.8 | F131: 4 | G131: 2 | H131: 2.75 | I131: 4 | J131: 2.1 | K131: 0.9033 | L131: 0.9177 | N131: -0.0144 | O131: 0.05 | P131: 0 | Q131: -0.1 | R131: 0 | S131: 0 | T131: 1 | U131: 130 | V131: 0.05 | W131: =IF(V131="","",IFERROR(HLOOKUP($V131,$O131:$Q$2000,(2000-$U131),FALSE),"")) -> 1 | X131: 1X | Z131: NB | AA131: NB | AB131: NB | AC131: 12 ÇS
A132: 2019-12-07T18:00:00 | B132: GER Reg | C132: Alemannia Aachen | D132: Wuppertaler SV Borussia | E132: 1.36 | F132: 5.25 | G132: 6 | H132: 1.33 | I132: 5.25 | J132: 6.5 | K132: 0.9154 | L132: 0.9122 | N132: 0.0032 | O132: 0.03 | P132: 0 | Q132: -0.5 | R132: 0 | S132: 1 | T132: 0 | U132: 131 | V132: 0.03 | W132: =IF(V132="","",IFERROR(HLOOKUP($V132,$O132:$Q$2000,(2000-$U132),FALSE),"")) -> 1 | X132: 1X | Z132: NB | AA132: NB | AB132: MS2 | AC132: 12 ÇS
A133: 2019-12-07T18:00:00 | B133: GER Reg | C133: TuS Haltern | D133: Sportfreunde Lotte | E133: 2.55 | F133: 3.6 | G133: 2.25 | H133: 2.75 | I133: 3.6 | J133: 2.2 | K133: 0.8973 | L133: 0.9125 | N133: -0.0152 | O133: -0.2 | P133: 0 | Q133: 0.05 | R133: 1 | S133: 0 | T133: 1 | U133: 132 | V133: 0.05 | W133: =IF(V133="","",IFERROR(HLOOKUP($V133,$O133:$Q$2000,(2000-$U133),FALSE),"")) -> 2 | X133: 2X | Z133: NB | AA133: NB | AB133: 1X | AC133: NB
A134: 2019-12-07T18:00:00 | B134: GER Reg | C134: Bahlinger | D134: TSG Hoffenheim (Youth) | E134: 2.05 | F134: 3.75 | G134: 2.75 | H134: 2.37 | I134: 3.75 | J134: 2.37 | K134: 0.8944 | L134: 0.9004 | N134: -0.006 | O134: -0.32 | P134: 0 | Q134: 0.38 | R134: 1 | S134: 0 | T134: 0 | U134: 133 | V134: 0.38 | W134: =IF(V134="","",IFERROR(HLOOKUP($V134,$O134:$Q$2000,(2000-$U134),FALSE),"")) -> 2 | X134: 2X | Z134: MS2 | AA134: 12 ÇS | AB134: MS1 | AC134: NB
A135: 2019-12-07T18:00:00 | B135: GER Reg | C135: Bayern Alzenau | D135: TSV Steinbach | E135: 3.25 | F135: 4 | G135: 1.83 | H135: 3.5 | I135: 4 | J135: 1.8 | K135: 0.9058 | L135: 0.9163 | N135: -0.0105 | O135: -0.25 | P135: 0 | Q135: 0.03 | R135: 1 | S135: 0 | T135: 1 | U135: 134 | V135: 0.03 | W135: =IF(V135="","",IFERROR(HLOOKUP($V135,$O135:$Q$2000,(2000-$U135),FALSE),"")) -> 2 | X135: 2X | Z135: NB | AA135: NB | AB135: MS1 | AC135: NB
A136: 2019-12-07T18:00:00 | B136: GER Reg | C136: SSV Ulm 1846 | D136: FC 08 Hombrug | E136: 2.25 | F136: 4 | G136: 2.4 | H136: 2.2 | I136: 4.5 | J136: 2.37 | K136: 0.9 | L136: 0.9101 | N136: =IF(K136="","",K136-L136) -> -0.0101 | O136: =IF(E136="","",(E136-H136)) -> 0.05 | P136: =IF(F136="","",(F136-I136)) -> -0.5 | Q136: =IF(G136="","",(G136-J136)) -> 0.03 | R136: =IF(O136="","",IF(O136<$R$6,1,0)) -> 0 | S136: =IF(N136="","",IF(N136>$S$6,1,0)) -> 0 | T136: =IF(E136="","",IF(AND(E136>=$T$3,E136<=$T$4),1,0)) -> 1 | U136: 135 | V136: =IFERROR(LARGE($O136:$Q136,1),"") -> 0.05 | W136: =IF(V136="","",IFERROR(HLOOKUP($V136,$O136:$Q$2000,(2000-$U136),FALSE),"")) -> 1 | X136: =IF(W136="","",IF(W136=1,"1X",IF(W136=2,"2X","XX"))) -> 1X | Y136: =IF(M136="","",IF(LEFT(M136,1)=RIGHT(M136,1),"X",IF(LEFT(M136,1)>RIGHT(M136,1),"1","2"))) ->  | Z136: =IF(O136-P136>0.2,"MS1",IF(O136-P136>0.1,"1X",IF(Q136-P136>0.2,"MS2",IF(Q136-P136>0.1,"X2","NB")))) -> MS1 | AA136: =IF(O136+Q136>P136,"12 ÇS","NB") -> 12 ÇS | AB136: =IF(P136-O136>0.2,"MS1",IF(P136-O136>0.1,"1X",IF(P136-Q136>0.2,"MS2",IF(P136-Q136>0.1,"X2","NB")))) -> NB | AC136: =IF(O136-Q136>P136,"12 ÇS","NB") -> 12 ÇS
A137: 2019-12-07T18:00:00 | B137: GER Reg | C137: VFB Homberg | D137: Bergisch Gladbach 09 | E137: 1.66 | F137: 4.33 | G137: 3.75 | H137: 1.9 | I137: 4 | J137: 3 | K137: 0.909 | L137: 0.9012 | N137: 0.0078 | O137: -0.24 | P137: 0.33 | Q137: 0.75 | R137: 1 | S137: 1 | T137: 0 | U137: =(U136+1) -> 136 | V137: 0.75 | W137: =IF(V137="","",IFERROR(HLOOKUP($V137,$O137:$Q$2000,(2000-$U137),FALSE),"")) -> 2 | X137: 2X | Z137: MS2 | AA137: 12 ÇS | AB137: MS1 | AC137: NB
A138: 2019-12-07T18:00:00 | B138: GER Reg | C138: Vfr Aalen | D138: Kickers Offenbach | E138: 2.55 | F138: 3.5 | G138: 2.3 | H138: 2.87 | I138: 3.5 | J138: 2.1 | K138: 0.8989 | L138: 0.9006 | N138: -0.0017 | O138: -0.32 | P138: 0 | Q138: 0.2 | R138: 1 | S138: 0 | T138: 1 | U138: 137 | V138: 0.2 | W138: =IF(V138="","",IFERROR(HLOOKUP($V138,$O138:$Q$2000,(2000-$U138),FALSE),"")) -> 2 | X138: 2X | Z138: X2 | AA138: NB | AB138: MS1 | AC138: NB
A139: 2019-12-07T18:00:00 | B139: GER Reg | C139: Astoria Walldorf | D139: TSG Balingen | E139: 1.66 | F139: 3.8 | G139: 4 | H139: 1.7 | I139: 4 | J139: 3.8 | K139: 0.8964 | L139: 0.908 | N139: -0.0116 | O139: -0.04 | P139: -0.2 | Q139: 0.2 | R139: 0 | S139: 0 | T139: 0 | U139: 138 | V139: 0.2 | W139: =IF(V139="","",IFERROR(HLOOKUP($V139,$O139:$Q$2000,(2000-$U139),FALSE),"")) -> 2 | X139: 2X | Z139: 1X | AA139: 12 ÇS | AB139: NB | AC139: NB
A140: 2019-12-07T18:00:00 | B140: GER Reg | C140: FSV Mainz 05 (Youth) | D140: FSV Frankfurt | E140: 1.9 | F140: 3.6 | G140: 3.25 | H140: 1.95 | I140: 3.6 | J140: 3.25 | K140: 0.8995 | L140: 0.9105 | N140: -0.011 | O140: -0.05 | P140: 0 | Q140: 0 | R140: 0 | S140: 0 | T140: 0 | U140: 139 | V140: 0 | W140: =IF(V140="","",IFERROR(HLOOKUP($V140,$O140:$Q$2000,(2000-$U140),FALSE),"")) -> x | X140: XX | Z140: NB | AA140: NB | AB140: NB | AC140: NB
A141: 2019-12-07T18:30:00 | B141: CZE D1 | C141: Opava | D141: Baumit Jablonec | E141: 3.75 | F141: 3.2 | G141: 2.05 | H141: 4 | I141: 3.1 | J141: 2.05 | K141: 0.9371 | L141: 0.9432 | N141: -0.0061 | O141: -0.25 | P141: 0.1 | Q141: 0 | R141: 1 | S141: 0 | T141: 0 | U141: 140 | V141: 0.1 | W141: =IF(V141="","",IFERROR(HLOOKUP($V141,$O141:$Q$2000,(2000-$U141),FALSE),"")) -> x | X141: XX | Z141: NB | AA141: NB | AB141: MS1 | AC141: NB
A142: 2019-12-07T18:30:00 | B142: CZE D1 | C142: Teplice | D142: Tescoma Zlin | E142: 1.9 | F142: 3.25 | G142: 4.2 | H142: 2 | I142: 3.2 | J142: 4 | K142: 0.9327 | L142: 0.9412 | N142: -0.0085 | O142: -0.1 | P142: 0.05 | Q142: 0.2 | R142: 1 | S142: 0 | T142: 0 | U142: 141 | V142: 0.2 | W142: =IF(V142="","",IFERROR(HLOOKUP($V142,$O142:$Q$2000,(2000-$U142),FALSE),"")) -> 2 | X142: 2X | Z142: X2 | AA142: 12 ÇS | AB142: 1X | AC142: NB
A143: 2019-12-07T19:00:00 | B143: ITA D2 | C143: Spezia | D143: Livorno | E143: 1.75 | F143: 3.5 | G143: 4.75 | H143: 2.05 | I143: 3.3 | J143: 3.6 | K143: 0.9366 | L143: 0.9358 | N143: 0.0008 | O143: -0.3 | P143: 0.2 | Q143: 1.15 | R143: 1 | S143: 1 | T143: 0 | U143: 142 | V143: 1.15 | W143: =IF(V143="","",IFERROR(HLOOKUP($V143,$O143:$Q$2000,(2000-$U143),FALSE),"")) -> 2 | X143: 2X | Z143: MS2 | AA143: 12 ÇS | AB143: MS1 | AC143: NB
A144: 2019-12-07T19:00:00 | B144: ITA D2 | C144: Empoli | D144: Ascoli | E144: 1.85 | F144: 3.6 | G144: 4 | H144: 1.9 | I144: 3.5 | J144: 4 | K144: 0.9361 | L144: 0.9416 | N144: -0.0055 | O144: -0.05 | P144: 0.1 | Q144: 0 | R144: 0 | S144: 0 | T144: 0 | U144: 143 | V144: 0.1 | W144: =IF(V144="","",IFERROR(HLOOKUP($V144,$O144:$Q$2000,(2000-$U144),FALSE),"")) -> x | X144: XX | Z144: NB | AA144: NB | AB144: 1X | AC144: NB
A145: 2019-12-07T19:00:00 | B145: ITA D2 | C145: Cittadella | D145: Salernitana | E145: 2 | F145: 3.1 | G145: 4.2 | H145: 1.9 | I145: 3.25 | J145: 4.2 | K145: 0.9428 | L145: 0.9327 | N145: 0.0101 | O145: 0.1 | P145: -0.15 | Q145: 0 | R145: 0 | S145: 1 | T145: 0 | U145: 144 | V145: 0.1 | W145: =IF(V145="","",IFERROR(HLOOKUP($V145,$O145:$Q$2000,(2000-$U145),FALSE),"")) -> 1 | X145: 1X | Z145: MS1 | AA145: 12 ÇS | AB145: NB | AC145: 12 ÇS
A146: 2019-12-07T19:00:00 | B146: CRO D1 | C146: HNK Gorica | D146: Slaven Koprivnica | E146: 1.57 | F146: 3.8 | G146: 6 | H146: 1.61 | I146: 3.75 | J146: 5.5 | K146: 0.9374 | L146: 0.9349 | N146: 0.0025 | O146: -0.04 | P146: 0.05 | Q146: 0.5 | R146: 0 | S146: 1 | T146: 0 | U146: 145 | V146: 0.5 | W146: =IF(V146="","",IFERROR(HLOOKUP($V146,$O146:$Q$2000,(2000-$U146),FALSE),"")) -> 2 | X146: 2X | Z146: MS2 | AA146: 12 ÇS | AB146: NB | AC146: NB
A147: 2019-12-07T19:30:00 | B147: GER D1 | C147: Borussia Monchengladbach | D147: Bayern Munchen | E147: 6 | F147: 4.33 | G147: 1.5 | H147: 5.25 | I147: 4.5 | J147: 1.57 | K147: 0.9396 | L147: 0.9529 | N147: -0.0133 | O147: 0.75 | P147: -0.17 | Q147: -0.07 | R147: 0 | S147: 0 | T147: 0 | U147: 146 | V147: 0.75 | W147: =IF(V147="","",IFERROR(HLOOKUP($V147,$O147:$Q$2000,(2000-$U147),FALSE),"")) -> 1 | X147: 1X | Z147: MS1 | AA147: 12 ÇS | AB147: NB | AC147: 12 ÇS
A148: 2019-12-07T19:30:00 | B148: GER D1 | C148: SC Freiburg | D148: VfL Wolfsburg | E148: 2.6 | F148: 3.3 | G148: 2.62 | H148: 2.9 | I148: 3.5 | J148: 2.4 | K148: 0.9352 | L148: 0.955 | N148: -0.0198 | O148: -0.3 | P148: -0.2 | Q148: 0.22 | R148: 1 | S148: 0 | T148: 1 | U148: 147 | V148: 0.22 | W148: =IF(V148="","",IFERROR(HLOOKUP($V148,$O148:$Q$2000,(2000-$U148),FALSE),"")) -> 2 | X148: 2X | Z148: MS2 | AA148: 12 ÇS | AB148: NB | AC148: NB
A149: 2019-12-07T19:30:00 | B149: GER D1 | C149: Borussia Dortmund | D149: Fortuna Dusseldorf | E149: 1.22 | F149: 6 | G149: 13 | H149: 1.33 | I149: 5.5 | J149: 8.5 | K149: 0.9405 | L149: 0.9512 | N149: -0.0107 | O149: -0.11 | P149: 0.5 | Q149: 4.5 | R149: 1 | S149: 0 | T149: 0 | U149: 148 | V149: 4.5 | W149: =IF(V149="","",IFERROR(HLOOKUP($V149,$O149:$Q$2000,(2000-$U149),FALSE),"")) -> 2 | X149: 2X | Z149: MS2 | AA149: 12 ÇS | AB149: MS1 | AC149: NB
A150: 2019-12-07T19:30:00 | B150: GER D1 | C150: Augsburg | D150: FSV Mainz 05 | E150: 2.3 | F150: 3.5 | G150: 2.9 | H150: 2.3 | I150: 3.6 | J150: 3 | K150: 0.9386 | L150: 0.9561 | N150: -0.0175 | O150: 0 | P150: -0.1 | Q150: -0.1 | R150: 0 | S150: 0 | T150: 1 | U150: 149 | V150: 0 | W150: =IF(V150="","",IFERROR(HLOOKUP($V150,$O150:$Q$2000,(2000-$U150),FALSE),"")) -> 1 | X150: 1X | Z150: NB | AA150: NB | AB150: NB | AC150: 12 ÇS
A151: 2019-12-07T19:30:00 | B151: GER D1 | C151: RB Leipzig | D151: TSG Hoffenheim | E151: 1.44 | F151: 4.5 | G151: 6.5 | H151: 1.44 | I151: 4.75 | J151: 6.5 | K151: 0.9341 | L151: 0.9445 | N151: -0.0104 | O151: 0 | P151: -0.25 | Q151: 0 | R151: 0 | S151: 0 | T151: 0 | U151: 150 | V151: 0 | W151: =IF(V151="","",IFERROR(HLOOKUP($V151,$O151:$Q$2000,(2000-$U151),FALSE),"")) -> 1 | X151: 1X | Z151: MS1 | AA151: 12 ÇS | AB151: NB | AC151: 12 ÇS
A152: 2019-12-07T19:30:00 | B152: TUR D1 | C152: Ankaragucu | D152: Goztepe | E152: 3.6 | F152: 3.3 | G152: 2.05 | H152: 3.75 | I152: 3.3 | J152: 2 | K152: 0.9356 | L152: 0.9349 | N152: 0.0007 | O152: -0.15 | P152: 0 | Q152: 0.05 | R152: 1 | S152: 1 | T152: 1 | U152: 151 | V152: 0.05 | W152: =IF(V152="","",IFERROR(HLOOKUP($V152,$O152:$Q$2000,(2000-$U152),FALSE),"")) -> 2 | X152: 2X | Z152: NB | AA152: NB | AB152: 1X | AC152: NB
A153: 2019-12-07T20:00:00 | B153: ENG PR | C153: Bournemouth AFC | D153: Liverpool | E153: 7.5 | F153: 5 | G153: 1.36 | H153: 7 | I153: 5.25 | J153: 1.4 | K153: 0.936 | L153: 0.9548 | N153: -0.0188 | O153: 0.5 | P153: -0.25 | Q153: -0.04 | R153: 0 | S153: 0 | T153: 0 | U153: 152 | V153: 0.5 | W153: =IF(V153="","",IFERROR(HLOOKUP($V153,$O153:$Q$2000,(2000-$U153),FALSE),"")) -> 1 | X153: 1X | Z153: MS1 | AA153: 12 ÇS | AB153: NB | AC153: 12 ÇS
A154: 2019-12-07T20:00:00 | B154: ENG PR | C154: Tottenham Hotspur | D154: Burnley | E154: 1.36 | F154: 4.75 | G154: 8 | H154: 1.4 | I154: 4.75 | J154: 8 | K154: 0.9339 | L154: 0.9526 | N154: -0.0187 | O154: -0.04 | P154: 0 | Q154: 0 | R154: 0 | S154: 0 | T154: 0 | U154: 153 | V154: 0 | W154: =IF(V154="","",IFERROR(HLOOKUP($V154,$O154:$Q$2000,(2000-$U154),FALSE),"")) -> x | X154: XX | Z154: NB | AA154: NB | AB154: NB | AC154: NB
A155: 2019-12-07T20:00:00 | B155: ENG PR | C155: Watford | D155: Crystal Palace | E155: 2.37 | F155: 3.25 | G155: 3 | H155: 2.37 | I155: 3.3 | J155: 3.1 | K155: 0.9407 | L155: 0.9546 | N155: -0.0139 | O155: 0 | P155: -0.05 | Q155: -0.1 | R155: 0 | S155: 0 | T155: 1 | U155: 154 | V155: 0 | W155: =IF(V155="","",IFERROR(HLOOKUP($V155,$O155:$Q$2000,(2000-$U155),FALSE),"")) -> 1 | X155: 1X | Z155: NB | AA155: NB | AB155: NB | AC155: 12 ÇS
A156: 2019-12-07T20:00:00 | B156: SPA D1 | C156: Granada CF | D156: Alaves | E156: 2 | F156: 3.2 | G156: 4 | H156: 2.2 | I156: 3.1 | J156: 3.5 | K156: 0.9412 | L156: 0.9409 | N156: 0.0003 | O156: -0.2 | P156: 0.1 | Q156: 0.5 | R156: 1 | S156: 1 | T156: 0 | U156: 155 | V156: 0.5 | W156: =IF(V156="","",IFERROR(HLOOKUP($V156,$O156:$Q$2000,(2000-$U156),FALSE),"")) -> 2 | X156: 2X | Z156: MS2 | AA156: 12 ÇS | AB156: MS1 | AC156: NB
A157: 2019-12-07T20:00:00 | B157: ENG LCH | C157: Blackburn Rovers | D157: Derby County | E157: 2.05 | F157: 3.4 | G157: 3.5 | H157: 2 | I157: 3.5 | J157: 3.8 | K157: 0.9366 | L157: 0.9534 | N157: -0.0168 | O157: 0.05 | P157: -0.1 | Q157: -0.3 | R157: 0 | S157: 0 | T157: 0 | U157: 156 | V157: 0.05 | W157: =IF(V157="","",IFERROR(HLOOKUP($V157,$O157:$Q$2000,(2000-$U157),FALSE),"")) -> 1 | X157: 1X | Z157: 1X | AA157: NB | AB157: X2 | AC157: 12 ÇS
A158: 2019-12-07T20:00:00 | B158: ENG LCH | C158: Middlesbrough | D158: Charlton Athletic | E158: 2.05 | F158: 3.4 | G158: 3.5 | H158: 1.9 | I158: 3.75 | J158: 3.8 | K158: 0.9366 | L158: 0.9468 | N158: -0.0102 | O158: 0.15 | P158: -0.35 | Q158: -0.3 | R158: 0 | S158: 0 | T158: 0 | U158: 157 | V158: 0.15 | W158: =IF(V158="","",IFERROR(HLOOKUP($V158,$O158:$Q$2000,(2000-$U158),FALSE),"")) -> 1 | X158: 1X | Z158: MS1 | AA158: 12 ÇS | AB158: NB | AC158: 12 ÇS
A159: 2019-12-07T20:00:00 | B159: ENG LCH | C159: Reading | D159: Birmingham City | E159: 2.25 | F159: 3.4 | G159: 3.1 | H159: 2.15 | I159: 3.4 | J159: 3.4 | K159: 0.9423 | L159: 0.9494 | N159: -0.0071 | O159: 0.1 | P159: 0 | Q159: -0.3 | R159: 0 | S159: 0 | T159: 1 | U159: 158 | V159: 0.1 | W159: =IF(V159="","",IFERROR(HLOOKUP($V159,$O159:$Q$2000,(2000-$U159),FALSE),"")) -> 1 | X159: 1X | Z159: NB | AA159: NB | AB159: MS2 | AC159: 12 ÇS
A160: 2019-12-07T20:00:00 | B160: ENG LCH | C160: Queens Park Rangers (QPR) | D160: Preston North End | E160: 2.3 | F160: 3.5 | G160: 2.9 | H160: 2.25 | I160: 3.6 | J160: 3 | K160: 0.9386 | L160: 0.9475 | N160: -0.0089 | O160: 0.05 | P160: -0.1 | Q160: -0.1 | R160: 0 | S160: 0 | T160: 1 | U160: 159 | V160: 0.05 | W160: =IF(V160="","",IFERROR(HLOOKUP($V160,$O160:$Q$2000,(2000-$U160),FALSE),"")) -> 1 | X160: 1X | Z160: 1X | AA160: 12 ÇS | AB160: NB | AC160: 12 ÇS
A161: 2019-12-07T20:00:00 | B161: ENG LCH | C161: Cardiff City | D161: Barnsley | E161: 1.6 | F161: 4.2 | G161: 5 | H161: 1.72 | I161: 3.9 | J161: 4.6 | K161: 0.9406 | L161: 0.9477 | N161: -0.0071 | O161: -0.12 | P161: 0.3 | Q161: 0.4 | R161: 1 | S161: 0 | T161: 0 | U161: 160 | V161: 0.4 | W161: =IF(V161="","",IFERROR(HLOOKUP($V161,$O161:$Q$2000,(2000-$U161),FALSE),"")) -> 2 | X161: 2X | Z161: NB | AA161: NB | AB161: MS1 | AC161: NB
A162: 2019-12-07T20:00:00 | B162: ENG LCH | C162: Hull City | D162: Stoke City | E162: 2.15 | F162: 3.5 | G162: 3.2 | H162: 2.45 | I162: 3.4 | J162: 2.87 | K162: 0.9404 | L162: 0.9518 | N162: -0.0114 | O162: -0.3 | P162: 0.1 | Q162: 0.33 | R162: 1 | S162: 0 | T162: 1 | U162: 161 | V162: 0.33 | W162: =IF(V162="","",IFERROR(HLOOKUP($V162,$O162:$Q$2000,(2000-$U162),FALSE),"")) -> 2 | X162: 2X | Z162: MS2 | AA162: NB | AB162: MS1 | AC162: NB
A163: 2019-12-07T20:00:00 | B163: ENG LCH | C163: Luton Town | D163: Wigan Athletic | E163: 2.1 | F163: 3.5 | G163: 3.3 | H163: 2.4 | I163: 3.5 | J163: 2.87 | K163: 0.9391 | L163: 0.9516 | N163: -0.0125 | O163: -0.3 | P163: 0 | Q163: 0.43 | R163: 1 | S163: 0 | T163: 1 | U163: 162 | V163: 0.43 | W163: =IF(V163="","",IFERROR(HLOOKUP($V163,$O163:$Q$2000,(2000-$U163),FALSE),"")) -> 2 | X163: 2X | Z163: MS2 | AA163: 12 ÇS | AB163: MS1 | AC163: NB
A164: 2019-12-07T20:00:00 | B164: ENG LCH | C164: Sheffield Wednesday | D164: Brentford | E164: 2.37 | F164: 3.3 | G164: 3 | H164: 2.5 | I164: 3.25 | J164: 2.87 | K164: 0.9449 | L164: 0.9467 | N164: -0.0018 | O164: -0.13 | P164: 0.05 | Q164: 0.13 | R164: 1 | S164: 0 | T164: 1 | U164: 163 | V164: 0.13 | W164: =IF(V164="","",IFERROR(HLOOKUP($V164,$O164:$Q$2000,(2000-$U164),FALSE),"")) -> 2 | X164: 2X | Z164: NB | AA164: NB | AB164: 1X | AC164: NB
A165: 2019-12-07T20:00:00 | B165: ENG LCH | C165: Fulham | D165: Bristol City | E165: 1.8 | F165: 3.75 | G165: 4.33 | H165: 1.66 | I165: 4 | J165: 5 | K165: 0.9495 | L165: 0.9502 | N165: -0.0007 | O165: 0.14 | P165: -0.25 | Q165: -0.67 | R165: 0 | S165: 0 | T165: 0 | U165: 164 | V165: 0.14 | W165: =IF(V165="","",IFERROR(HLOOKUP($V165,$O165:$Q$2000,(2000-$U165),FALSE),"")) -> 1 | X165: 1X | Z165: MS1 | AA165: NB | AB165: MS2 | AC165: 12 ÇS
A166: 2019-12-07T20:00:00 | B166: SPA D2 | C166: SD Huesca | D166: Rayo Vallecano | E166: 1.9 | F166: 3.3 | G166: 4.2 | H166: 1.85 | I166: 3.4 | J166: 4.5 | K166: 0.9369 | L166: 0.9461 | N166: -0.0092 | O166: 0.05 | P166: -0.1 | Q166: -0.3 | R166: 0 | S166: 0 | T166: 0 | U166: 165 | V166: 0.05 | W166: =IF(V166="","",IFERROR(HLOOKUP($V166,$O166:$Q$2000,(2000-$U166),FALSE),"")) -> 1 | X166: 1X | Z166: 1X | AA166: NB | AB166: X2 | AC166: 12 ÇS
A167: 2019-12-07T20:00:00 | B167: SCO PR | C167: Hamilton Academical | D167: Saint Mirren | E167: 3 | F167: 3.2 | G167: 2.37 | H167: 2.87 | I167: 3.2 | J167: 2.5 | K167: 0.9366 | L167: 0.9425 | N167: -0.0059 | O167: 0.13 | P167: 0 | Q167: -0.13 | R167: 0 | S167: 0 | T167: 1 | U167: 166 | V167: 0.13 | W167: =IF(V167="","",IFERROR(HLOOKUP($V167,$O167:$Q$2000,(2000-$U167),FALSE),"")) -> 1 | X167: 1X | Z167: 1X | AA167: NB | AB167: X2 | AC167: 12 ÇS
A168: 2019-12-07T20:00:00 | B168: SCO PR | C168: Hibernian | D168: Aberdeen | E168: 2.62 | F168: 3.3 | G168: 2.6 | H168: 2.62 | I168: 3.3 | J168: 2.62 | K168: 0.9351 | L168: 0.9377 | N168: -0.0026 | O168: 0 | P168: 0 | Q168: -0.02 | R168: 0 | S168: 0 | T168: 1 | U168: 167 | V168: 0 | W168: =IF(V168="","",IFERROR(HLOOKUP($V168,$O168:$Q$2000,(2000-$U168),FALSE),"")) -> 1 | X168: 1X | Z168: NB | AA168: NB | AB168: NB | AC168: 12 ÇS
A169: 2019-12-07T20:00:00 | B169: SCO PR | C169: Livingston | D169: Kilmarnock | E169: 2.5 | F169: 3.1 | G169: 2.9 | H169: 2.4 | I169: 3.1 | J169: 3 | K169: 0.9368 | L169: 0.9324 | N169: 0.0044 | O169: 0.1 | P169: 0 | Q169: -0.1 | R169: 0 | S169: 1 | T169: 1 | U169: 168 | V169: 0.1 | W169: =IF(V169="","",IFERROR(HLOOKUP($V169,$O169:$Q$2000,(2000-$U169),FALSE),"")) -> 1 | X169: 1X | Z169: NB | AA169: NB | AB169: NB | AC169: 12 ÇS
A170: 2019-12-07T20:00:00 | B170: SCO PR | C170: Motherwell | D170: Heart of Midlothian | E170: 2.3 | F170: 3.3 | G170: 3.1 | H170: 2.2 | I170: 3.3 | J170: 3.25 | K170: 0.943 | L170: 0.9387 | N170: 0.0043 | O170: 0.1 | P170: 0 | Q170: -0.15 | R170: 0 | S170: 1 | T170: 1 | U170: 169 | V170: 0.1 | W170: =IF(V170="","",IFERROR(HLOOKUP($V170,$O170:$Q$2000,(2000-$U170),FALSE),"")) -> 1 | X170: 1X | Z170: NB | AA170: NB | AB170: X2 | AC170: 12 ÇS
A171: 2019-12-07T20:00:00 | B171: POR D1 | C171: Maritimo | D171: Santa Clara | E171: 2.5 | F171: 3.2 | G171: 2.87 | H171: 2.45 | I171: 3.2 | J171: 3 | K171: 0.9425 | L171: 0.9489 | N171: -0.0064 | O171: 0.05 | P171: 0 | Q171: -0.13 | R171: 0 | S171: 0 | T171: 1 | U171: 170 | V171: 0.05 | W171: =IF(V171="","",IFERROR(HLOOKUP($V171,$O171:$Q$2000,(2000-$U171),FALSE),"")) -> 1 | X171: 1X | Z171: NB | AA171: NB | AB171: X2 | AC171: 12 ÇS
A172: 2019-12-07T20:00:00 | B172: ENG L1 | C172: Gillingham | D172: Sunderland A.F.C | E172: 2.75 | F172: 3.25 | G172: 2.6 | H172: 3 | I172: 3.4 | J172: 2.5 | K172: 0.9471 | L172: 0.9732 | N172: -0.0261 | O172: -0.25 | P172: -0.15 | Q172: 0.1 | R172: 1 | S172: 0 | T172: 1 | U172: 171 | V172: 0.1 | W172: =IF(V172="","",IFERROR(HLOOKUP($V172,$O172:$Q$2000,(2000-$U172),FALSE),"")) -> 2 | X172: 2X | Z172: MS2 | AA172: NB | AB172: NB | AC172: NB
A173: 2019-12-07T20:00:00 | B173: ENG L1 | C173: Doncaster Rovers | D173: Milton Keynes Dons | E173: 1.57 | F173: 4 | G173: 5.5 | H173: 1.61 | I173: 4.33 | J173: 5.75 | K173: 0.9357 | L173: 0.9747 | N173: -0.039 | O173: -0.04 | P173: -0.33 | Q173: -0.25 | R173: 0 | S173: 0 | T173: 0 | U173: 172 | V173: -0.04 | W173: =IF(V173="","",IFERROR(HLOOKUP($V173,$O173:$Q$2000,(2000-$U173),FALSE),"")) -> 1 | X173: 1X | Z173: MS1 | AA173: 12 ÇS | AB173: NB | AC173: 12 ÇS
A174: 2019-12-07T20:00:00 | B174: ENG L1 | C174: Coventry City | D174: Ipswich Town | E174: 2.37 | F174: 3.25 | G174: 3 | H174: 2.45 | I174: 3.4 | J174: 3.1 | K174: 0.9407 | L174: 0.9758 | N174: -0.0351 | O174: -0.08 | P174: -0.15 | Q174: -0.1 | R174: 1 | S174: 0 | T174: 1 | U174: 173 | V174: -0.08 | W174: =IF(V174="","",IFERROR(HLOOKUP($V174,$O174:$Q$2000,(2000-$U174),FALSE),"")) -> 1 | X174: 1X | Z174: NB | AA174: NB | AB174: NB | AC174: 12 ÇS
A175: 2019-12-07T20:00:00 | B175: ENG L1 | C175: Bristol Rovers | D175: Southend United | E175: 1.5 | F175: 4.2 | G175: 6.5 | H175: 1.53 | I175: 4.33 | J175: 7 | K175: 0.9447 | L175: 0.9734 | N175: -0.0287 | O175: -0.03 | P175: -0.13 | Q175: -0.5 | R175: 0 | S175: 0 | T175: 0 | U175: 174 | V175: -0.03 | W175: =IF(V175="","",IFERROR(HLOOKUP($V175,$O175:$Q$2000,(2000-$U175),FALSE),"")) -> 1 | X175: 1X | Z175: NB | AA175: NB | AB175: MS2 | AC175: 12 ÇS
A176: 2019-12-07T20:00:00 | B176: ENG L1 | C176: Bolton Wanderers | D176: AFC Wimbledon | E176: 2.25 | F176: 3.4 | G176: 3.1 | H176: 2.3 | I176: 3.5 | J176: 3.3 | K176: 0.9423 | L176: 0.977 | N176: -0.0347 | O176: -0.05 | P176: -0.1 | Q176: -0.2 | R176: 0 | S176: 0 | T176: 1 | U176: 175 | V176: -0.05 | W176: =IF(V176="","",IFERROR(HLOOKUP($V176,$O176:$Q$2000,(2000-$U176),FALSE),"")) -> 1 | X176: 1X | Z176: NB | AA176: NB | AB176: NB | AC176: 12 ÇS
A177: 2019-12-07T20:00:00 | B177: ENG L1 | C177: Rotherham United | D177: Rochdale | E177: 1.53 | F177: 4.33 | G177: 5.5 | H177: 1.6 | I177: 4.33 | J177: 6 | K177: 0.9377 | L177: 0.9779 | N177: -0.0402 | O177: -0.07 | P177: 0 | Q177: -0.5 | R177: 0 | S177: 0 | T177: 0 | U177: 176 | V177: 0 | W177: =IF(V177="","",IFERROR(HLOOKUP($V177,$O177:$Q$2000,(2000-$U177),FALSE),"")) -> x | X177: XX | Z177: NB | AA177: NB | AB177: MS2 | AC177: 12 ÇS
A178: 2019-12-07T20:00:00 | B178: ENG L1 | C178: Burton Albion | D178: Lincoln City | E178: 2 | F178: 3.4 | G178: 3.75 | H178: 1.95 | I178: 3.75 | J178: 4 | K178: 0.9426 | L178: 0.9713 | N178: -0.0287 | O178: 0.05 | P178: -0.35 | Q178: -0.25 | R178: 0 | S178: 0 | T178: 0 | U178: 177 | V178: 0.05 | W178: =IF(V178="","",IFERROR(HLOOKUP($V178,$O178:$Q$2000,(2000-$U178),FALSE),"")) -> 1 | X178: 1X | Z178: MS1 | AA178: 12 ÇS | AB178: NB | AC178: 12 ÇS
A179: 2019-12-07T20:00:00 | B179: ENG L1 | C179: Portsmouth | D179: Peterborough United | E179: 2 | F179: 3.6 | G179: 3.5 | H179: 2.05 | I179: 3.75 | J179: 3.75 | K179: 0.9402 | L179: 0.9793 | N179: -0.0391 | O179: -0.05 | P179: -0.15 | Q179: -0.25 | R179: 0 | S179: 0 | T179: 0 | U179: 178 | V179: -0.05 | W179: =IF(V179="","",IFERROR(HLOOKUP($V179,$O179:$Q$2000,(2000-$U179),FALSE),"")) -> 1 | X179: 1X | Z179: NB | AA179: NB | AB179: NB | AC179: 12 ÇS
A180: 2019-12-07T20:00:00 | B180: ENG L1 | C180: Tranmere Rovers | D180: Accrington Stanley | E180: 2.5 | F180: 3.3 | G180: 2.75 | H180: 2.7 | I180: 3.6 | J180: 2.62 | K180: 0.9375 | L180: 0.9709 | N180: -0.0334 | O180: -0.2 | P180: -0.3 | Q180: 0.13 | R180: 1 | S180: 0 | T180: 1 | U180: 179 | V180: 0.13 | W180: =IF(V180="","",IFERROR(HLOOKUP($V180,$O180:$Q$2000,(2000-$U180),FALSE),"")) -> 2 | X180: 2X | Z180: MS2 | AA180: 12 ÇS | AB180: NB | AC180: NB
A181: 2019-12-07T20:00:00 | B181: ENG L1 | C181: Blackpool | D181: Fleetwood Town | E181: 2.25 | F181: 3.4 | G181: 3.1 | H181: 2.4 | I181: 3.5 | J181: 3.1 | K181: 0.9423 | L181: 0.9756 | N181: -0.0333 | O181: -0.15 | P181: -0.1 | Q181: 0 | R181: 1 | S181: 0 | T181: 1 | U181: 180 | V181: 0 | W181: =IF(V181="","",IFERROR(HLOOKUP($V181,$O181:$Q$2000,(2000-$U181),FALSE),"")) -> 2 | X181: 2X | Z181: NB | AA181: NB | AB181: NB | AC181: NB
A182: 2019-12-07T20:00:00 | B182: ENG L1 | C182: Oxford United | D182: Shrewsbury Town | E182: 1.75 | F182: 3.7 | G182: 4.5 | H182: 1.72 | I182: 4 | J182: 5 | K182: 0.9399 | L182: 0.9696 | N182: -0.0297 | O182: 0.03 | P182: -0.3 | Q182: -0.5 | R182: 0 | S182: 0 | T182: 0 | U182: 181 | V182: 0.03 | W182: =IF(V182="","",IFERROR(HLOOKUP($V182,$O182:$Q$2000,(2000-$U182),FALSE),"")) -> 1 | X182: 1X | Z182: MS1 | AA182: NB | AB182: X2 | AC182: 12 ÇS
A183: 2019-12-07T20:00:00 | B183: ENG L2 | C183: Port Vale | D183: Walsall | E183: 2 | F183: 3.4 | G183: 3.6 | H183: 2.15 | I183: 3.4 | J183: 3.75 | K183: 0.933 | L183: 0.9748 | N183: -0.0418 | O183: -0.15 | P183: 0 | Q183: -0.15 | R183: 1 | S183: 0 | T183: 0 | U183: 182 | V183: 0 | W183: =IF(V183="","",IFERROR(HLOOKUP($V183,$O183:$Q$2000,(2000-$U183),FALSE),"")) -> x | X183: XX | Z183: NB | AA183: NB | AB183: 1X | AC183: NB
A184: 2019-12-07T20:00:00 | B184: ENG L2 | C184: Oldham Athletic | D184: Leyton Orient | E184: 2.05 | F184: 3.5 | G184: 3.4 | H184: 2.37 | I184: 3.6 | J184: 3.1 | K184: 0.9366 | L184: 0.9781 | N184: -0.0415 | O184: -0.32 | P184: -0.1 | Q184: 0.3 | R184: 1 | S184: 0 | T184: 0 | U184: 183 | V184: 0.3 | W184: =IF(V184="","",IFERROR(HLOOKUP($V184,$O184:$Q$2000,(2000-$U184),FALSE),"")) -> 2 | X184: 2X | Z184: MS2 | AA184: 12 ÇS | AB184: MS1 | AC184: NB
A185: 2019-12-07T20:00:00 | B185: ENG L2 | C185: Mansfield Town | D185: Cheltenham Town | E185: 2.15 | F185: 3.25 | G185: 3.4 | H185: 2.2 | I185: 3.5 | J185: 3.5 | K185: 0.9372 | L185: 0.9746 | N185: -0.0374 | O185: -0.05 | P185: -0.25 | Q185: -0.1 | R185: 0 | S185: 0 | T185: 1 | U185: 184 | V185: -0.05 | W185: =IF(V185="","",IFERROR(HLOOKUP($V185,$O185:$Q$2000,(2000-$U185),FALSE),"")) -> 1 | X185: 1X | Z185: 1X | AA185: 12 ÇS | AB185: NB | AC185: 12 ÇS
A186: 2019-12-07T20:00:00 | B186: ENG L2 | C186: Forest Green Rovers | D186: Scunthorpe United | E186: 2.05 | F186: 3.4 | G186: 3.6 | H186: 2.1 | I186: 3.5 | J186: 3.75 | K186: 0.9436 | L186: 0.9723 | N186: -0.0287 | O186: -0.05 | P186: -0.1 | Q186: -0.15 | R186: 0 | S186: 0 | T186: 0 | U186: 185 | V186: -0.05 | W186: =IF(V186="","",IFERROR(HLOOKUP($V186,$O186:$Q$2000,(2000-$U186),FALSE),"")) -> 1 | X186: 1X | Z186: NB | AA186: NB | AB186: NB | AC186: 12 ÇS
A187: 2019-12-07T20:00:00 | B187: ENG L2 | C187: Colchester United | D187: Salford City | E187: 2 | F187: 3.4 | G187: 3.75 | H187: 1.95 | I187: 3.6 | J187: 4.2 | K187: 0.9426 | L187: 0.9721 | N187: -0.0295 | O187: 0.05 | P187: -0.2 | Q187: -0.45 | R187: 0 | S187: 0 | T187: 0 | U187: 186 | V187: 0.05 | W187: =IF(V187="","",IFERROR(HLOOKUP($V187,$O187:$Q$2000,(2000-$U187),FALSE),"")) -> 1 | X187: 1X | Z187: MS1 | AA187: NB | AB187: MS2 | AC187: 12 ÇS
A188: 2019-12-07T20:00:00 | B188: ENG L2 | C188: Cambridge United | D188: Plymouth Argyle | E188: 2.37 | F188: 3.2 | G188: 3 | H188: 2.75 | I188: 3.4 | J188: 2.7 | K188: 0.9366 | L188: 0.9727 | N188: -0.0361 | O188: -0.38 | P188: -0.2 | Q188: 0.3 | R188: 1 | S188: 0 | T188: 1 | U188: 187 | V188: 0.3 | W188: =IF(V188="","",IFERROR(HLOOKUP($V188,$O188:$Q$2000,(2000-$U188),FALSE),"")) -> 2 | X188: 2X | Z188: MS2 | AA188: 12 ÇS | AB188: 1X | AC188: NB
A189: 2019-12-07T20:00:00 | B189: ENG L2 | C189: Grimsby Town | D189: Swindon Town | E189: 3 | F189: 3.25 | G189: 2.37 | H189: 3.3 | I189: 3.5 | J189: 2.3 | K189: 0.9408 | L189: 0.9771 | N189: -0.0363 | O189: -0.3 | P189: -0.25 | Q189: 0.07 | R189: 1 | S189: 0 | T189: 1 | U189: 188 | V189: 0.07 | W189: =IF(V189="","",IFERROR(HLOOKUP($V189,$O189:$Q$2000,(2000-$U189),FALSE),"")) -> 2 | X189: 2X | Z189: MS2 | AA189: 12 ÇS | AB189: NB | AC189: NB
A190: 2019-12-07T20:00:00 | B190: ENG L2 | C190: Exeter City | D190: Northampton Town | E190: 2.1 | F190: 3.4 | G190: 3.4 | H190: 2.1 | I190: 3.5 | J190: 3.75 | K190: 0.9395 | L190: 0.9723 | N190: -0.0328 | O190: 0 | P190: -0.1 | Q190: -0.35 | R190: 0 | S190: 0 | T190: 1 | U190: 189 | V190: 0 | W190: =IF(V190="","",IFERROR(HLOOKUP($V190,$O190:$Q$2000,(2000-$U190),FALSE),"")) -> 1 | X190: 1X | Z190: NB | AA190: NB | AB190: MS2 | AC190: 12 ÇS
A191: 2019-12-07T20:00:00 | B191: ENG L2 | C191: Stevenage Borough | D191: Crawley Town | E191: 2.1 | F191: 3.3 | G191: 3.5 | H191: 2.3 | I191: 3.5 | J191: 3.25 | K191: 0.9391 | L191: 0.9727 | N191: -0.0336 | O191: -0.2 | P191: -0.2 | Q191: 0.25 | R191: 1 | S191: 0 | T191: 1 | U191: 190 | V191: 0.25 | W191: =IF(V191="","",IFERROR(HLOOKUP($V191,$O191:$Q$2000,(2000-$U191),FALSE),"")) -> 2 | X191: 2X | Z191: MS2 | AA191: 12 ÇS | AB191: NB | AC191: NB
A192: 2019-12-07T20:00:00 | B192: ENG L2 | C192: Bradford City | D192: Newport County | E192: 2 | F192: 3.5 | G192: 3.6 | H192: 2.1 | I192: 3.5 | J192: 3.75 | K192: 0.9402 | L192: 0.9723 | N192: -0.0321 | O192: -0.1 | P192: 0 | Q192: -0.15 | R192: 1 | S192: 0 | T192: 0 | U192: 191 | V192: 0 | W192: =IF(V192="","",IFERROR(HLOOKUP($V192,$O192:$Q$2000,(2000-$U192),FALSE),"")) -> x | X192: XX | Z192: NB | AA192: NB | AB192: X2 | AC192: 12 ÇS
A193: 2019-12-07T20:00:00 | B193: ENG L2 | C193: Morecambe | D193: Carlisle United | E193: 2.37 | F193: 3.25 | G193: 3 | H193: 2.62 | I193: 3.6 | J193: 2.7 | K193: 0.9407 | L193: 0.971 | N193: -0.0303 | O193: -0.25 | P193: -0.35 | Q193: 0.3 | R193: 1 | S193: 0 | T193: 1 | U193: 192 | V193: 0.3 | W193: =IF(V193="","",IFERROR(HLOOKUP($V193,$O193:$Q$2000,(2000-$U193),FALSE),"")) -> 2 | X193: 2X | Z193: MS2 | AA193: 12 ÇS | AB193: NB | AC193: NB
A194: 2019-12-07T20:00:00 | B194: ENG Conf | C194: Barrow | D194: Aldershot Town | E194: 1.72 | F194: 3.6 | G194: 4.75 | H194: 1.65 | I194: 3.7 | J194: 5.5 | K194: 0.9348 | L194: 0.9451 | N194: -0.0103 | O194: 0.07 | P194: -0.1 | Q194: -0.75 | R194: 0 | S194: 0 | T194: 0 | U194: 193 | V194: 0.07 | W194: =IF(V194="","",IFERROR(HLOOKUP($V194,$O194:$Q$2000,(2000-$U194),FALSE),"")) -> 1 | X194: 1X | Z194: 1X | AA194: NB | AB194: MS2 | AC194: 12 ÇS
A195: 2019-12-07T20:00:00 | B195: ENG Conf | C195: Chesterfield | D195: Bromley | E195: 2.62 | F195: 3.5 | G195: 2.5 | H195: 3 | I195: 3.4 | J195: 2.3 | K195: 0.9369 | L195: 0.9414 | N195: -0.0045 | O195: -0.38 | P195: 0.1 | Q195: 0.2 | R195: 1 | S195: 0 | T195: 1 | U195: 194 | V195: 0.2 | W195: =IF(V195="","",IFERROR(HLOOKUP($V195,$O195:$Q$2000,(2000-$U195),FALSE),"")) -> 2 | X195: 2X | Z195: NB | AA195: NB | AB195: MS1 | AC195: NB
A196: 2019-12-07T20:00:00 | B196: ENG Conf | C196: Dagenham Redbridge | D196: Maidenhead United | E196: 1.95 | F196: 3.5 | G196: 3.75 | H196: 1.9 | I196: 3.6 | J196: 3.8 | K196: 0.9387 | L196: 0.9371 | N196: 0.0016 | O196: 0.05 | P196: -0.1 | Q196: -0.05 | R196: 0 | S196: 1 | T196: 0 | U196: 195 | V196: 0.05 | W196: =IF(V196="","",IFERROR(HLOOKUP($V196,$O196:$Q$2000,(2000-$U196),FALSE),"")) -> 1 | X196: 1X | Z196: 1X | AA196: 12 ÇS | AB196: NB | AC196: 12 ÇS
A197: 2019-12-07T20:00:00 | B197: ENG Conf | C197: Dover Athletic | D197: Boreham Wood | E197: 2 | F197: 3.6 | G197: 3.5 | H197: 2.1 | I197: 3.6 | J197: 3.25 | K197: 0.9402 | L197: 0.9418 | N197: -0.0016 | O197: -0.1 | P197: 0 | Q197: 0.25 | R197: 1 | S197: 0 | T197: 0 | U197: 196 | V197: 0.25 | W197: =IF(V197="","",IFERROR(HLOOKUP($V197,$O197:$Q$2000,(2000-$U197),FALSE),"")) -> 2 | X197: 2X | Z197: MS2 | AA197: 12 ÇS | AB197: NB | AC197: NB
A198: 2019-12-07T20:00:00 | B198: ENG Conf | C198: Notts County | D198: Sutton United | E198: 1.75 | F198: 3.75 | G198: 4.33 | H198: 1.85 | I198: 3.6 | J198: 4 | K198: 0.9354 | L198: 0.9361 | N198: -0.0007 | O198: -0.1 | P198: 0.15 | Q198: 0.33 | R198: 1 | S198: 0 | T198: 0 | U198: 197 | V198: 0.33 | W198: =IF(V198="","",IFERROR(HLOOKUP($V198,$O198:$Q$2000,(2000-$U198),FALSE),"")) -> 2 | X198: 2X | Z198: X2 | AA198: 12 ÇS | AB198: MS1 | AC198: NB
A199: 2019-12-07T20:00:00 | B199: ENG Conf | C199: Woking | D199: Hartlepool United | E199: 2.3 | F199: 3.5 | G199: 2.9 | H199: 2.2 | I199: 3.5 | J199: 3.1 | K199: 0.9386 | L199: 0.9409 | N199: -0.0023 | O199: 0.1 | P199: 0 | Q199: -0.2 | R199: 0 | S199: 0 | T199: 1 | U199: 198 | V199: 0.1 | W199: =IF(V199="","",IFERROR(HLOOKUP($V199,$O199:$Q$2000,(2000-$U199),FALSE),"")) -> 1 | X199: 1X | Z199: NB | AA199: NB | AB199: X2 | AC199: 12 ÇS
A200: 2019-12-07T20:00:00 | B200: ENG Conf | C200: Wrexham | D200: Solihull Moors | E200: 2.6 | F200: 3.25 | G200: 2.7 | H200: 2.75 | I200: 3.25 | J200: 2.55 | K200: 0.9409 | L200: 0.9402 | N200: =IF(K200="","",K200-L200) -> 0.0007 | O200: =IF(E200="","",(E200-H200)) -> -0.15 | P200: =IF(F200="","",(F200-I200)) -> 0 | Q200: =IF(G200="","",(G200-J200)) -> 0.15 | R200: =IF(O200="","",IF(O200<$R$6,1,0)) -> 1 | S200: =IF(N200="","",IF(N200>$S$6,1,0)) -> 1 | T200: =IF(E200="","",IF(AND(E200>=$T$3,E200<=$T$4),1,0)) -> 1 | U200: 199 | V200: =IFERROR(LARGE($O200:$Q200,1),"") -> 0.15 | W200: =IF(V200="","",IFERROR(HLOOKUP($V200,$O200:$Q$2000,(2000-$U200),FALSE),"")) -> 2 | X200: =IF(W200="","",IF(W200=1,"1X",IF(W200=2,"2X","XX"))) -> 2X | Y200: =IF(M200="","",IF(LEFT(M200,1)=RIGHT(M200,1),"X",IF(LEFT(M200,1)>RIGHT(M200,1),"1","2"))) ->  | Z200: =IF(O200-P200>0.2,"MS1",IF(O200-P200>0.1,"1X",IF(Q200-P200>0.2,"MS2",IF(Q200-P200>0.1,"X2","NB")))) -> X2 | AA200: =IF(O200+Q200>P200,"12 ÇS","NB") -> 12 ÇS | AB200: =IF(P200-O200>0.2,"MS1",IF(P200-O200>0.1,"1X",IF(P200-Q200>0.2,"MS2",IF(P200-Q200>0.1,"X2","NB")))) -> 1X | AC200: =IF(O200-Q200>P200,"12 ÇS","NB") -> NB
... 780 more rows

Sheet Foglio1
A1: League | B1: Time | C1: Home | D1: HW | E1: D | F1: AW | G1: HWR | H1: DR | I1: AWR | J1: Return | K1: Away | L1: Compare | R1: =MONTH(AX1) -> 11 | S1: =DAY(AX1) -> 13 | T1: =YEAR(AX1) -> 2016 | V1: =R1&"-"&S1&"-"&T1 -> 11-13-2016 | AX1: =VLOOKUP(BA1,BA2:BB10000,2,FALSE) -> 2016-11-13 | BA1: 1079
A2: 12/06/2019 (Friday)
A3: ISR D3 | B3: 2019-12-06T14:00:00 | C3: Hapoel Kafr Kanna | D3: 1.72 | E3: 3.75 | F3: 3.75 | G3: 0.5216 | H3: 0.2392 | I3: 0.2392 | J3: 0.8972 | K3: Hapoel Migdal HaEmek | L3: View(16) | Z3: =IFERROR(IF(L3="","",FIND("(",L3,1)),"") -> 5 | AA3: =IF(AB3="","",B3) ->  | AB3: =IFERROR(IF(AND(Z3<>"",A3<>"",A4<>""),A3,""),"") ->  | AC3: =IF(AB3="","",C3) ->  | AD3: =IF(AB3="","",K3) ->  | AE3: =IF($AB3="","",D3) ->  | AF3: =IF($AB3="","",E3) ->  | AG3: =IF($AB3="","",F3) ->  | AH3: =IF($AB3="","",A4) ->  | AI3: =IF($AB3="","",B4) ->  | AJ3: =IF($AB3="","",C4) ->  | AK3: =IF(AB3="","",J3) ->  | AL3: =IF(AB3="","",G4) ->  | BA3: 1 | BB3: 2013-12-01
Z4: =IFERROR(IF(L4="","",FIND("(",L4,1)),"") ->  | AA4: =IF(AB4="","",B4) ->  | AB4: =IFERROR(IF(AND(Z4<>"",A4<>"",A5<>""),A4,""),"") ->  | AC4: =IF(AB4="","",C4) ->  | AD4: =IF(AB4="","",K4) ->  | AE4: =IF($AB4="","",D4) ->  | AF4: =IF($AB4="","",E4) ->  | AG4: =IF($AB4="","",F4) ->  | AH4: =IF($AB4="","",A5) ->  | AI4: =IF($AB4="","",B5) ->  | AJ4: =IF($AB4="","",C5) ->  | AK4: =IF(AB4="","",J4) ->  | AL4: =IF(AB4="","",G5) ->  | BA4: 2 | BB4: 2013-12-02
A5: ISR CL | B5: 2019-12-06T14:30:00 | C5: Hapoel Ironi Gedera | D5: 4.5 | E5: 4.2 | F5: 1.53 | G5: 0.1995 | H5: 0.2137 | I5: 0.5868 | J5: 0.8978 | K5: FC Beitar Yavne | L5: View(18) | Z5: 5 | AA5: 43805.60417 | AB5: ISR CL | AC5: Hapoel Ironi Gedera | AD5: FC Beitar Yavne | AE5: 4.5 | AF5: 4.2 | AG5: 1.53 | AH5: 4.5 | AI5: 4.2 | AJ5: 1.57 | AK5: 0.8978 | AL5: 0.9112 | BA5: 3 | BB5: 2013-12-03
A6: 4.5 | B6: 4.2 | C6: 1.57 | D6: 0.2025 | E6: 0.217 | F6: 0.5805 | G6: 0.9112 | BA6: 4 | BB6: 2013-12-04
A7: ISR CL | B7: 2019-12-06T14:45:00 | C7: Maccabi Neve Shaanan Eldad | D7: 2 | E7: 3.6 | F7: 3 | G7: 0.45 | H7: 0.25 | I7: 0.3 | J7: 0.9 | K7: Hapoel Bnei Musmus | L7: View(26) | Z7: 5 | AA7: 43805.61458 | AB7: ISR CL | AC7: Maccabi Neve Shaanan Eldad | AD7: Hapoel Bnei Musmus | AE7: 2 | AF7: 3.6 | AG7: 3 | AH7: 2.2 | AI7: 3.6 | AJ7: 2.75 | AK7: 0.9 | AL7: 0.9123 | BA7: 5 | BB7: 2013-12-05
A8: 2.2 | B8: 3.6 | C8: 2.75 | D8: 0.4147 | E8: 0.2535 | F8: 0.3318 | G8: 0.9123 | BA8: 6 | BB8: 2013-12-06
A9: Spain D4 | B9: 2019-12-06T15:00:00 | C9: Elche CF Ilicitano | D9: 4.5 | E9: 3.6 | F9: 1.61 | G9: 0.1982 | H9: 0.2478 | I9: 0.554 | J9: 0.8919 | K9: CF Intercity | L9: View(35) | Z9: 5 | AA9: 43805.625 | AB9: Spain D4 | AC9: Elche CF Ilicitano | AD9: CF Intercity | AE9: 4.5 | AF9: 3.6 | AG9: 1.61 | AH9: 4.75 | AI9: 3.5 | AJ9: 1.7 | AK9: 0.8919 | AL9: 0.922 | BA9: 7 | BB9: 2013-12-07
A10: 4.75 | B10: 3.5 | C10: 1.7 | D10: 0.1941 | E10: 0.2635 | F10: 0.5424 | G10: 0.922 | BA10: 8 | BB10: 2013-12-08
A11: ARM D2 | B11: 2019-12-06T15:00:00 | C11: Ani Yerevan | D11: 13 | E11: 8 | F11: 1.1 | G11: 0.0692 | H11: 0.1125 | I11: 0.8183 | J11: 0.8996 | K11: Urartu II | L11: View(21) | Z11: 5 | BA11: 9 | BB11: 2013-12-09
BA12: 10 | BB12: 2013-12-10
A13: ARM D2 | B13: 2019-12-06T15:00:00 | C13: BKMA | D13: 6.5 | E13: 4.75 | F13: 1.33 | G13: 0.1378 | H13: 0.1886 | I13: 0.6736 | J13: 0.8957 | K13: Rail Locomotive | L13: View(25) | Z13: 5 | AA13: 43805.625 | AB13: ARM D2 | AC13: BKMA | AD13: Rail Locomotive | AE13: 6.5 | AF13: 4.75 | AG13: 1.33 | AH13: 7 | AI13: 5.5 | AJ13: 1.3 | AK13: 0.8957 | AL13: 0.9142 | BA13: 11 | BB13: 2013-12-11
A14: 7 | B14: 5.5 | C14: 1.3 | D14: 0.1306 | E14: 0.1662 | F14: 0.7032 | G14: 0.9142 | BA14: 12 | BB14: 2013-12-12
A15: ARM D2 | B15: 2019-12-06T15:00:00 | C15: FC West Armenia | D15: 1.5 | E15: 4.5 | F15: 4.33 | G15: 0.5953 | H15: 0.1984 | I15: 0.2062 | J15: 0.8929 | K15: Se Wan Boy | L15: View(31) | Z15: 5 | AA15: 43805.625 | AB15: ARM D2 | AC15: FC West Armenia | AD15: Se Wan Boy | AE15: 1.5 | AF15: 4.5 | AG15: 4.33 | AH15: 1.5 | AI15: 4.75 | AJ15: 4.75 | AK15: 0.8929 | AL15: 0.9193 | BA15: 13 | BB15: 2013-12-13
A16: 1.5 | B16: 4.75 | C16: 4.75 | D16: 0.6129 | E16: 0.1935 | F16: 0.1935 | G16: 0.9193 | BA16: 14 | BB16: 2013-12-14
A17: ISR CL | B17: 2019-12-06T15:00:00 | C17: Beitar Ramat Gan | D17: 2.8 | E17: 3.6 | F17: 2.1 | G17: 0.3214 | H17: 0.25 | I17: 0.4286 | J17: 0.8999 | K17: Hapoel Qalansawe | L17: View(20) | Z17: 5 | AA17: 43805.625 | AB17: ISR CL | AC17: Beitar Ramat Gan | AD17: Hapoel Qalansawe | AE17: 2.8 | AF17: 3.6 | AG17: 2.1 | AH17: 3 | AI17: 3.6 | AJ17: 2.05 | AK17: 0.8999 | AL17: 0.9099 | BA17: 15 | BB17: 2013-12-15
A18: 3 | B18: 3.6 | C18: 2.05 | D18: 0.3033 | E18: 0.2528 | F18: 0.4439 | G18: 0.9099 | BA18: 16 | BB18: 2013-12-16
A19: ISR CL | B19: 2019-12-06T15:00:00 | C19: Hapoel Mahane Yehuda | D19: 2.4 | E19: 3.4 | F19: 2.5 | G19: 0.3751 | H19: 0.2648 | I19: 0.3601 | J19: 0.9002 | K19: Otzma FC Holon | L19: View(22) | Z19: 5 | AA19: 43805.625 | AB19: ISR CL | AC19: Hapoel Mahane Yehuda | AD19: Otzma FC Holon | AE19: 2.4 | AF19: 3.4 | AG19: 2.5 | AH19: 2 | AI19: 3.5 | AJ19: 3.2 | AK19: 0.9002 | AL19: 0.9106 | BA19: 17 | BB19: 2013-12-17
A20: 2 | B20: 3.5 | C20: 3.2 | D20: 0.4553 | E20: 0.2602 | F20: 0.2846 | G20: 0.9106 | BA20: 18 | BB20: 2013-12-18
A21: ISR CL | B21: 2019-12-06T15:00:00 | C21: Maccabi Ironi Sderot | D21: 1.8 | E21: 3.6 | F21: 3.6 | G21: 0.5 | H21: 0.25 | I21: 0.25 | J21: 0.9 | K21: MS Hapoel Yeroham | L21: View(26) | Z21: 5 | AA21: 43805.625 | AB21: ISR CL | AC21: Maccabi Ironi Sderot | AD21: MS Hapoel Yeroham | AE21: 1.8 | AF21: 3.6 | AG21: 3.6 | AH21: 1.83 | AI21: 3.6 | AJ21: 3.8 | AK21: 0.9 | AL21: 0.9196 | BA21: 19 | BB21: 2013-12-19
A22: 1.83 | B22: 3.6 | C22: 3.8 | D22: 0.5025 | E22: 0.2555 | F22: 0.242 | G22: 0.9196 | BA22: 20 | BB22: 2013-12-20
A23: ISR CL | B23: 2019-12-06T15:00:00 | C23: SC Shicun Hamizrah | D23: 1.22 | E23: 5.5 | F23: 9 | G23: 0.7367 | H23: 0.1634 | I23: 0.0999 | J23: 0.8988 | K23: Beitar Ironi Maale Adumim | L23: View(12) | Z23: 5 | BA23: 21 | BB23: 2013-12-21
BA24: 22 | BB24: 2013-12-22
A25: ALG WL | B25: 2019-12-06T15:00:00 | C25: AR Guelma (W) | D25: 17 | E25: 11 | F25: 1.06 | G25: 0.0538 | H25: 0.0832 | I25: 0.863 | J25: 0.9146 | K25: FC Constantine（W） | L25: View(3) | Z25: 5 | BA25: 23 | BB25: 2013-12-23
BA26: 24 | BB26: 2013-12-24
A27: ALG WL | B27: 2019-12-06T15:00:00 | C27: AS Oran Centre Women | D27: 13 | E27: 9 | F27: 1.1 | G27: 0.0701 | H27: 0.1013 | I27: 0.8286 | J27: 0.9113 | K27: Afak Relizane（W） | L27: View(4) | Z27: 5 | BA27: 25 | BB27: 2013-12-25
BA28: 26 | BB28: 2013-12-26
A29: ALG WL | B29: 2019-12-06T15:00:00 | C29: CF Akbou（W） | D29: 2.75 | E29: 3.75 | F29: 2.05 | G29: 0.3252 | H29: 0.2385 | I29: 0.4363 | J29: 0.8943 | K29: AS Surete Nationale Women | L29: View(6) | Z29: 5 | AA29: 43805.625 | AB29: ALG WL | AC29: CF Akbou（W） | AD29: AS Surete Nationale Women | AE29: 2.75 | AF29: 3.75 | AG29: 2.05 | AH29: 3 | AI29: 3.8 | AJ29: 1.95 | AK29: 0.8943 | AL29: 0.9015 | BA29: 27 | BB29: 2013-12-27
A30: 3 | B30: 3.8 | C30: 1.95 | D30: 0.3005 | E30: 0.2372 | F30: 0.4623 | G30: 0.9015 | BA30: 28 | BB30: 2013-12-28
A31: ALG WL | B31: 2019-12-06T15:00:00 | C31: FC Bejaia（W） | D31: 2.87 | E31: 3.75 | F31: 2 | G31: 0.3125 | H31: 0.2391 | I31: 0.4484 | J31: 0.8969 | K31: ESF Amizour （W） | L31: View(5) | Z31: 5 | BA31: 29 | BB31: 2013-12-29
BA32: 30 | BB32: 2013-12-30
A33: ALG WL | B33: 2019-12-06T15:00:00 | C33: JF Khroub（W） | D33: 1.02 | E33: 15 | F33: 26 | G33: 0.9032 | H33: 0.0614 | I33: 0.0354 | J33: 0.9213 | K33: AS Intissar Oran （W） | L33: View(4) | Z33: 5 | BA33: 31 | BB33: 2013-12-31
BA34: 32 | BB34: 2014-01-01
A35: IND BLR SD | B35: 2019-12-06T15:00:00 | C35: Bengaluru B | D35: 1.61 | E35: 4 | F35: 4 | G35: 0.554 | H35: 0.223 | I35: 0.223 | J35: 0.8919 | K35: MEG | L35: View(11) | Z35: 5 | BA35: 33 | BB35: 2014-01-02
BA36: 34 | BB36: 2014-01-03
A37: IRN D1 | B37: 2019-12-06T15:30:00 | C37: Khouneh Be Khouneh | D37: 1.66 | E37: 3.3 | F37: 4.75 | G37: 0.5398 | H37: 0.2715 | I37: 0.1886 | J37: 0.8961 | K37: Malavan | L37: View(54) | Z37: 5 | BA37: 35 | BB37: 2014-01-04
BA38: 36 | BB38: 2014-01-05
A39: IRN D1 | B39: 2019-12-06T15:30:00 | C39: Qashqai Shiraz | D39: 2.5 | E39: 2.87 | F39: 2.75 | G39: 0.3597 | H39: 0.3133 | I39: 0.327 | J39: 0.8993 | K39: Damash Gilan FC | L39: View(63) | Z39: 5 | BA39: 37 | BB39: 2014-01-06
BA40: 38 | BB40: 2014-01-07
A41: IRN D1 | B41: 2019-12-06T15:30:00 | C41: Shahrdary Arak | D41: 2.1 | E41: 3 | F41: 3.3 | G41: 0.428 | H41: 0.2996 | I41: 0.2724 | J41: 0.8988 | K41: Mes krman | L41: View(66) | Z41: 5 | BA41: 39 | BB41: 2014-01-08
BA42: 40 | BB42: 2014-01-09
A43: IRN D1 | B43: 2019-12-06T15:30:00 | C43: Shahrdari Tabriz | D43: 7.5 | E43: 4 | F43: 1.36 | G43: 0.1192 | H43: 0.2235 | I43: 0.6573 | J43: 0.894 | K43: Oxin Alborz | L43: View(41) | Z43: 5 | BA43: 41 | BB43: 2014-01-10
BA44: 42 | BB44: 2014-01-11
A45: IRN D1 | B45: 2019-12-06T15:30:00 | C45: Niroye Zamini | D45: 2.87 | E45: 2.75 | F45: 2.5 | G45: 0.3133 | H45: 0.327 | I45: 0.3597 | J45: 0.8992 | K45: Fajr Sepasi | L45: View(66) | Z45: 5 | BA45: 43 | BB45: 2014-01-12
BA46: 44 | BB46: 2014-01-13
A47: IRN D1 | B47: 2019-12-06T15:30:00 | C47: Sepidrood Rasht | D47: 2.6 | E47: 2.75 | F47: 2.75 | G47: 0.3459 | H47: 0.327 | I47: 0.327 | J47: 0.8993 | K47: Baderan Tehran FC | L47: View(61) | Z47: 5 | BA47: 45 | BB47: 2014-01-14
BA48: 46 | BB48: 2014-01-15
A49: IRN D1 | B49: 2019-12-06T15:30:00 | C49: Persepolis Pakdasht | D49: 1.72 | E49: 3.2 | F49: 4.5 | G49: 0.5209 | H49: 0.28 | I49: 0.1991 | J49: 0.8959 | K49: Arman Gohar Sirjan | L49: View(62) | Z49: 5 | BA49: 47 | BB49: 2014-01-16
BA50: 48 | BB50: 2014-01-17
A51: IRN D1 | B51: 2019-12-06T15:30:00 | C51: Mes Rafsanjan | D51: 2.2 | E51: 2.75 | F51: 3.4 | G51: 0.4087 | H51: 0.3269 | I51: 0.2644 | J51: 0.8991 | K51: Navad Urmia | L51: View(66) | Z51: 5 | BA51: 49 | BB51: 2014-01-18
BA52: 50 | BB52: 2014-01-19
A53: ISR D3 | B53: 2019-12-06T15:30:00 | C53: Hapoel Ironi Baka El Garbiya | D53: 4.5 | E53: 3.75 | F53: 1.6 | G53: 0.1995 | H53: 0.2394 | I53: 0.5611 | J53: 0.8978 | K53: Rubi Shapira | L53: View(32) | Z53: 5 | AA53: 43805.64583 | AB53: ISR D3 | AC53: Hapoel Ironi Baka El Garbiya | AD53: Rubi Shapira | AE53: 4.5 | AF53: 3.75 | AG53: 1.6 | AH53: 5.25 | AI53: 4 | AJ53: 1.53 | AK53: 0.8978 | AL53: 0.914 | BA53: 51 | BB53: 2014-01-20
A54: 5.25 | B54: 4 | C54: 1.53 | D54: 0.1741 | E54: 0.2285 | F54: 0.5974 | G54: 0.914 | BA54: 52 | BB54: 2014-01-21
A55: ISR D3 | B55: 2019-12-06T15:30:00 | C55: Hakoah Amidar Ramat Gan FC | D55: 1.28 | E55: 5 | F55: 7.5 | G55: 0.7009 | H55: 0.1794 | I55: 0.1196 | J55: 0.8972 | K55: Hapoel Bikat Hayarden | L55: View(54) | Z55: 5 | AA55: 43805.64583 | AB55: ISR D3 | AC55: Hakoah Amidar Ramat Gan FC | AD55: Hapoel Bikat Hayarden | AE55: 1.28 | AF55: 5 | AG55: 7.5 | AH55: 1.55 | AI55: 4.33 | AJ55: 4.5 | AK55: 0.8972 | AL55: 0.9105 | BA55: 53 | BB55: 2014-01-22
A56: 1.55 | B56: 4.33 | C56: 4.5 | D56: 0.5874 | E56: 0.2103 | F56: 0.2023 | G56: 0.9105 | BA56: 54 | BB56: 2014-01-23
A57: Spain D4 | B57: 2019-12-06T15:30:00 | C57: CF Trival Valderas | D57: 1.57 | E57: 3.75 | F57: 4.75 | G57: 0.5717 | H57: 0.2393 | I57: 0.189 | J57: 0.8976 | K57: ED Moratalaz | L57: View(33) | Z57: 5 | AA57: 43805.64583 | AB57: Spain D4 | AC57: CF Trival Valderas | AD57: ED Moratalaz | AE57: 1.57 | AF57: 3.75 | AG57: 4.75 | AH57: 1.57 | AI57: 3.8 | AJ57: 5.25 | AK57: 0.8976 | AL57: 0.9169 | BA57: 55 | BB57: 2014-01-24
A58: 1.57 | B58: 3.8 | C58: 5.25 | D58: 0.584 | E58: 0.2413 | F58: 0.1747 | G58: 0.9169 | BA58: 56 | BB58: 2014-01-25
A59: Spain D4 | B59: 2019-12-06T15:30:00 | C59: Villaverde Boetticher CF | D59: 3.75 | E59: 3.4 | F59: 1.8 | G59: 0.2389 | H59: 0.2635 | I59: 0.4977 | J59: 0.8959 | K59: Alcorcon B | L59: View(21) | Z59: 5 | AA59: 43805.64583 | AB59: Spain D4 | AC59: Villaverde Boetticher CF | AD59: Alcorcon B | AE59: 3.75 | AF59: 3.4 | AG59: 1.8 | AH59: 3.6 | AI59: 3.3 | AJ59: 1.9 | AK59: 0.8959 | AL59: 0.9032 | BA59: 57 | BB59: 2014-01-26
A60: 3.6 | B60: 3.3 | C60: 1.9 | D60: 0.2509 | E60: 0.2737 | F60: 0.4754 | G60: 0.9032 | BA60: 58 | BB60: 2014-01-27
A61: Ken D1 | B61: 2019-12-06T15:30:00 | C61: Kariobangi Sharks | D61: 5.5 | E61: 4.2 | F61: 1.44 | G61: 0.1632 | H61: 0.2137 | I61: 0.6232 | J61: 0.8976 | K61: Tusker | L61: View(79) | Z61: 5 | AA61: 43805.64583 | AB61: Ken D1 | AC61: Kariobangi Sharks | AD61: Tusker | AE61: 5.5 | AF61: 4.2 | AG61: 1.44 | AH61: 3.5 | AI61: 3.5 | AJ61: 1.9 | AK61: 0.8976 | AL61: 0.9111 | BA61: 59 | BB61: 2014-01-28
A62: 3.5 | B62: 3.5 | C62: 1.9 | D62: 0.2603 | E62: 0.2603 | F62: 0.4795 | G62: 0.9111 | BA62: 60 | BB62: 2014-01-29
A63: ISR CL | B63: 2019-12-06T15:30:00 | C63: Maccabi Lroni Kiryat Malakhi | D63: 1.44 | E63: 4.5 | F63: 5 | G63: 0.6219 | H63: 0.199 | I63: 0.1791 | J63: 0.8955 | K63: Maccabi Ironi Netivot | L63: View(24) | Z63: 5 | AA63: 43805.64583 | AB63: ISR CL | AC63: Maccabi Lroni Kiryat Malakhi | AD63: Maccabi Ironi Netivot | AE63: 1.44 | AF63: 4.5 | AG63: 5 | AH63: 1.3 | AI63: 5 | AJ63: 8 | AK63: 0.8955 | AL63: 0.9139 | BA63: 61 | BB63: 2014-01-30
A64: 1.3 | B64: 5 | C64: 8 | D64: 0.703 | E64: 0.1828 | F64: 0.1142 | G64: 0.9139 | BA64: 62 | BB64: 2014-01-31
A65: ISR CL | B65: 2019-12-06T15:30:00 | C65: SC Beer Sheva | D65: 2.1 | E65: 3.6 | F65: 2.8 | G65: 0.4286 | H65: 0.25 | I65: 0.3214 | J65: 0.9001 | K65: Beitar Ironi Kiryat Gat | L65: View(22) | Z65: 5 | AA65: 43805.64583 | AB65: ISR CL | AC65: SC Beer Sheva | AD65: Beitar Ironi Kiryat Gat | AE65: 2.1 | AF65: 3.6 | AG65: 2.8 | AH65: 1.55 | AI65: 4 | AJ65: 5 | AK65: 0.9001 | AL65: 0.9131 | BA65: 63 | BB65: 2014-02-01
A66: 1.55 | B66: 4 | C66: 5 | D66: 0.5891 | E66: 0.2283 | F66: 0.1826 | G66: 0.9131 | BA66: 64 | BB66: 2014-02-02
A67: WIE W U19 | B67: 2019-12-06T15:30:00 | C67: Phong Phu Ha Nam U19 Women | D67: 2 | E67: 3.6 | F67: 3 | G67: 0.45 | H67: 0.25 | I67: 0.3 | J67: 0.9 | K67: Than KSVN U19 Women | L67: View(2) | Z67: 5 | BA67: 65 | BB67: 2014-02-03
Z68: =IFERROR(IF(L68="","",FIND("(",L68,1)),"") ->  | AA68: =IF(AB68="","",B68) ->  | AB68: =IFERROR(IF(AND(Z68<>"",A68<>"",A69<>""),A68,""),"") ->  | AC68: =IF(AB68="","",C68) ->  | AD68: =IF(AB68="","",K68) ->  | AE68: =IF($AB68="","",D68) ->  | AF68: =IF($AB68="","",E68) ->  | AG68: =IF($AB68="","",F68) ->  | AH68: =IF($AB68="","",A69) ->  | AI68: =IF($AB68="","",B69) ->  | AJ68: =IF($AB68="","",C69) ->  | AK68: =IF(AB68="","",J68) ->  | AL68: =IF(AB68="","",G69) ->  | BA68: 66 | BB68: 2014-02-04
A69: ISR D3 | B69: 2019-12-06T15:45:00 | C69: Hapoel Holon Yaniv | D69: 3 | E69: 3.1 | F69: 2.2 | G69: 0.3002 | H69: 0.2905 | I69: 0.4093 | J69: 0.9006 | K69: Hapoel Marmorek lrony Rehovot | L69: View(39) | Z69: 5 | AA69: 43805.65625 | AB69: ISR D3 | AC69: Hapoel Holon Yaniv | AD69: Hapoel Marmorek lrony Rehovot | AE69: 3 | AF69: 3.1 | AG69: 2.2 | AH69: 3.4 | AI69: 3.2 | AJ69: 2.05 | AK69: 0.9006 | AL69: 0.9136 | BA69: 67 | BB69: 2014-02-05
A70: 3.4 | B70: 3.2 | C70: 2.05 | D70: 0.2687 | E70: 0.2855 | F70: 0.4457 | G70: 0.9136 | BA70: 68 | BB70: 2014-02-06
A71: ISR D3 | B71: 2019-12-06T15:45:00 | C71: Hapoel Iksal | D71: 1.5 | E71: 4.2 | F71: 4.75 | G71: 0.5978 | H71: 0.2135 | I71: 0.1888 | J71: 0.8967 | K71: Hapoel Bnei Zalfa | L71: View(49) | Z71: 5 | AA71: 43805.65625 | AB71: ISR D3 | AC71: Hapoel Iksal | AD71: Hapoel Bnei Zalfa | AE71: 1.5 | AF71: 4.2 | AG71: 4.75 | AH71: 1.53 | AI71: 4.2 | AJ71: 5.25 | AK71: 0.8967 | AL71: 0.9241 | BA71: 69 | BB71: 2014-02-07
A72: 1.53 | B72: 4.2 | C72: 5.25 | D72: 0.604 | E72: 0.22 | F72: 0.176 | G72: 0.9241 | BA72: 70 | BB72: 2014-02-08
A73: ISR D3 | B73: 2019-12-06T15:45:00 | C73: Maccabi Tzur Shalom | D73: 3.4 | E73: 3.4 | F73: 1.9 | G73: 0.2639 | H73: 0.2639 | I73: 0.4722 | J73: 0.8973 | K73: Hapoel Kaukab | L73: View(53) | Z73: 5 | AA73: 43805.65625 | AB73: ISR D3 | AC73: Maccabi Tzur Shalom | AD73: Hapoel Kaukab | AE73: 3.4 | AF73: 3.4 | AG73: 1.9 | AH73: 3.4 | AI73: 3.4 | AJ73: 2 | AK73: 0.8973 | AL73: 0.919 | BA73: 71 | BB73: 2014-02-09
A74: 3.4 | B74: 3.4 | C74: 2 | D74: 0.2703 | E74: 0.2703 | F74: 0.4595 | G74: 0.919 | BA74: 72 | BB74: 2014-02-10
A75: ISR D3 | B75: 2019-12-06T15:45:00 | C75: Shimshon Kafr Qasim | D75: 1.6 | E75: 3.75 | F75: 4.5 | G75: 0.5611 | H75: 0.2394 | I75: 0.1995 | J75: 0.8978 | K75: Maccabi Yavne | L75: View(53) | Z75: 5 | AA75: 43805.65625 | AB75: ISR D3 | AC75: Shimshon Kafr Qasim | AD75: Maccabi Yavne | AE75: 1.6 | AF75: 3.75 | AG75: 4.5 | AH75: 1.95 | AI75: 3.4 | AJ75: 3.5 | AK75: 0.8978 | AL75: 0.9151 | BA75: 73 | BB75: 2014-02-11
A76: 1.95 | B76: 3.4 | C76: 3.5 | D76: 0.4693 | E76: 0.2692 | F76: 0.2615 | G76: 0.9151 | BA76: 74 | BB76: 2014-02-12
A77: SPA D2 | B77: 2019-12-06T16:00:00 | C77: Albacete | D77: 2 | E77: 3.1 | F77: 4.2 | G77: 0.4714 | H77: 0.3041 | I77: 0.2245 | J77: 0.9428 | K77: Extremadura | L77: View(187) | Z77: 5 | AA77: 43805.66667 | AB77: SPA D2 | AC77: Albacete | AD77: Extremadura | AE77: 2 | AF77: 3.1 | AG77: 4.2 | AH77: 2.05 | AI77: 3.1 | AJ77: 4 | AK77: 0.9428 | AL77: 0.943 | BA77: 75 | BB77: 2014-02-13
A78: 2.05 | B78: 3.1 | C78: 4 | D78: 0.46 | E78: 0.3042 | F78: 0.2358 | G78: 0.943 | BA78: 76 | BB78: 2014-02-14
A79: SPA D3 | B79: 2019-12-06T16:00:00 | C79: CD Izarra | D79: 3.4 | E79: 3.4 | F79: 1.9 | G79: 0.2639 | H79: 0.2639 | I79: 0.4722 | J79: 0.8973 | K79: UD Logrones | L79: View(111) | Z79: 5 | AA79: 43805.66667 | AB79: SPA D3 | AC79: CD Izarra | AD79: UD Logrones | AE79: 3.4 | AF79: 3.4 | AG79: 1.9 | AH79: 3.2 | AI79: 3.3 | AJ79: 2.1 | AK79: 0.8973 | AL79: 0.9158 | BA79: 77 | BB79: 2014-02-15
A80: 3.2 | B80: 3.3 | C80: 2.1 | D80: 0.2862 | E80: 0.2776 | F80: 0.4362 | G80: 0.9158 | BA80: 78 | BB80: 2014-02-16
A81: IRN D1 | B81: 2019-12-06T16:00:00 | C81: Esteghlal Khozestan | D81: 2.5 | E81: 2.75 | F81: 2.87 | G81: 0.3597 | H81: 0.327 | I81: 0.3133 | J81: 0.8993 | K81: Khooshe Talaee Sana Saveh | L81: View(67) | Z81: 5 | BA81: 79 | BB81: 2014-02-17
BA82: 80 | BB82: 2014-02-18
A83: ISR D3 | B83: 2019-12-06T16:00:00 | C83: Maccabi Tamra | D83: 1.53 | E83: 3.75 | F83: 5 | G83: 0.5834 | H83: 0.238 | I83: 0.1785 | J83: 0.8926 | K83: Maccabi Ironi Kiryat Ata | L83: View(41) | Z83: 5 | AA83: 43805.66667 | AB83: ISR D3 | AC83: Maccabi Tamra | AD83: Maccabi Ironi Kiryat Ata | AE83: 1.53 | AF83: 3.75 | AG83: 5 | AH83: 1.65 | AI83: 3.6 | AJ83: 4.75 | AK83: 0.8926 | AL83: 0.9138 | BA83: 81 | BB83: 2014-02-19
A84: 1.65 | B84: 3.6 | C84: 4.75 | D84: 0.5538 | E84: 0.2538 | F84: 0.1924 | G84: 0.9138 | BA84: 82 | BB84: 2014-02-20
A85: ISR D3 | B85: 2019-12-06T16:00:00 | C85: Ironi Tiberias | D85: 2 | E85: 3.25 | F85: 3.25 | G85: 0.4483 | H85: 0.2759 | I85: 0.2759 | J85: 0.8966 | K85: Hapoel Asi Gilboa | L85: View(50) | Z85: 5 | AA85: 43805.66667 | AB85: ISR D3 | AC85: Ironi Tiberias | AD85: Hapoel Asi Gilboa | AE85: 2 | AF85: 3.25 | AG85: 3.25 | AH85: 1.83 | AI85: 3.5 | AJ85: 3.75 | AK85: 0.8966 | AL85: 0.9101 | BA85: 83 | BB85: 2014-02-21
A86: 1.83 | B86: 3.5 | C86: 3.75 | D86: 0.4973 | E86: 0.26 | F86: 0.2427 | G86: 0.9101 | BA86: 84 | BB86: 2014-02-22
A87: ISR D3 | B87: 2019-12-06T16:00:00 | C87: Maccabi Shaarayim | D87: 4.2 | E87: 3.6 | F87: 1.66 | G87: 0.2129 | H87: 0.2484 | I87: 0.5387 | J87: 0.8942 | K87: AS Ashdod | L87: View(35) | Z87: 5 | AA87: 43805.66667 | AB87: ISR D3 | AC87: Maccabi Shaarayim | AD87: AS Ashdod | AE87: 4.2 | AF87: 3.6 | AG87: 1.66 | AH87: 4.2 | AI87: 3.6 | AJ87: 1.72 | AK87: 0.8942 | AL87: 0.9114 | BA87: 85 | BB87: 2014-02-23
A88: 4.2 | B88: 3.6 | C88: 1.72 | D88: 0.217 | E88: 0.2532 | F88: 0.5299 | G88: 0.9114 | BA88: 86 | BB88: 2014-02-24
A89: ISR D3 | B89: 2019-12-06T16:00:00 | C89: Maccabi Herzliya | D89: 1.16 | E89: 7.5 | F89: 8 | G89: 0.7694 | H89: 0.119 | I89: 0.1116 | J89: 0.8925 | K89: Maccabi Kiryat Gat | L89: View(36) | Z89: 5 | AA89: 43805.66667 | AB89: ISR D3 | AC89: Maccabi Herzliya | AD89: Maccabi Kiryat Gat | AE89: 1.16 | AF89: 7.5 | AG89: 8 | AH89: 1.04 | AI89: 15 | AJ89: 29 | AK89: 0.8925 | AL89: 0.941 | BA89: 87 | BB89: 2014-02-25
A90: 1.04 | B90: 15 | C90: 29 | D90: 0.9048 | E90: 0.0627 | F90: 0.0324 | G90: 0.941 | BA90: 88 | BB90: 2014-02-26
A91: RUS YthC | B91: 2019-12-06T16:00:00 | C91: FC Terek Groznyi Youth | D91: 1.66 | E91: 4.2 | F91: 3.6 | G91: 0.5387 | H91: 0.2129 | I91: 0.2484 | J91: 0.8942 | K91: Ufa Youth | L91: View(42) | Z91: 5 | AA91: 43805.66667 | AB91: RUS YthC | AC91: FC Terek Groznyi Youth | AD91: Ufa Youth | AE91: 1.66 | AF91: 4.2 | AG91: 3.6 | AH91: 1.9 | AI91: 4 | AJ91: 3.1 | AK91: 0.8942 | AL91: 0.9099 | BA91: 89 | BB91: 2014-02-27
A92: 1.9 | B92: 4 | C92: 3.1 | D92: 0.4789 | E92: 0.2275 | F92: 0.2935 | G92: 0.9099 | BA92: 90 | BB92: 2014-02-28
A93: UKR U21 | B93: 2019-12-06T16:00:00 | C93: Kolos Kovalivka U21 | D93: 2 | E93: 3.75 | F93: 2.9 | G93: 0.4498 | H93: 0.2399 | I93: 0.3102 | J93: 0.8996 | K93: Dnipro-1 U21 | L93: View(24) | Z93: 5 | AA93: 43805.66667 | AB93: UKR U21 | AC93: Kolos Kovalivka U21 | AD93: Dnipro-1 U21 | AE93: 2 | AF93: 3.75 | AG93: 2.9 | AH93: 2 | AI93: 3.8 | AJ93: 3 | AK93: 0.8996 | AL93: 0.912 | BA93: 91 | BB93: 2014-03-01
A94: 2 | B94: 3.8 | C94: 3 | D94: 0.456 | E94: 0.24 | F94: 0.304 | G94: 0.912 | BA94: 92 | BB94: 2014-03-02
A95: UKR U21 | B95: 2019-12-06T16:00:00 | C95: PFC Oleksandria U21 | D95: 2 | E95: 4 | F95: 2.75 | G95: 0.449 | H95: 0.2245 | I95: 0.3265 | J95: 0.898 | K95: FC Vorskla U21 | L95: View(34) | Z95: 5 | BA95: 93 | BB95: 2014-03-03
BA96: 94 | BB96: 2014-03-04
A97: Spain D4 | B97: 2019-12-06T16:00:00 | C97: EDMF Churra | D97: 1.75 | E97: 3.6 | F97: 3.75 | G97: 0.5121 | H97: 0.2489 | I97: 0.239 | J97: 0.8962 | K97: Huercal | L97: View(28) | Z97: 5 | AA97: 43805.66667 | AB97: Spain D4 | AC97: EDMF Churra | AD97: Huercal | AE97: 1.75 | AF97: 3.6 | AG97: 3.75 | AH97: 1.72 | AI97: 3.75 | AJ97: 4 | AK97: 0.8962 | AL97: 0.9107 | BA97: 95 | BB97: 2014-03-05
A98: 1.72 | B98: 3.75 | C98: 4 | D98: 0.5295 | E98: 0.2429 | F98: 0.2277 | G98: 0.9107 | BA98: 96 | BB98: 2014-03-06
A99: Spain D4 | B99: 2019-12-06T16:00:00 | C99: CD Berceo | D99: 1.8 | E99: 3.6 | F99: 3.6 | G99: 0.5 | H99: 0.25 | I99: 0.25 | J99: 0.9 | K99: Vianes | L99: View(29) | Z99: 5 | AA99: 43805.66667 | AB99: Spain D4 | AC99: CD Berceo | AD99: Vianes | AE99: 1.8 | AF99: 3.6 | AG99: 3.6 | AH99: 1.75 | AI99: 3.6 | AJ99: 4 | AK99: 0.9 | AL99: 0.9098 | BA99: 97 | BB99: 2014-03-07
A100: 1.75 | B100: 3.6 | C100: 4 | D100: 0.5199 | E100: 0.2527 | F100: 0.2274 | G100: 0.9098 | BA100: 98 | BB100: 2014-03-08
A101: Spain D4 | B101: 2019-12-06T16:00:00 | C101: DAV Santa Ana | D101: 2.62 | E101: 3.1 | F101: 2.45 | G101: 0.3431 | H101: 0.29 | I101: 0.3669 | J101: 0.8989 | K101: AD Union Adarve | L101: View(24) | Z101: 5 | BA101: 99 | BB101: 2014-03-09
BA102: 100 | BB102: 2014-03-10
A103: Ken D1 | B103: 2019-12-06T16:00:00 | C103: Bandari | D103: 2 | E103: 3.1 | F103: 3.4 | G103: 0.4477 | H103: 0.2889 | I103: 0.2634 | J103: 0.8954 | K103: Wazito FC | L103: View(65) | Z103: 5 | BA103: 101 | BB103: 2014-03-11
BA104: 102 | BB104: 2014-03-12
A105: SPA WD2 | B105: 2019-12-06T16:00:00 | C105: collerense (w) | D105: 13 | E105: 9 | F105: 1.1 | G105: 0.0701 | H105: 0.1013 | I105: 0.8286 | J105: 0.9113 | K105: Fundacion Albacete (W) | L105: View(7) | Z105: 5 | BA105: 103 | BB105: 2014-03-13
BA106: 104 | BB106: 2014-03-14
A107: ISR CL | B107: 2019-12-06T16:00:00 | C107: Ironi Modiin | D107: 1.28 | E107: 5 | F107: 7.5 | G107: 0.7009 | H107: 0.1794 | I107: 0.1196 | J107: 0.8972 | K107: MS Hapoel Lod | L107: View(12) | Z107: 5 | BA107: 105 | BB107: 2014-03-15
BA108: 106 | BB108: 2014-03-16
A109: ISR CL | B109: 2019-12-06T16:00:00 | C109: SC Bnei Yaffo Ortodoxim | D109: 2.2 | E109: 3.6 | F109: 2.62 | G109: 0.408 | H109: 0.2494 | I109: 0.3426 | J109: 0.8976 | K109: Hapoel Hod HaSharon | L109: View(12) | Z109: 5 | BA109: 107 | BB109: 2014-03-17
BA110: 108 | BB110: 2014-03-18
A111: ISR CL | B111: 2019-12-06T16:00:00 | C111: Sport Club Dimona | D111: 1.14 | E111: 6.5 | F111: 12 | G111: 0.7872 | H111: 0.1381 | I111: 0.0748 | J111: 0.8974 | K111: Moadon Zeirey Rahat | L111: View(2) | Z111: 5 | AA111: 43805.66667 | AB111: ISR CL | AC111: Sport Club Dimona | AD111: Moadon Zeirey Rahat | AE111: 1.14 | AF111: 6.5 | AG111: 12 | AH111: 1.03 | AI111: 17 | AJ111: 29 | AK111: 0.8974 | AL111: 0.9397 | BA111: 109 | BB111: 2014-03-19
A112: 1.03 | B112: 17 | C112: 29 | D112: 0.9123 | E112: 0.0553 | F112: 0.0324 | G112: 0.9397 | BA112: 110 | BB112: 2014-03-20
A113: ISR CL | B113: 2019-12-06T16:00:00 | C113: Maccabi Nujeidat Ahmed | D113: 1.44 | E113: 4.5 | F113: 5 | G113: 0.6219 | H113: 0.199 | I113: 0.1791 | J113: 0.8955 | K113: Hapoel Bnei Jat United | L113: View(2) | Z113: 5 | BA113: 111 | BB113: 2014-03-21
BA114: 112 | BB114: 2014-03-22
A115: ISR CL | B115: 2019-12-06T16:00:00 | C115: Beitar Kfar Saba Shlomi | D115: 2.4 | E115: 3.6 | F115: 2.4 | G115: 0.375 | H115: 0.25 | I115: 0.375 | J115: 0.9 | K115: Shimshon Tel Aviv | L115: View(25) | Z115: 5 | AA115: 43805.66667 | AB115: ISR CL | AC115: Beitar Kfar Saba Shlomi | AD115: Shimshon Tel Aviv | AE115: 2.4 | AF115: 3.6 | AG115: 2.4 | AH115: 3 | AI115: 3.75 | AJ115: 2.05 | AK115: 0.9 | AL115: 0.9192 | BA115: 113 | BB115: 2014-03-23
A116: 3 | B116: 3.75 | C116: 2.05 | D116: 0.3064 | E116: 0.2451 | F116: 0.4484 | G116: 0.9192 | BA116: 114 | BB116: 2014-03-24
A117: ISR CL | B117: 2019-12-06T16:00:00 | C117: Beitar Petah Tikva | D117: 5 | E117: 4.5 | F117: 1.44 | G117: 0.1791 | H117: 0.199 | I117: 0.6219 | J117: 0.8955 | K117: MS Tseirey Taybe | L117: View(11) | Z117: 5 | BA117: 115 | BB117: 2014-03-25
BA118: 116 | BB118: 2014-03-26
A119: SPA LU19 | B119: 2019-12-06T16:00:00 | C119: Leioa U19 | D119: 2.4 | E119: 3.6 | F119: 2.4 | G119: 0.375 | H119: 0.25 | I119: 0.375 | J119: 0.9 | K119: Antiguoko KE U19 | L119: View(9) | Z119: 5 | BA119: 117 | BB119: 2014-03-27
BA120: 118 | BB120: 2014-03-28
A121: SPA LU19 | B121: 2019-12-06T16:00:00 | C121: Malaga U19 | D121: 1.06 | E121: 11 | F121: 17 | G121: 0.863 | H121: 0.0832 | I121: 0.0538 | J121: 0.9148 | K121: Dos Hermanas U19 | L121: View(8) | Z121: 5 | BA121: 119 | BB121: 2014-03-29
BA122: 120 | BB122: 2014-03-30
A123: SPA LU19 | B123: 2019-12-06T16:00:00 | C123: Pena Barcelonista U19 | D123: 7 | E123: 6 | F123: 1.25 | G123: 0.1288 | H123: 0.1502 | I123: 0.721 | J123: 0.9016 | K123: Vazquez Cultural U19 | L123: View(6) | Z123: 5 | BA123: 121 | BB123: 2014-03-31
BA124: 122 | BB124: 2014-04-01
A125: SPA LU19 | B125: 2019-12-06T16:00:00 | C125: Recreativo Huelva U19 | D125: 6 | E125: 4.33 | F125: 1.4 | G125: 0.1499 | H125: 0.2077 | I125: 0.6424 | J125: 0.8994 | K125: Real Betis U19 | L125: View(16) | Z125: 5 | BA125: 123 | BB125: 2014-04-02
BA126: 124 | BB126: 2014-04-03
A127: SPA LU19 | B127: 2019-12-06T16:00:00 | C127: Valencia U19 | D127: 2.8 | E127: 3.6 | F127: 2.1 | G127: 0.3214 | H127: 0.25 | I127: 0.4286 | J127: 0.8999 | K127: Villarreal U19 | L127: View(22) | Z127: 5 | BA127: 125 | BB127: 2014-04-04
BA128: 126 | BB128: 2014-04-05
A129: ISR CL | B129: 2019-12-06T16:15:00 | C129: Ironi Beit Dagan | D129: 1.66 | E129: 4 | F129: 3.75 | G129: 0.5383 | H129: 0.2234 | I129: 0.2383 | J129: 0.8936 | K129: Hapoel Kfar Qasm Shuaa | L129: View(23) | Z129: 5 | AA129: 43805.67708 | AB129: ISR CL | AC129: Ironi Beit Dagan | AD129: Hapoel Kfar Qasm Shuaa | AE129: 1.66 | AF129: 4 | AG129: 3.75 | AH129: 1.66 | AI129: 4 | AJ129: 4 | AK129: 0.8936 | AL129: 0.907 | BA129: 127 | BB129: 2014-04-06
A130: 1.66 | B130: 4 | C130: 4 | D130: 0.5464 | E130: 0.2268 | F130: 0.2268 | G130: 0.907 | BA130: 128 | BB130: 2014-04-07
A131: IND D1 | B131: 2019-12-06T16:30:00 | C131: AIFF XI | D131: 5.5 | E131: 3.6 | F131: 1.53 | G131: 0.1633 | H131: 0.2495 | I131: 0.5871 | J131: 0.8982 | K131: Gokulam Kerala FC | L131: View(76) | Z131: 5 | BA131: 129 | BB131: 2014-04-08
Z132: =IFERROR(IF(L132="","",FIND("(",L132,1)),"") ->  | AA132: =IF(AB132="","",B132) ->  | AB132: =IFERROR(IF(AND(Z132<>"",A132<>"",A133<>""),A132,""),"") ->  | AC132: =IF(AB132="","",C132) ->  | AD132: =IF(AB132="","",K132) ->  | AE132: =IF($AB132="","",D132) ->  | AF132: =IF($AB132="","",E132) ->  | AG132: =IF($AB132="","",F132) ->  | AH132: =IF($AB132="","",A133) ->  | AI132: =IF($AB132="","",B133) ->  | AJ132: =IF($AB132="","",C133) ->  | AK132: =IF(AB132="","",J132) ->  | AL132: =IF(AB132="","",G133) ->  | BA132: 130 | BB132: 2014-04-09
A133: ISR D3 | B133: 2019-12-06T16:30:00 | C133: Hapoel Kfar Shalem | D133: 1.57 | E133: 3.75 | F133: 4.75 | G133: 0.5717 | H133: 0.2393 | I133: 0.189 | J133: 0.8976 | K133: Hapoel Azor | L133: View(49) | Z133: 5 | AA133: 43805.6875 | AB133: ISR D3 | AC133: Hapoel Kfar Shalem | AD133: Hapoel Azor | AE133: 1.57 | AF133: 3.75 | AG133: 4.75 | AH133: 1.5 | AI133: 3.8 | AJ133: 5.75 | AK133: 0.8976 | AL133: 0.906 | BA133: 131 | BB133: 2014-04-10
A134: 1.5 | B134: 3.8 | C134: 5.75 | D134: 0.604 | E134: 0.2384 | F134: 0.1576 | G134: 0.906 | BA134: 132 | BB134: 2014-04-11
A135: IDN ISL | B135: 2019-12-06T16:30:00 | C135: Barito Putera | D135: 1.44 | E135: 4 | F135: 5.75 | G135: 0.621 | H135: 0.2235 | I135: 0.1555 | J135: 0.8942 | K135: Semen Padang | L135: View(110) | Z135: 5 | AA135: 43805.6875 | AB135: IDN ISL | AC135: Barito Putera | AD135: Semen Padang | AE135: 1.44 | AF135: 4 | AG135: 5.75 | AH135: 1.57 | AI135: 4.2 | AJ135: 5.25 | AK135: 0.8942 | AL135: 0.9385 | BA135: 133 | BB135: 2014-04-12
A136: 1.57 | B136: 4.2 | C136: 5.25 | D136: 0.5978 | E136: 0.2235 | F136: 0.1788 | G136: 0.9385 | BA136: 134 | BB136: 2014-04-13
A137: IDN ISL | B137: 2019-12-06T16:30:00 | C137: Kalteng Putra FC | D137: 2.1 | E137: 3.6 | F137: 2.75 | G137: 0.4261 | H137: 0.2485 | I137: 0.3254 | J137: 0.8948 | K137: Madura United | L137: View(83) | Z137: 5 | AA137: 43805.6875 | AB137: IDN ISL | AC137: Kalteng Putra FC | AD137: Madura United | AE137: 2.1 | AF137: 3.6 | AG137: 2.75 | AH137: 2.2 | AI137: 3.6 | AJ137: 2.75 | AK137: 0.8948 | AL137: 0.9123 | BA137: 135 | BB137: 2014-04-14
A138: 2.2 | B138: 3.6 | C138: 2.75 | D138: 0.4147 | E138: 0.2535 | F138: 0.3318 | G138: 0.9123 | BA138: 136 | BB138: 2014-04-15
A139: SPA LU19 | B139: 2019-12-06T16:30:00 | C139: Marina Sport U19 | D139: 4.5 | E139: 4 | F139: 1.57 | G139: 0.2004 | H139: 0.2254 | I139: 0.5743 | J139: 0.9018 | K139: CF Bansander U19 | L139: View(15) | Z139: 5 | BA139: 137 | BB139: 2014-04-16
BA140: 138 | BB140: 2014-04-17
A141: SPA LU19 | B141: 2019-12-06T16:30:00 | C141: Valladolid U19 | D141: 1.83 | E141: 3.75 | F141: 3.3 | G141: 0.4896 | H141: 0.2389 | I141: 0.2715 | J141: 0.896 | K141: Getafe U19 | L141: View(11) | Z141: 5 | BA141: 139 | BB141: 2014-04-18
BA142: 140 | BB142: 2014-04-19
A143: CFC | B143: 2019-12-06T16:35:00 | C143: Shanghai Shenhua | D143: 2.9 | E143: 3.4 | F143: 2.37 | G143: 0.325 | H143: 0.2772 | I143: 0.3977 | J143: 0.9425 | K143: Shandong Luneng | L143: View(150) | Z143: 5 | AA143: 43805.69097 | AB143: CFC | AC143: Shanghai Shenhua | AD143: Shandong Luneng | AE143: 2.9 | AF143: 3.4 | AG143: 2.37 | AH143: 3.5 | AI143: 3.4 | AJ143: 2.05 | AK143: 0.9425 | AL143: 0.9366 | BA143: 141 | BB143: 2014-04-20
A144: 3.5 | B144: 3.4 | C144: 2.05 | D144: 0.2676 | E144: 0.2755 | F144: 0.4569 | G144: 0.9366 | BA144: 142 | BB144: 2014-04-21
A145: Spain D4 | B145: 2019-12-06T16:45:00 | C145: CD Mirandes B | D145: 2.3 | E145: 3.4 | F145: 2.6 | G145: 0.3905 | H145: 0.2641 | I145: 0.3454 | J145: 0.8981 | K145: Tuoer De Cilliers | L145: View(42) | Z145: 5 | AA145: 43805.69792 | AB145: Spain D4 | AC145: CD Mirandes B | AD145: Tuoer De Cilliers | AE145: 2.3 | AF145: 3.4 | AG145: 2.6 | AH145: 2.25 | AI145: 3.4 | AJ145: 2.8 | AK145: 0.8981 | AL145: 0.9126 | BA145: 143 | BB145: 2014-04-22
A146: 2.25 | B146: 3.4 | C146: 2.8 | D146: 0.4056 | E146: 0.2684 | F146: 0.3259 | G146: 0.9126 | BA146: 144 | BB146: 2014-04-23
A147: KSA D2 | B147: 2019-12-06T16:55:00 | C147: Jubail | D147: 1.66 | E147: 3.6 | F147: 4.2 | G147: 0.5387 | H147: 0.2484 | I147: 0.2129 | J147: 0.8942 | K147: Al-Suqoor(KSA) | L147: View(11) | Z147: 5 | BA147: 145 | BB147: 2014-04-24
BA148: 146 | BB148: 2014-04-25
A149: Spain D4 | B149: 2019-12-06T17:00:00 | C149: Panaderia Pulido | D149: 3 | E149: 3.3 | F149: 2.1 | G149: 0.2996 | H149: 0.2724 | I149: 0.428 | J149: 0.8988 | K149: CD Atletico Paso | L149: View(33) | Z149: 5 | BA149: 147 | BB149: 2014-04-26
BA150: 148 | BB150: 2014-04-27
A151: ENG PU23 | B151: 2019-12-06T17:00:00 | C151: Tottenham Hotspur U23 | D151: 2 | E151: 3.6 | F151: 3 | G151: 0.45 | H151: 0.25 | I151: 0.3 | J151: 0.9 | K151: Liverpool U23 | L151: View(39) | Z151: 5 | AA151: 43805.70833 | AB151: ENG PU23 | AC151: Tottenham Hotspur U23 | AD151: Liverpool U23 | AE151: 2 | AF151: 3.6 | AG151: 3 | AH151: 2.15 | AI151: 3.6 | AJ151: 2.8 | AK151: 0.9 | AL151: 0.909 | BA151: 149 | BB151: 2014-04-28
A152: 2.15 | B152: 3.6 | C152: 2.8 | D152: 0.4228 | E152: 0.2525 | F152: 0.3247 | G152: 0.909 | BA152: 150 | BB152: 2014-04-29
A153: ARG RESL | B153: 2019-12-06T17:00:00 | C153: Argentinos Jrs Reserves | D153: 2.87 | E153: 3.25 | F153: 2.2 | G153: 0.3137 | H153: 0.277 | I153: 0.4093 | J153: 0.9003 | K153: Estudiantes LP Reserves | L153: View(14) | Z153: 5 | AA153: 43805.70833 | AB153: ARG RESL | AC153: Argentinos Jrs Reserves | AD153: Estudiantes LP Reserves | AE153: 2.87 | AF153: 3.25 | AG153: 2.2 | AH153: 3.4 | AI153: 3.5 | AJ153: 1.95 | AK153: 0.9003 | AL153: 0.9153 | BA153: 151 | BB153: 2014-04-30
A154: 3.4 | B154: 3.5 | C154: 1.95 | D154: 0.2692 | E154: 0.2615 | F154: 0.4693 | G154: 0.9153 | BA154: 152 | BB154: 2014-05-01
A155: ARG RESL | B155: 2019-12-06T17:00:00 | C155: CA Independiente Reserves | D155: 1.9 | E155: 3.3 | F155: 3.5 | G155: 0.472 | H155: 0.2718 | I155: 0.2562 | J155: 0.8968 | K155: Banfield Reserves | L155: View(8) | Z155: 5 | AA155: 43805.70833 | AB155: ARG RESL | AC155: CA Independiente Reserves | AD155: Banfield Reserves | AE155: 1.9 | AF155: 3.3 | AG155: 3.5 | AH155: 2 | AI155: 3.3 | AJ155: 3.5 | AK155: 0.8968 | AL155: 0.9184 | BA155: 153 | BB155: 2014-05-02
A156: 2 | B156: 3.3 | C156: 3.5 | D156: 0.4592 | E156: 0.2783 | F156: 0.2624 | G156: 0.9184 | BA156: 154 | BB156: 2014-05-03
A157: ARG RESL | B157: 2019-12-06T17:00:00 | C157: CA Talleres de Córdoba Reserves | D157: 2.2 | E157: 3.4 | F157: 2.75 | G157: 0.4087 | H157: 0.2644 | I157: 0.3269 | J157: 0.8991 | K157: Union Santa Fe Reserves | L157: View(5) | Z157: 5 | AA157: 43805.70833 | AB157: ARG RESL | AC157: CA Talleres de Córdoba Reserves | AD157: Union Santa Fe Reserves | AE157: 2.2 | AF157: 3.4 | AG157: 2.75 | AH157: 2.3 | AI157: 3.4 | AJ157: 2.6 | AK157: 0.8991 | AL157: 0.8981 | BA157: 155 | BB157: 2014-05-04
A158: 2.3 | B158: 3.4 | C158: 2.6 | D158: 0.3905 | E158: 0.2641 | F158: 0.3454 | G158: 0.8981 | BA158: 156 | BB158: 2014-05-05
A159: ARG RESL | B159: 2019-12-06T17:00:00 | C159: Colon Reserves | D159: 1.75 | E159: 3.4 | F159: 4 | G159: 0.5122 | H159: 0.2637 | I159: 0.2241 | J159: 0.8964 | K159: CA Aldosivi Reserves | L159: View(7) | Z159: 5 | AA159: 43805.70833 | AB159: ARG RESL | AC159: Colon Reserves | AD159: CA Aldosivi Reserves | AE159: 1.75 | AF159: 3.4 | AG159: 4 | AH159: 1.66 | AI159: 3.5 | AJ159: 4.5 | AK159: 0.8964 | AL159: 0.9006 | BA159: 157 | BB159: 2014-05-06
A160: 1.66 | B160: 3.5 | C160: 4.5 | D160: 0.5425 | E160: 0.2573 | F160: 0.2001 | G160: 0.9006 | BA160: 158 | BB160: 2014-05-07
A161: ARG RESL | B161: 2019-12-06T17:00:00 | C161: Defensa y Justicia Reserves | D161: 2.4 | E161: 3.2 | F161: 2.6 | G161: 0.3741 | H161: 0.2806 | I161: 0.3453 | J161: 0.8978 | K161: Godoy Cruz Reserves | L161: View(13) | Z161: 5 | AA161: 43805.70833 | AB161: ARG RESL | AC161: Defensa y Justicia Reserves | AD161: Godoy Cruz Reserves | AE161: 2.4 | AF161: 3.2 | AG161: 2.6 | AH161: 2.5 | AI161: 3.2 | AJ161: 2.6 | AK161: 0.8978 | AL161: 0.9115 | BA161: 159 | BB161: 2014-05-08
A162: 2.5 | B162: 3.2 | C162: 2.6 | D162: 0.3646 | E162: 0.2848 | F162: 0.3506 | G162: 0.9115 | BA162: 160 | BB162: 2014-05-09
A163: ARG RESL | B163: 2019-12-06T17:00:00 | C163: Gimnasia LP Reserves | D163: 1.9 | E163: 3.3 | F163: 3.5 | G163: 0.472 | H163: 0.2718 | I163: 0.2562 | J163: 0.8968 | K163: Central Cordoba SdE Reserves | L163: View(6) | Z163: 5 | BA163: 161 | BB163: 2014-05-10
BA164: 162 | BB164: 2014-05-11
A165: ARG RESL | B165: 2019-12-06T17:00:00 | C165: Huracan Reserves | D165: 2.37 | E165: 3.25 | F165: 2.62 | G165: 0.3797 | H165: 0.2769 | I165: 0.3434 | J165: 0.8999 | K165: Arsenal de Sarandi Reserves | L165: View(9) | Z165: 5 | AA165: 43805.70833 | AB165: ARG RESL | AC165: Huracan Reserves | AD165: Arsenal de Sarandi Reserves | AE165: 2.37 | AF165: 3.25 | AG165: 2.62 | AH165: 2.4 | AI165: 3.5 | AJ165: 2.55 | AK165: 0.8999 | AL165: 0.9137 | BA165: 163 | BB165: 2014-05-12
A166: 2.4 | B166: 3.5 | C166: 2.55 | D166: 0.3807 | E166: 0.261 | F166: 0.3583 | G166: 0.9137 | BA166: 164 | BB166: 2014-05-13
A167: ARG RESL | B167: 2019-12-06T17:00:00 | C167: Lanus Reserves | D167: 2.15 | E167: 3.3 | F167: 2.9 | G167: 0.4179 | H167: 0.2723 | I167: 0.3098 | J167: 0.8985 | K167: Racing Club Reserves | L167: View(5) | Z167: 5 | AA167: 43805.70833 | AB167: ARG RESL | AC167: Lanus Reserves | AD167: Racing Club Reserves | AE167: 2.15 | AF167: 3.3 | AG167: 2.9 | AH167: 2 | AI167: 3.4 | AJ167: 3.4 | AK167: 0.8985 | AL167: 0.919 | BA167: 165 | BB167: 2014-05-14
A168: 2 | B168: 3.4 | C168: 3.4 | D168: 0.4595 | E168: 0.2703 | F168: 0.2703 | G168: 0.919 | BA168: 166 | BB168: 2014-05-15
A169: ARG RESL | B169: 2019-12-06T17:00:00 | C169: Lujan Reserves | D169: 1.9 | E169: 3.4 | F169: 3.4 | G169: 0.4722 | H169: 0.2639 | I169: 0.2639 | J169: 0.8972 | K169: San Martin Burzaco Reserves | L169: View(9) | Z169: 5 | BA169: 167 | BB169: 2014-05-16
BA170: 168 | BB170: 2014-05-17
A171: ARG RESL | B171: 2019-12-06T17:00:00 | C171: CA Patronato Reserves | D171: 2.75 | E171: 3.3 | F171: 2.25 | G171: 0.3273 | H171: 0.2727 | I171: 0.4 | J171: 0.9001 | K171: Velez Sarsfield Reserves | L171: View(9) | Z171: 5 | AA171: 43805.70833 | AB171: ARG RESL | AC171: CA Patronato Reserves | AD171: Velez Sarsfield Reserves | AE171: 2.75 | AF171: 3.3 | AG171: 2.25 | AH171: 2.75 | AI171: 3.3 | AJ171: 2.3 | AK171: 0.9001 | AL171: 0.9078 | BA171: 169 | BB171: 2014-05-18
A172: 2.75 | B172: 3.3 | C172: 2.3 | D172: 0.3301 | E172: 0.2751 | F172: 0.3947 | G172: 0.9078 | BA172: 170 | BB172: 2014-05-19
A173: ARG RESL | B173: 2019-12-06T17:00:00 | C173: River Plate R | D173: 2.37 | E173: 3.25 | F173: 2.62 | G173: 0.3797 | H173: 0.2769 | I173: 0.3434 | J173: 0.8999 | K173: San Lorenzo Reserves | L173: View(10) | Z173: 5 | AA173: 43805.70833 | AB173: ARG RESL | AC173: River Plate R | AD173: San Lorenzo Reserves | AE173: 2.37 | AF173: 3.25 | AG173: 2.62 | AH173: 2.87 | AI173: 3.25 | AJ173: 2.25 | AK173: 0.8999 | AL173: 0.9086 | BA173: 171 | BB173: 2014-05-20
A174: 2.87 | B174: 3.25 | C174: 2.25 | D174: 0.3166 | E174: 0.2796 | F174: 0.4038 | G174: 0.9086 | BA174: 172 | BB174: 2014-05-21
A175: ARG RESL | B175: 2019-12-06T17:00:00 | C175: Atletico Tucuman Reserve | D175: 2.75 | E175: 3.3 | F175: 2.25 | G175: 0.3273 | H175: 0.2727 | I175: 0.4 | J175: 0.9001 | K175: Newell's Reserves | L175: View(11) | Z175: 5 | BA175: 173 | BB175: 2014-05-22
BA176: 174 | BB176: 2014-05-23
A177: ARG RESL | B177: 2019-12-06T17:00:00 | C177: Rosario Central Reserves | D177: 3.3 | E177: 3.5 | F177: 1.9 | G177: 0.2718 | H177: 0.2562 | I177: 0.472 | J177: 0.8969 | K177: Boca Juniors Reserve | L177: View(9) | Z177: 5 | AA177: 43805.70833 | AB177: ARG RESL | AC177: Rosario Central Reserves | AD177: Boca Juniors Reserve | AE177: 3.3 | AF177: 3.5 | AG177: 1.9 | AH177: 3 | AI177: 3.4 | AJ177: 2.1 | AK177: 0.8969 | AL177: 0.906 | BA177: 175 | BB177: 2014-05-24
A178: 3 | B178: 3.4 | C178: 2.1 | D178: 0.302 | E178: 0.2665 | F178: 0.4315 | G178: 0.906 | BA178: 176 | BB178: 2014-05-25
A179: HKEC | B179: 2019-12-06T17:00:00 | C179: Southern District | D179: 1.33 | E179: 5 | F179: 6 | G179: 0.6722 | H179: 0.1788 | I179: 0.149 | J179: 0.894 | K179: Yuen Long FC | L179: View(27) | Z179: 5 | AA179: 43805.70833 | AB179: HKEC | AC179: Southern District | AD179: Yuen Long FC | AE179: 1.33 | AF179: 5 | AG179: 6 | AH179: 1.4 | AI179: 4.75 | AJ179: 5.75 | AK179: 0.894 | AL179: 0.9101 | BA179: 177 | BB179: 2014-05-26
A180: 1.4 | B180: 4.75 | C180: 5.75 | D180: 0.6501 | E180: 0.1916 | F180: 0.1583 | G180: 0.9101 | BA180: 178 | BB180: 2014-05-27
A181: IY Cup | B181: 2019-12-06T17:00:00 | C181: SC Beer Sheva U19 | D181: 5.5 | E181: 6.5 | F181: 1.28 | G181: 0.1628 | H181: 0.1377 | I181: 0.6995 | J181: 0.8954 | K181: Maccabi Ironi Kiryat Ata U19 | L181: View(1) | Z181: 5 | BA181: 179 | BB181: 2014-05-28
BA182: 180 | BB182: 2014-05-29
A183: Croatia U19 L | B183: 2019-12-06T17:00:00 | C183: NK Orijent U19 | D183: 11 | E183: 8 | F183: 1.14 | G183: 0.0832 | H183: 0.1144 | I183: 0.8025 | J183: 0.9152 | K183: Dinamo ZagrebU19 | L183: View(15) | Z183: 5 | AA183: 43805.70833 | AB183: Croatia U19 L | AC183: NK Orijent U19 | AD183: Dinamo ZagrebU19 | AE183: 11 | AF183: 8 | AG183: 1.14 | AH183: 12 | AI183: 8.5 | AJ183: 1.12 | AK183: 0.9152 | AL183: 0.9144 | BA183: 181 | BB183: 2014-05-30
A184: 12 | B184: 8.5 | C184: 1.12 | D184: 0.0762 | E184: 0.1076 | F184: 0.8163 | G184: 0.9144 | BA184: 182 | BB184: 2014-05-31
A185: SPA LU19 | B185: 2019-12-06T17:00:00 | C185: San Felix CF U19 | D185: 1.6 | E185: 3.75 | F185: 4.5 | G185: 0.5611 | H185: 0.2394 | I185: 0.1995 | J185: 0.8978 | K185: AD Nervion U19 | L185: View(18) | Z185: 5 | BA185: 183 | BB185: 2014-06-01
BA186: 184 | BB186: 2014-06-02
A187: SPA LU19 | B187: 2019-12-06T17:00:00 | C187: Real Sociedad U19 | D187: 1.8 | E187: 3.6 | F187: 3.6 | G187: 0.5 | H187: 0.25 | I187: 0.25 | J187: 0.9 | K187: Numancia U19 | L187: View(11) | Z187: 5 | BA187: 185 | BB187: 2014-06-03
BA188: 186 | BB188: 2014-06-04
A189: SPA LU19 | B189: 2019-12-06T17:00:00 | C189: Sevilla U19 | D189: 1.6 | E189: 3.75 | F189: 4.5 | G189: 0.5611 | H189: 0.2394 | I189: 0.1995 | J189: 0.8978 | K189: Granada U19 | L189: View(19) | Z189: 5 | BA189: 187 | BB189: 2014-06-05
BA190: 188 | BB190: 2014-06-06
A191: EGYCup | B191: 2019-12-06T17:30:00 | C191: Smouha SC | D191: 1.08 | E191: 9 | F191: 17 | G191: 0.8449 | H191: 0.1014 | I191: 0.0537 | J191: 0.9125 | K191: Shabab Al Obour | L191: View(18) | Z191: 5 | BA191: 189 | BB191: 2014-06-07
BA192: 190 | BB192: 2014-06-08
A193: ISR CL | B193: 2019-12-06T17:30:00 | C193: Hapoel Ihud Bnei Gat | D193: 1.8 | E193: 3.75 | F193: 3.75 | G193: 0.5102 | H193: 0.2449 | I193: 0.2449 | J193: 0.9184 | K193: Hapoel Ramot Menashe | L193: View(9) | Z193: 5 | BA193: 191 | BB193: 2014-06-09
BA194: 192 | BB194: 2014-06-10
A195: ISR CL | B195: 2019-12-06T17:30:00 | C195: Ahi Acre | D195: 5.25 | E195: 4.2 | F195: 1.5 | G195: 0.1739 | H195: 0.2174 | I195: 0.6087 | J195: 0.913 | K195: Hapoel Bueine | L195: View(23) | Z195: 5 | AA195: 43805.72917 | AB195: ISR CL | AC195: Ahi Acre | AD195: Hapoel Bueine | AE195: 5.25 | AF195: 4.2 | AG195: 1.5 | AH195: 8 | AI195: 4.75 | AJ195: 1.3 | AK195: 0.913 | AL195: 0.9048 | BA195: 193 | BB195: 2014-06-11
A196: 8 | B196: 4.75 | C196: 1.3 | D196: 0.1131 | E196: 0.1906 | F196: 0.6963 | G196: 0.9048 | Z196: =IFERROR(IF(L196="","",FIND("(",L196,1)),"") ->  | AA196: =IF(AB196="","",B196) ->  | AB196: =IFERROR(IF(AND(Z196<>"",A196<>"",A197<>""),A196,""),"") ->  | AC196: =IF(AB196="","",C196) ->  | AD196: =IF(AB196="","",K196) ->  | AE196: =IF($AB196="","",D196) ->  | AF196: =IF($AB196="","",E196) ->  | AG196: =IF($AB196="","",F196) ->  | AH196: =IF($AB196="","",A197) ->  | AI196: =IF($AB196="","",B197) ->  | AJ196: =IF($AB196="","",C197) ->  | AK196: =IF(AB196="","",J196) ->  | AL196: =IF(AB196="","",G197) ->  | BA196: 194 | BB196: 2014-06-12
A197: ISR CL | B197: 2019-12-06T17:30:00 | C197: Tzeirei Sakhnin | D197: 2.3 | E197: 3.6 | F197: 2.6 | G197: 0.3963 | H197: 0.2532 | I197: 0.3506 | J197: 0.9115 | K197: FC Achva Kfar Manda | L197: View(21) | Z197: 5 | AA197: 43805.72917 | AB197: ISR CL | AC197: Tzeirei Sakhnin | AD197: FC Achva Kfar Manda | AE197: 2.3 | AF197: 3.6 | AG197: 2.6 | AH197: 2.7 | AI197: 3.6 | AJ197: 2.25 | AK197: 0.9115 | AL197: 0.9153 | BA197: 195 | BB197: 2014-06-13
A198: 2.7 | B198: 3.6 | C198: 2.25 | D198: 0.339 | E198: 0.2542 | F198: 0.4068 | G198: 0.9153 | BA198: 196 | BB198: 2014-06-14
A199: SAFL | B199: 2019-12-06T18:30:00 | C199: Ajax Cape Town | D199: 2.2 | E199: 3.1 | F199: 3.2 | G199: 0.4172 | H199: 0.296 | I199: 0.2868 | J199: 0.9178 | K199: JDR Stars | L199: View(54) | Z199: 5 | BA199: 197 | BB199: 2014-06-15
BA200: 198 | BB200: 2014-06-16
... 587 more rows
